Workbook

Sheet Template
A1: S.No | B1: FileName | C1: Append | D1: Format
A2: 1 | B2: SecurityGeneral | C2: Yes | D2: CSV
A3: 2 | B3: SecurityAnnouncement | C3: Yes | D3: CSV
A4: 3 | B4: SecurityContact | C4: Yes | D4: CSV
A5: 4 | B5: Security Request-Ackn-Reject | C5: Yes | D5: CSV
A6: 5 | B6: OrderwithRegistration | C6: Yes | D6: CSV
A7: 6 | B7: Order | C7: Yes | D7: CSV
A8: 7 | B8: Order Ackn-Rej-Exit | C8: Yes | D8: CSV
A9: 8 | B9: OrderCorrConf | C9: Yes | D9: CSV
A10: 9 | B10: Payment | C10: Yes | D10: CSV
A11: 10 | B11: Payment Acknowledgement | C11: Yes | D11: CSV
A12: 11 | B12: Exchange-Switch | C12: Yes | D12: CSV
A13: 12 | B13: Acct. Registration-Maint | C13: Yes | D13: CSV
A14: 13 | B14: Reg-Activity Ackn Rej | C14: Yes | D14: CSV
A15: 14 | B15: Activity&Distribution | C15: Yes | D15: CSV
A16: 15 | B16: Commission | C16: Yes | D16: CSV
A17: 16 | B17: Position | C17: Yes | D17: CSV
A18: 17 | B18: Electronic Documentation | C18: Yes | D18: CSV
A19: 18 | B19: Document Transfer Manifest | C19: Yes | D19: CSV
A20: 19 | B20: Document Transfer Ackn-Rej | C20: Yes | D20: CSV
A21: 20 | B21: Valuation | C21: Yes | D21: CSV
A22: 21 | B22: Account Transfer | C22: Yes | D22: CSV
A23: 22 | B23: AcctTrnsf Ackn-Rej-Exit | C23: Yes | D23: CSV
A24: 23 | B24: AcctTrnsf Conf-Corr | C24: Yes | D24: CSV

Sheet SecurityGeneral
A1: Last Update timestamp : 22-07-19 13:55:08 by Musielak, Victor A. | C1: 061 = Security General Note – Red=Required, Blue=Optional, Black=Optional Conditional (see Data Dictionary for condition)
A2: Record Length (R-4-N) | B2: Originator Type (R-1-A/N) | C2: Recipient Number (R-8-A/N) | D2: Fund Number (R-8-A/N) | E2: Record Type (R-3-A/N) | F2: NSCC Security Issue Number (O-16-A/N) | G2: NSCC Sidepocket ID (O-3-A/N) | H2: Share Class (O-8-A/N) | I2: Security Identifier (R-1-A/N) | J2: Security Issue Name (R-75-A/N) | K2: Security Issue ID (R-12-A/N) | L2: Unitized Indicator (R-1-A/N) | M2: Registered Indicator (R-1-A/N) | N2: Requested Action Indicator (R-1-A/N) | O2: NSCC Reject Indicator (R-1-A/N) | P2: NSCC Reject Reason Code 1 (R-4-A/N) | Q2: NSCC Reject Reason Code 2 (R-4-A/N) | R2: NSCC Reject Reason Code 3 (R-4-A/N) | S2: NSCC Reject Reason Code 4 (R-4-A/N) | T2: Submission Date (R-8-N) | U2: Effective Date (R-8-N) | V2: Security Type (R-2-A/N) | W2: Ownership Structure (R-2-A/N) | X2: Segregated Portfolio Company Indicator (O-1-A/N) | Y2: Strategy Indicator (O-2-A/N) | Z2: NAV Eligible Indicator (O-1-A/N) | AA2: No Lien Acknowledgement Indicator (R-1-A/N) | AB2: Subject To Lock Up Indicator (O-1-A/N) | AC2: Lock Up Time Period in # of Days (O-3-N) | AD2: Series Eligible Indicator (R-1-A/N) | AE2: Performance Fee Payout Date (O-8-N) | AF2: Performance Fee Indicator (O-1-A/N) | AG2: Redemption Fee Indicator (O-1-A/N) | AH2: Redemption Fee Percentage (OC-4-N) | AI2: Redemption Fee Period (OC-2-A/N) | AJ2: Incentive Fee Indicator (O-1-A/N) | AK2: High Water Mark (O-16-N) | AL2: Benchmark Dollars (O-16-N) | AM2: Benchmark Shares (O-14-N) | AN2: Hurdle Rate Indicator (O-1-A/N) | AO2: Hurdle Rate (O-6-N) | AP2: Carve Out Indicator (O-1-A/N) | AQ2: Clawback Provision Indicator (O-1-A/N) | AR2: Sidepocket Minimum (O-6-N) | AS2: Sidepocket Maximum (O-6-N) | AT2: Gate Provision Indicator (O-1-A/N) | AU2: Gate Provision Percentage (%) (OC-4-N) | AV2: Management Fee (O-6-N) | AW2: Administration Fee (O-6-N) | AX2: Purchase Order Process Indicator (R-1-A/N) | AY2: Transfer Indicator (O-1-A/N) | AZ2: Account Registration Indicator (O-1-A/N) | BA2: Account Maintenance Indicator (O-1-A/N) | BB2: Filler (R-2-A/N) | BC2: Initial Minimum (R-16-N) | BD2: Subsequent Minimum (R-16-N) | BE2: Absolute Minimum (O-16-N) | BF2: Valuation Frequency (O-2-A/N) | BG2: Base Currency (O-3-A/N) | BH2: Reporting Currency (O-3-A/N) | BI2: Load Type Indicator (R-1-A/N) | BJ2: Commission Payment Frequency (O-2-A/N) | BK2: Commission Percentage High (R-6-N) | BL2: Commission Percentage Low (R-6-N) | BM2: Number of Breakpoints (OC-2-N) | BN2: Breakpoint Lower Limit 1 (OC-16-N) | BO2: Breakpoint Upper Limit 1 (OC-16-N) | BP2: Percent of POP 1 (O-6-N) | BQ2: Commission Percentage1 (OC-6-N) | BR2: Breakpoint Lower Limit 2 (OC-16-N) | BS2: Breakpoint Upper Limit 2 (OC-16-N) | BT2: Percent of POP 2 (O-6-N) | BU2: Commission Percentage2 (OC-6-N) | BV2: Breakpoint Lower Limit 3 (OC-16-N) | BW2: Breakpoint Upper Limit 3 (OC-16-N) | BX2: Percent of POP 3 (O-6-N) | BY2: Commission Percentage3 (OC-6-N) | BZ2: Breakpoint Lower Limit 4 (OC-16-N) | CA2: Breakpoint Upper Limit 4 (OC-16-N) | CB2: Percent of POP 4 (O-6-N) | CC2: Commission Percentage4 (OC-6-N) | CD2: Breakpoint Lower Limit 5 (OC-16-N) | CE2: Breakpoint Upper Limit 5 (OC-16-N) | CF2: Percent of POP 5 (O-6-N) | CG2: Commission Percentage5 (OC-6-N) | CH2: Tender Offer Subject to Holdback Indicator (O-1-A/N) | CI2: Number of Business Days for Holdback (O-3-N) | CJ2: Holdback Percentage (O-6-N) | CK2: Interest Paid on Holdback Indicator (O-1-A/N) | CL2: Interest Rate Compounding Period for Holdback Monies (O-1-A/N) | CM2: Fund Status Indicator (R-1-A/N) | CN2: Purchase Closed Indicator (O-1-A/N) | CO2: Redemption Closed Indicator (O-1-A/N) | CP2: Exchange Closed Indicator (O-1-A/N) | CQ2: Dividend Payment Indicator (O-1-A/N) | CR2: Dividend Calculation Type (O-1-A/N) | CS2: Dividend Payable Type (O-1-A/N) | CT2: Inactive Fund Disposition Indicator (OC-1-A/N) | CU2: Fund Tax Indicator (R-1-A/N) | CV2: Breakpoint Eligible (O-1-A/N) | CW2: LOI Eligible (O-1-A/N) | CX2: ROA Eligible (O-1-A/N) | CY2: Retroactive LOIs (O-1-A/N) | CZ2: Retroactive LOI Period (O-2-A/N) | DA2: Link by Spouse (O-1-A/N) | DB2: Link by Civil Union (O-1-A/N) | DC2: Link by Domestic Partnership (O-1-A/N) | DD2: Link by Common Law Marriage (O-1-A/N) | DE2: Link by Parent (O-1-A/N) | DF2: Link by Step Parent (O-1-A/N) | DG2: Link by Legal Guardian (O-1-A/N) | DH2: Link by Child (O-1-A/N) | DI2: Child Maturation Age (OC-2-N) | DJ2: Countries Where Fund is Registered (O-150-A/N) | DK2: Domiciled (O-3-A/N) | DL2: Exchange Listing Indicator (O-1-A/N) | DM2: Exchange Name (O-2-A/N) | DN2: Inception Date (O-8-N) | DO2: Security General Profile Last Updated (R-8-N) | DP2: Date of Last Offering Memorandum (O-8-N) | DQ2: Exchange Frequency (O-2-A/N) | DR2: Transfer Frequency (R-2-A/N) | DS2: Purchase Frequency (O-2-A/N) | DT2: Redemption / Tender Frequency (O-2-A/N) | DU2: Blue Sky State (O-188-A/N) | DV2: Fair Market Value Indicator (O-1-A/N) | DW2: Fiscal Year End (O-4-N) | DX2: Breakpoint Lower Limit 6 (OC-16-N) | DY2: Breakpoint Upper Limit 6 (OC-16-N) | DZ2: Percent of POP 6 (O-6-N) | EA2: Commission Percentage6 (OC-6-N) | EB2: Breakpoint Lower Limit 7 (OC-16-N) | EC2: Breakpoint Upper Limit 7 (OC-16-N) | ED2: Percent of POP 7 (O-6-N) | EE2: Commission Percentage7 (OC-6-N) | EF2: Breakpoint Lower Limit 8 (OC-16-N) | EG2: Breakpoint Upper Limit 8 (OC-16-N) | EH2: Percent of POP 8 (O-6-N) | EI2: Commission Percentage8 (OC-6-N) | EJ2: Breakpoint Lower Limit 9 (OC-16-N) | EK2: Breakpoint Upper Limit 9 (OC-16-N) | EL2: Percent of POP 9 (O-6-N) | EM2: Commission Percentage9 (OC-6-N) | EN2: Breakpoint Lower Limit 10 (OC-16-N) | EO2: Breakpoint Upper Limit 10 (OC-16-N) | EP2: Percent of POP 10 (O-6-N) | EQ2: Commission Percentage10 (OC-6-N) | ER2: Commission Payment Methodology (O-1-A/N) | ES2: Commission Basis (O-1-A/N) | ET2: Breakpoint Limit Basis Indicator (OC-1-A/N) | EU2: Sub-Type Eligible Indicator (O-1-A/N) | EV2: Fund Sub-Type Indicator (OC-1-A/N) | EW2: Related Parent NSCC Security Issue Number (OC-16-A/N) | EX2: Electronic Document Subscription/Purchase Indicator (R-1-A/N) | EY2: Subscription/Purchase Document Format Indicator (OC-1-A/N) | EZ2: Electronic Document Redemption/Tender Indicator (R-1-A/N) | FA2: Redemption/Tender Document Format Indicator (OC-1-A/N) | FB2: Electronic Document Transfer Indicator (R-1-A/N) | FC2: Transfer Document Format Indicator (OC-1-A/N) | FD2: Electronic Document Account Registration Indicator (R-1-A/N) | FE2: Account Registration Document Format Indicator (OC-1-A/N) | FF2: Electronic Document Account Maintenance Indicator (R-1-A/N) | FG2: Account Maintenance Document Format Indicator (OC-1-A/N) | FH2: Qualified Plan Initial Minimum (O-16-N) | FI2: Qualified Plan Subsequent Minimum (O-16-N) | FJ2: ToBeExecuted
A3: 1290 | F3: |NoTag| | G3: |NoTag| | H3: |NoTag| | X3: |NoTag| | Y3: |NoTag| | Z3: |NoTag| | AB3: |NoTag| | AC3: |NoTag| | AE3: |NoTag| | AF3: |NoTag| | AG3: |NoTag| | AJ3: |NoTag| | AK3: |NoTag| | AL3: |NoTag| | AM3: |NoTag| | AN3: |NoTag| | AO3: |NoTag| | AP3: |NoTag| | AQ3: |NoTag| | AR3: |NoTag| | AS3: |NoTag| | AT3: |NoTag| | AV3: |NoTag| | AW3: |NoTag| | AY3: |NoTag| | AZ3: |NoTag| | BA3: |NoTag| | BB3: |NoTag| | BE3: |NoTag| | BF3: |NoTag| | BG3: |NoTag| | BH3: |NoTag| | BJ3: |NoTag| | BP3: |NoTag| | BT3: |NoTag| | BX3: |NoTag| | CB3: |NoTag| | CF3: |NoTag| | CH3: |NoTag| | CI3: |NoTag| | CJ3: |NoTag| | CK3: |NoTag| | CL3: |NoTag| | CN3: |NoTag| | CO3: |NoTag| | CP3: |NoTag| | CQ3: |NoTag| | CR3: |NoTag| | CS3: |NoTag| | CV3: |NoTag| | CW3: |NoTag| | CX3: |NoTag| | CY3: |NoTag| | CZ3: |NoTag| | DA3: |NoTag| | DB3: |NoTag| | DC3: |NoTag| | DD3: |NoTag| | DE3: |NoTag| | DF3: |NoTag| | DG3: |NoTag| | DH3: |NoTag| | DJ3: |NoTag| | DK3: |NoTag| | DL3: |NoTag| | DM3: |NoTag| | DN3: |NoTag| | DP3: |NoTag| | DQ3: |NoTag| | DS3: |NoTag| | DT3: |NoTag| | DU3: |NoTag| | DV3: |NoTag| | DW3: |NoTag| | DZ3: |NoTag| | ED3: |NoTag| | EH3: |NoTag| | EL3: |NoTag| | EP3: |NoTag| | ER3: |NoTag| | ES3: |NoTag| | EU3: |NoTag| | FH3: |NoTag| | FI3: |NoTag| | FJ3: No

Sheet SecurityGeneral_DD (hidden)
A1: Field Name | B1: Start | C1: End | D1: Length | E1: Type | F1: Opt/Req | G1: Default2Zero
A2: Record Length | B2: 1 | C2: 4 | D2: 4 | E2: N | F2: R | G2: NO
A3: Originator Type | B3: =$C2+1 -> 5 | C3: =$B3+$D3-1 -> 5 | D3: 1 | E3: A/N | F3: R
A4: Recipient Number | B4: =$C3+1 -> 6 | C4: 13 | D4: 8 | E4: A/N | F4: R
A5: Fund Number | B5: 14 | C5: 21 | D5: 8 | E5: A/N | F5: R
A6: Record Type | B6: 22 | C6: 24 | D6: 3 | E6: A/N | F6: R
A7: NSCC Security Issue Number | B7: 25 | C7: 40 | D7: 16 | E7: A/N | F7: O
A8: NSCC Sidepocket ID | B8: 41 | C8: 43 | D8: 3 | E8: A/N | F8: O
A9: Share Class | B9: 44 | C9: 51 | D9: 8 | E9: A/N | F9: O
A10: Security Identifier | B10: 52 | C10: 52 | D10: 1 | E10: A/N | F10: R
A11: Security Issue Name | B11: 53 | C11: 127 | D11: 75 | E11: A/N | F11: R
A12: Security Issue ID | B12: 128 | C12: 139 | D12: 12 | E12: A/N | F12: R
A13: Unitized Indicator | B13: 140 | C13: 140 | D13: 1 | E13: A/N | F13: R
A14: Registered Indicator | B14: 141 | C14: 141 | D14: 1 | E14: A/N | F14: R
A15: Requested Action Indicator | B15: 142 | C15: 142 | D15: 1 | E15: A/N | F15: R
A16: NSCC Reject Indicator | B16: 143 | C16: 143 | D16: 1 | E16: A/N | F16: R
A17: NSCC Reject Reason Code 1 | B17: 144 | C17: 147 | D17: 4 | E17: A/N | F17: R
A18: NSCC Reject Reason Code 2 | B18: 148 | C18: 151 | D18: 4 | E18: A/N | F18: R
A19: NSCC Reject Reason Code 3 | B19: 152 | C19: 155 | D19: 4 | E19: A/N | F19: R
A20: NSCC Reject Reason Code 4 | B20: 156 | C20: 159 | D20: 4 | E20: A/N | F20: R
A21: Submission Date | B21: 160 | C21: 167 | D21: 8 | E21: N | F21: R | G21: NO
A22: Effective Date | B22: 168 | C22: 175 | D22: 8 | E22: N | F22: R | G22: NO
A23: Security Type | B23: 176 | C23: 177 | D23: 2 | E23: A/N | F23: R
A24: Ownership Structure | B24: 178 | C24: 179 | D24: 2 | E24: A/N | F24: R
A25: Segregated Portfolio Company Indicator | B25: 180 | C25: 180 | D25: 1 | E25: A/N | F25: O
A26: Strategy Indicator | B26: 181 | C26: 182 | D26: 2 | E26: A/N | F26: O
A27: NAV Eligible Indicator | B27: 183 | C27: 183 | D27: 1 | E27: A/N | F27: O
A28: No Lien Acknowledgement Indicator | B28: 184 | C28: 184 | D28: 1 | E28: A/N | F28: R
A29: Subject To Lock Up Indicator | B29: 185 | C29: 185 | D29: 1 | E29: A/N | F29: O
A30: Lock Up Time Period in # of Days | B30: 186 | C30: 188 | D30: 3 | E30: N | F30: O
A31: Series Eligible Indicator | B31: 189 | C31: 189 | D31: 1 | E31: A/N | F31: R
A32: Performance Fee Payout Date | B32: 190 | C32: 197 | D32: 8 | E32: N | F32: O | G32: NO
A33: Performance Fee Indicator | B33: 198 | C33: 198 | D33: 1 | E33: A/N | F33: O
A34: Redemption Fee Indicator | B34: 199 | C34: 199 | D34: 1 | E34: A/N | F34: O
A35: Redemption Fee Percentage | B35: 200 | C35: 203 | D35: 4 | E35: N | F35: OC
A36: Redemption Fee Period | B36: 204 | C36: 205 | D36: 2 | E36: A/N | F36: OC
A37: Incentive Fee Indicator | B37: 206 | C37: 206 | D37: 1 | E37: A/N | F37: O
A38: High Water Mark | B38: 207 | C38: 222 | D38: 16 | E38: N | F38: O
A39: Benchmark Dollars | B39: 223 | C39: 238 | D39: 16 | E39: N | F39: O
A40: Benchmark Shares | B40: 239 | C40: 252 | D40: 14 | E40: N | F40: O
A41: Hurdle Rate Indicator | B41: 253 | C41: 253 | D41: 1 | E41: A/N | F41: O
A42: Hurdle Rate | B42: 254 | C42: 259 | D42: 6 | E42: N | F42: O
A43: Carve Out Indicator | B43: 260 | C43: 260 | D43: 1 | E43: A/N | F43: O
A44: Clawback Provision Indicator | B44: 261 | C44: 261 | D44: 1 | E44: A/N | F44: O
A45: Sidepocket Minimum | B45: 262 | C45: 267 | D45: 6 | E45: N | F45: O
A46: Sidepocket Maximum | B46: 268 | C46: 273 | D46: 6 | E46: N | F46: O
A47: Gate Provision Indicator | B47: 274 | C47: 274 | D47: 1 | E47: A/N | F47: O
A48: Gate Provision Percentage (%) | B48: 275 | C48: 278 | D48: 4 | E48: N | F48: OC
A49: Management Fee | B49: 279 | C49: 284 | D49: 6 | E49: N | F49: O
A50: Administration Fee | B50: 285 | C50: 290 | D50: 6 | E50: N | F50: O
A51: Purchase Order Process Indicator | B51: 291 | C51: 291 | D51: 1 | E51: A/N | F51: R
A52: Transfer Indicator | B52: 292 | C52: 292 | D52: 1 | E52: A/N | F52: O
A53: Account Registration Indicator | B53: 293 | C53: 293 | D53: 1 | E53: A/N | F53: O
A54: Account Maintenance Indicator | B54: 294 | C54: 294 | D54: 1 | E54: A/N | F54: O
A55: Filler | B55: 295 | C55: 296 | D55: 2 | E55: A/N | F55: R
A56: Initial Minimum | B56: 297 | C56: 312 | D56: 16 | E56: N | F56: R | G56: NO
A57: Subsequent Minimum | B57: 313 | C57: 328 | D57: 16 | E57: N | F57: R | G57: NO
A58: Absolute Minimum | B58: 329 | C58: 344 | D58: 16 | E58: N | F58: O
A59: Valuation Frequency | B59: 345 | C59: 346 | D59: 2 | E59: A/N | F59: O
A60: Base Currency | B60: 347 | C60: 349 | D60: 3 | E60: A/N | F60: O
A61: Reporting Currency | B61: 350 | C61: 352 | D61: 3 | E61: A/N | F61: O
A62: Load Type Indicator | B62: 353 | C62: 353 | D62: 1 | E62: A/N | F62: R
A63: Commission Payment Frequency | B63: 354 | C63: 355 | D63: 2 | E63: A/N | F63: O
A64: Commission Percentage High | B64: 356 | C64: 361 | D64: 6 | E64: N | F64: R | G64: NO
A65: Commission Percentage Low | B65: 362 | C65: 367 | D65: 6 | E65: N | F65: R | G65: NO
A66: Number of Breakpoints | B66: 368 | C66: 369 | D66: 2 | E66: N | F66: OC
A67: Breakpoint Lower Limit 1 | B67: 370 | C67: =$B67+$D67-1 -> 385 | D67: 16 | E67: N | F67: OC | G67: NO
A68: Breakpoint Upper Limit 1 | B68: =$C67+1 -> 386 | C68: 401 | D68: 16 | E68: N | F68: OC | G68: NO
A69: Percent of POP 1 | B69: 402 | C69: 407 | D69: 6 | E69: N | F69: O | G69: NO
A70: Commission Percentage1 | B70: 408 | C70: 413 | D70: 6 | E70: N | F70: OC | G70: NO
A71: Breakpoint Lower Limit 2 | B71: 414 | C71: 429 | D71: 16 | E71: N | F71: OC | G71: NO
A72: Breakpoint Upper Limit 2 | B72: 430 | C72: 445 | D72: 16 | E72: N | F72: OC | G72: NO
A73: Percent of POP 2 | B73: 446 | C73: 451 | D73: 6 | E73: N | F73: O | G73: NO
A74: Commission Percentage2 | B74: 452 | C74: 457 | D74: 6 | E74: N | F74: OC | G74: NO
A75: Breakpoint Lower Limit 3 | B75: 458 | C75: 473 | D75: 16 | E75: N | F75: OC | G75: NO
A76: Breakpoint Upper Limit 3 | B76: 474 | C76: 489 | D76: 16 | E76: N | F76: OC | G76: NO
A77: Percent of POP 3 | B77: 490 | C77: 495 | D77: 6 | E77: N | F77: O | G77: NO
A78: Commission Percentage3 | B78: 496 | C78: 501 | D78: 6 | E78: N | F78: OC | G78: NO
A79: Breakpoint Lower Limit 4 | B79: 502 | C79: 517 | D79: 16 | E79: N | F79: OC | G79: NO
A80: Breakpoint Upper Limit 4 | B80: 518 | C80: 533 | D80: 16 | E80: N | F80: OC | G80: NO
A81: Percent of POP 4 | B81: 534 | C81: 539 | D81: 6 | E81: N | F81: O | G81: NO
A82: Commission Percentage4 | B82: 540 | C82: 545 | D82: 6 | E82: N | F82: OC | G82: NO
A83: Breakpoint Lower Limit 5 | B83: 546 | C83: 561 | D83: 16 | E83: N | F83: OC | G83: NO
A84: Breakpoint Upper Limit 5 | B84: 562 | C84: 577 | D84: 16 | E84: N | F84: OC | G84: NO
A85: Percent of POP 5 | B85: 578 | C85: 583 | D85: 6 | E85: N | F85: O | G85: NO
A86: Commission Percentage5 | B86: 584 | C86: 589 | D86: 6 | E86: N | F86: OC | G86: NO
A87: Tender Offer Subject to Holdback Indicator | B87: 590 | C87: 590 | D87: 1 | E87: A/N | F87: O
A88: Number of Business Days for Holdback | B88: 591 | C88: 593 | D88: 3 | E88: N | F88: O | G88: NO
A89: Holdback Percentage | B89: 594 | C89: 599 | D89: 6 | E89: N | F89: O
A90: Interest Paid on Holdback Indicator | B90: 600 | C90: 600 | D90: 1 | E90: A/N | F90: O
A91: Interest Rate Compounding Period for Holdback Monies | B91: 601 | C91: 601 | D91: 1 | E91: A/N | F91: O
A92: Fund Status Indicator | B92: 602 | C92: 602 | D92: 1 | E92: A/N | F92: R
A93: Purchase Closed Indicator | B93: 603 | C93: 603 | D93: 1 | E93: A/N | F93: O
A94: Redemption Closed Indicator | B94: 604 | C94: 604 | D94: 1 | E94: A/N | F94: O
A95: Exchange Closed Indicator | B95: 605 | C95: 605 | D95: 1 | E95: A/N | F95: O
A96: Dividend Payment Indicator | B96: 606 | C96: 606 | D96: 1 | E96: A/N | F96: O
A97: Dividend Calculation Type | B97: 607 | C97: 607 | D97: 1 | E97: A/N | F97: O
A98: Dividend Payable Type | B98: 608 | C98: 608 | D98: 1 | E98: A/N | F98: O
A99: Inactive Fund Disposition Indicator | B99: 609 | C99: 609 | D99: 1 | E99: A/N | F99: OC
A100: Fund Tax Indicator | B100: 610 | C100: 610 | D100: 1 | E100: A/N | F100: R
A101: Breakpoint Eligible | B101: 611 | C101: 611 | D101: 1 | E101: A/N | F101: O
A102: LOI Eligible | B102: 612 | C102: 612 | D102: 1 | E102: A/N | F102: O
A103: ROA Eligible | B103: 613 | C103: 613 | D103: 1 | E103: A/N | F103: O
A104: Retroactive LOIs | B104: 614 | C104: 614 | D104: 1 | E104: A/N | F104: O
A105: Retroactive LOI Period | B105: 615 | C105: 616 | D105: 2 | E105: A/N | F105: O
A106: Link by Spouse | B106: 617 | C106: 617 | D106: 1 | E106: A/N | F106: O
A107: Link by Civil Union | B107: 618 | C107: 618 | D107: 1 | E107: A/N | F107: O
A108: Link by Domestic Partnership | B108: 619 | C108: 619 | D108: 1 | E108: A/N | F108: O
A109: Link by Common Law Marriage | B109: 620 | C109: 620 | D109: 1 | E109: A/N | F109: O
A110: Link by Parent | B110: 621 | C110: 621 | D110: 1 | E110: A/N | F110: O
A111: Link by Step Parent | B111: 622 | C111: 622 | D111: 1 | E111: A/N | F111: O
A112: Link by Legal Guardian | B112: 623 | C112: 623 | D112: 1 | E112: A/N | F112: O
A113: Link by Child | B113: 624 | C113: 624 | D113: 1 | E113: A/N | F113: O
A114: Child Maturation Age | B114: 625 | C114: 626 | D114: 2 | E114: N | F114: OC | G114: NO
A115: Countries Where Fund is Registered | B115: 627 | C115: 776 | D115: 150 | E115: A/N | F115: O
A116: Domiciled | B116: 777 | C116: 779 | D116: 3 | E116: A/N | F116: O
A117: Exchange Listing Indicator | B117: 780 | C117: 780 | D117: 1 | E117: A/N | F117: O
A118: Exchange Name | B118: 781 | C118: 782 | D118: 2 | E118: A/N | F118: O
A119: Inception Date | B119: 783 | C119: 790 | D119: 8 | E119: N | F119: O | G119: NO
A120: Security General Profile Last Updated | B120: 791 | C120: 798 | D120: 8 | E120: N | F120: R | G120: NO
A121: Date of Last Offering Memorandum | B121: 799 | C121: 806 | D121: 8 | E121: N | F121: O | G121: NO
A122: Exchange Frequency | B122: 807 | C122: 808 | D122: 2 | E122: A/N | F122: O
A123: Transfer Frequency | B123: 809 | C123: 810 | D123: 2 | E123: A/N | F123: R
A124: Purchase Frequency | B124: 811 | C124: 812 | D124: 2 | E124: A/N | F124: O
A125: Redemption / Tender Frequency | B125: 813 | C125: 814 | D125: 2 | E125: A/N | F125: O
A126: Blue Sky State | B126: 815 | C126: =+$B126+$D126-1 -> 1002 | D126: 188 | E126: A/N | F126: O
A127: Fair Market Value Indicator | B127: 1003 | C127: =+$B127+$D127-1 -> 1003 | D127: 1 | E127: A/N | F127: O
A128: Fiscal Year End | B128: 1004 | C128: =+$B128+$D128-1 -> 1007 | D128: 4 | E128: N | F128: O | G128: NO
A129: Breakpoint Lower Limit 6 | B129: 1008 | C129: =$B129+$D129-1 -> 1023 | D129: 16 | E129: N | F129: OC | G129: NO
A130: Breakpoint Upper Limit 6 | B130: 1024 | C130: 1039 | D130: 16 | E130: N | F130: OC | G130: NO
A131: Percent of POP 6 | B131: 1040 | C131: 1045 | D131: 6 | E131: N | F131: O | G131: NO
A132: Commission Percentage6 | B132: =$C131+1 -> 1046 | C132: 1051 | D132: 6 | E132: N | F132: OC | G132: NO
A133: Breakpoint Lower Limit 7 | B133: 1052 | C133: 1067 | D133: 16 | E133: N | F133: OC | G133: NO
A134: Breakpoint Upper Limit 7 | B134: 1068 | C134: 1083 | D134: 16 | E134: N | F134: OC | G134: NO
A135: Percent of POP 7 | B135: 1084 | C135: 1089 | D135: 6 | E135: N | F135: O | G135: NO
A136: Commission Percentage7 | B136: 1090 | C136: 1095 | D136: 6 | E136: N | F136: OC | G136: NO
A137: Breakpoint Lower Limit 8 | B137: 1096 | C137: 1111 | D137: 16 | E137: N | F137: OC | G137: NO
A138: Breakpoint Upper Limit 8 | B138: 1112 | C138: 1127 | D138: 16 | E138: N | F138: OC | G138: NO
A139: Percent of POP 8 | B139: 1128 | C139: 1133 | D139: 6 | E139: N | F139: O | G139: NO
A140: Commission Percentage8 | B140: 1134 | C140: 1139 | D140: 6 | E140: N | F140: OC | G140: NO
A141: Breakpoint Lower Limit 9 | B141: 1140 | C141: 1155 | D141: 16 | E141: N | F141: OC | G141: NO
A142: Breakpoint Upper Limit 9 | B142: 1156 | C142: 1171 | D142: 16 | E142: N | F142: OC | G142: NO
A143: Percent of POP 9 | B143: 1172 | C143: 1177 | D143: 6 | E143: N | F143: O | G143: NO
A144: Commission Percentage9 | B144: 1178 | C144: 1183 | D144: 6 | E144: N | F144: OC | G144: NO
A145: Breakpoint Lower Limit 10 | B145: 1184 | C145: 1199 | D145: 16 | E145: N | F145: OC | G145: NO
A146: Breakpoint Upper Limit 10 | B146: 1200 | C146: 1215 | D146: 16 | E146: N | F146: OC | G146: NO
A147: Percent of POP 10 | B147: 1216 | C147: 1221 | D147: 6 | E147: N | F147: O | G147: NO
A148: Commission Percentage10 | B148: 1222 | C148: 1227 | D148: 6 | E148: N | F148: OC | G148: NO
A149: Commission Payment Methodology | B149: 1228 | C149: 1228 | D149: 1 | E149: A/N | F149: O
A150: Commission Basis | B150: 1229 | C150: 1229 | D150: 1 | E150: A/N | F150: O
A151: Breakpoint Limit Basis Indicator | B151: 1230 | C151: 1230 | D151: 1 | E151: A/N | F151: OC
A152: Sub-Type Eligible Indicator | B152: 1231 | C152: 1231 | D152: 1 | E152: A/N | F152: O
A153: Fund Sub-Type Indicator | B153: 1232 | C153: 1232 | D153: 1 | E153: A/N | F153: OC
A154: Related Parent NSCC Security Issue Number | B154: 1233 | C154: 1248 | D154: 16 | E154: A/N | F154: OC
A155: Electronic Document Subscription/Purchase Indicator | B155: 1249 | C155: 1249 | D155: 1 | E155: A/N | F155: R
A156: Subscription/Purchase Document Format Indicator | B156: 1250 | C156: 1250 | D156: 1 | E156: A/N | F156: OC
A157: Electronic Document Redemption/Tender Indicator | B157: 1251 | C157: 1251 | D157: 1 | E157: A/N | F157: R
A158: Redemption/Tender Document Format Indicator | B158: 1252 | C158: 1252 | D158: 1 | E158: A/N | F158: OC
A159: Electronic Document Transfer Indicator | B159: 1253 | C159: 1253 | D159: 1 | E159: A/N | F159: R
A160: Transfer Document Format Indicator | B160: 1254 | C160: 1254 | D160: 1 | E160: A/N | F160: OC
A161: Electronic Document Account Registration Indicator | B161: 1255 | C161: 1255 | D161: 1 | E161: A/N | F161: R
A162: Account Registration Document Format Indicator | B162: 1256 | C162: 1256 | D162: 1 | E162: A/N | F162: OC
A163: Electronic Document Account Maintenance Indicator | B163: 1257 | C163: 1257 | D163: 1 | E163: A/N | F163: R
A164: Account Maintenance Document Format Indicator | B164: 1258 | C164: 1258 | D164: 1 | E164: A/N | F164: OC
A165: Qualified Plan Initial Minimum | B165: 1259 | C165: 1274 | D165: 16 | E165: N | F165: O | G165: NO
A166: Qualified Plan Subsequent Minimum | B166: 1275 | C166: 1290 | D166: 16 | E166: N | F166: O | G166: NO

Sheet SecurityAnnouncement
A1: Last Update timestamp : 20-04-20 12:23:45 by Musielak, Victor A. | C1: 062 = Security Announcement Note – Red=Required, Blue=Optional, Black=Optional Conditional (see Data Dictionary for condition)
A2: Record Length (R-4-N) | B2: Originator Type (R-1-A/N) | C2: Recipient Number (R-8-A/N) | D2: Fund Number (R-8-A/N) | E2: Record Type (R-3-A/N) | F2: NSCC Security Issue Number (OC-16-A/N) | G2: NSCC Sidepocket ID (O-3-A/N) | H2: Share Class (O-8-A/N) | I2: Security Identifier (OC-1-A/N) | J2: Series Name (OC-35-A/N) | K2: Security Issue ID (OC-12-A/N) | L2: Filler (R-2-A/N) | M2: Requested Action Indicator (R-1-A/N) | N2: NSCC Reject Indicator (R-1-A/N) | O2: NSCC Reject Reason Code 1 (R-4-A/N) | P2: NSCC Reject Reason Code 2 (R-4-A/N) | Q2: NSCC Reject Reason Code 3 (R-4-A/N) | R2: NSCC Reject Reason Code 4 (R-4-A/N) | S2: Submission Date (R-8-N) | T2: Effective Date (R-8-N) | U2: Announcement Type (R-2-A/N) | V2: Estimated or Actual Indicator (O-1-A/N) | W2: Capital Gain Indicator (OC-1-A/N) | X2: Dividend Indicator (OC-1-A/N) | Y2: Record Date (OC-8-N) | Z2: Ex Date (O-8-N) | AA2: Reinvest Date (O-8-N) | AB2: Payable Date (OC-8-N) | AC2: Dividend/Capital Gain Rate (OC-16-N) | AD2: Dividend/Capital Gain Reinvest Price (O-12-N) | AE2: Trade Date/Dealing Date – (Business Date) (OC-8-N) | AF2: Payment Date (O-8-N) | AG2: Documentation Date/Expiration Date (OC-8-N) | AH2: Subscription/Capital Call/Commitment/Purchase Start Date (OC-8-N) | AI2: Subscription/Capital Call/Commitment/Purchase End Date (OC-8-N) | AJ2: Tender Offer/Redemption Start Date (OC-8-N) | AK2: Tender Offer/Redemption End Date (OC-8-N) | AL2: Total Amount of Tender Offer/Redemption Dollars (O-16-N) | AM2: Settlement Date (OC-8-N) | AN2: Settlement Date Override Indicator (O-1-A/N) | AO2: Trading Cutoff Time (O-4-N) | AP2: Trading Cutoff Time Zone (O-3-A/N) | AQ2: Rescission Date (OC-8-N) | AR2: Recurring Transaction Frequency (OC-2-A/N) | AS2: Recurring Transaction Dealing Day (Weekly) (OC-2-A/N) | AT2: Recurring Transaction Dealing Day (Monthly, Quarterly, Annually) (OC-2-A/N) | AU2: Recurring Transaction Dealing Months (Quarterly , Annually) (OC-8-A/N) | AV2: Recurring Transaction Settlement Day (Weekly) (OC-2-A/N) | AW2: Recurring Transaction Settlement Months (Quarterly, Annually) (OC-8-A/N) | AX2: Recurring Transaction Settlement Day (OC-2-A/N) | AY2: Special Commission Advance Indicator (O-1-A/N) | AZ2: Special Commission Rate (OC-8-N) | BA2: YTD Return (O-4-N) | BB2: YTD Positive/Negative Indicator (O-1-A/N) | BC2: VAR(95%) (O-4-N) | BD2: VAR Positive/Negative Indicator (O-1-A/N) | BE2: Sharpe Ratio (O-4-N) | BF2: Sharpe Ratio Positive/Negative Indicator (O-1-A/N) | BG2: Sortino Ratio (O-4-N) | BH2: Sortino Ratio Positive/Negative Indicator (O-1-A/N) | BI2: Automatic Holdback Refund Indicator (O-1-A/N) | BJ2: Holdback Release Date (O-8-N) | BK2: Security Announcement Last Updated (R-8-N) | BL2: Series NSCC Security Issue Number (OC-16-A/N) | BM2: Series Roll-up Date (OC-8-N) | BN2: Initial Price Per Share (O-12-N) | BO2: Total Distributions (O-16-N) | BP2: Ordinary Dividends (O-16-N) | BQ2: Non-Dividend Distributions (O-16-N) | BR2: Contract Note Date (O-8-N) | BS2: Trade Date/Dealing Date – (Calendar Date) (OC-8-N) | BT2: Split/Reverse Split Ratio (OC-5-A/N) | BU2: Total Amount of Tender Offer/Redemption Shares (O-14-N) | BV2: ToBeExecuted
A3: 0487 | G3: |NoTag| | H3: |NoTag| | L3: |NoTag| | V3: |NoTag| | Z3: |NoTag| | AA3: |NoTag| | AD3: |NoTag| | AF3: |NoTag| | AL3: |NoTag| | AN3: |NoTag| | AO3: |NoTag| | AP3: |NoTag| | AY3: |NoTag| | BA3: |NoTag| | BB3: |NoTag| | BC3: |NoTag| | BD3: |NoTag| | BE3: |NoTag| | BF3: |NoTag| | BG3: |NoTag| | BH3: |NoTag| | BI3: |NoTag| | BJ3: |NoTag| | BN3: |NoTag| | BO3: |NoTag| | BP3: |NoTag| | BQ3: |NoTag| | BR3: |NoTag| | BU3: |NoTag| | BV3: No

Sheet SecurityAnnouncement_DD (hidden)
A1: Field Name | B1: Start | C1: End | D1: Length | E1: Type | F1: Opt/Req | G1: Default2Zero
A2: Record Length | B2: 1 | C2: 4 | D2: 4 | E2: N | F2: R | G2: NO
A3: Originator Type | B3: 5 | C3: 5 | D3: 1 | E3: A/N | F3: R
A4: Recipient Number | B4: 6 | C4: 13 | D4: 8 | E4: A/N | F4: R
A5: Fund Number | B5: 14 | C5: 21 | D5: 8 | E5: A/N | F5: R
A6: Record Type | B6: 22 | C6: 24 | D6: 3 | E6: A/N | F6: R
A7: NSCC Security Issue Number | B7: 25 | C7: 40 | D7: 16 | E7: A/N | F7: OC
A8: NSCC Sidepocket ID | B8: 41 | C8: 43 | D8: 3 | E8: A/N | F8: O
A9: Share Class | B9: 44 | C9: 51 | D9: 8 | E9: A/N | F9: O
A10: Security Identifier | B10: 52 | C10: 52 | D10: 1 | E10: A/N | F10: OC
A11: Series Name | B11: 53 | C11: 87 | D11: 35 | E11: A/N | F11: OC
A12: Security Issue ID | B12: 88 | C12: 99 | D12: 12 | E12: A/N | F12: OC
A13: Filler | B13: 100 | C13: 101 | D13: 2 | E13: A/N | F13: R
A14: Requested Action Indicator | B14: 102 | C14: 102 | D14: 1 | E14: A/N | F14: R
A15: NSCC Reject Indicator | B15: 103 | C15: 103 | D15: 1 | E15: A/N | F15: R
A16: NSCC Reject Reason Code 1 | B16: 104 | C16: 107 | D16: 4 | E16: A/N | F16: R
A17: NSCC Reject Reason Code 2 | B17: 108 | C17: 111 | D17: 4 | E17: A/N | F17: R
A18: NSCC Reject Reason Code 3 | B18: 112 | C18: 115 | D18: 4 | E18: A/N | F18: R
A19: NSCC Reject Reason Code 4 | B19: 116 | C19: 119 | D19: 4 | E19: A/N | F19: R
A20: Submission Date | B20: 120 | C20: 127 | D20: 8 | E20: N | F20: R | G20: NO
A21: Effective Date | B21: 128 | C21: 135 | D21: 8 | E21: N | F21: R | G21: NO
A22: Announcement Type | B22: 136 | C22: 137 | D22: 2 | E22: A/N | F22: R
A23: Estimated or Actual Indicator | B23: 138 | C23: 138 | D23: 1 | E23: A/N | F23: O
A24: Capital Gain Indicator | B24: 139 | C24: 139 | D24: 1 | E24: A/N | F24: OC
A25: Dividend Indicator | B25: 140 | C25: 140 | D25: 1 | E25: A/N | F25: OC
A26: Record Date | B26: 141 | C26: 148 | D26: 8 | E26: N | F26: OC | G26: NO
A27: Ex Date | B27: 149 | C27: 156 | D27: 8 | E27: N | F27: O | G27: NO
A28: Reinvest Date | B28: 157 | C28: 164 | D28: 8 | E28: N | F28: O | G28: NO
A29: Payable Date | B29: 165 | C29: 172 | D29: 8 | E29: N | F29: OC | G29: NO
A30: Dividend/Capital Gain Rate | B30: 173 | C30: 188 | D30: 16 | E30: N | F30: OC
A31: Dividend/Capital Gain Reinvest Price | B31: 189 | C31: 200 | D31: 12 | E31: N | F31: O
A32: Trade Date/Dealing Date – (Business Date) | B32: 201 | C32: 208 | D32: 8 | E32: N | F32: OC | G32: NO
A33: Payment Date | B33: 209 | C33: 216 | D33: 8 | E33: N | F33: O | G33: NO
A34: Documentation Date/Expiration Date | B34: 217 | C34: 224 | D34: 8 | E34: N | F34: OC | G34: NO
A35: Subscription/Capital Call/Commitment/Purchase Start Date | B35: 225 | C35: 232 | D35: 8 | E35: N | F35: OC | G35: NO
A36: Subscription/Capital Call/Commitment/Purchase End Date | B36: 233 | C36: 240 | D36: 8 | E36: N | F36: OC | G36: NO
A37: Tender Offer/Redemption Start Date | B37: 241 | C37: 248 | D37: 8 | E37: N | F37: OC | G37: NO
A38: Tender Offer/Redemption End Date | B38: 249 | C38: 256 | D38: 8 | E38: N | F38: OC | G38: NO
A39: Total Amount of Tender Offer/Redemption Dollars | B39: 257 | C39: 272 | D39: 16 | E39: N | F39: O
A40: Settlement Date | B40: 273 | C40: 280 | D40: 8 | E40: N | F40: OC | G40: NO
A41: Settlement Date Override Indicator | B41: 281 | C41: 281 | D41: 1 | E41: A/N | F41: O
A42: Trading Cutoff Time | B42: 282 | C42: 285 | D42: 4 | E42: N | F42: O | G42: NO
A43: Trading Cutoff Time Zone | B43: 286 | C43: 288 | D43: 3 | E43: A/N | F43: O
A44: Rescission Date | B44: 289 | C44: 296 | D44: 8 | E44: N | F44: OC | G44: NO
A45: Recurring Transaction Frequency | B45: 297 | C45: 298 | D45: 2 | E45: A/N | F45: OC
A46: Recurring Transaction Dealing Day (Weekly) | B46: 299 | C46: 300 | D46: 2 | E46: A/N | F46: OC
A47: Recurring Transaction Dealing Day (Monthly, Quarterly, Annually) | B47: 301 | C47: 302 | D47: 2 | E47: A/N | F47: OC
A48: Recurring Transaction Dealing Months (Quarterly , Annually) | B48: 303 | C48: 310 | D48: 8 | E48: A/N | F48: OC
A49: Recurring Transaction Settlement Day (Weekly) | B49: 311 | C49: 312 | D49: 2 | E49: A/N | F49: OC
A50: Recurring Transaction Settlement Months (Quarterly, Annually) | B50: 313 | C50: 320 | D50: 8 | E50: A/N | F50: OC
A51: Recurring Transaction Settlement Day | B51: 321 | C51: 322 | D51: 2 | E51: A/N | F51: OC
A52: Special Commission Advance Indicator | B52: 323 | C52: 323 | D52: 1 | E52: A/N | F52: O
A53: Special Commission Rate | B53: 324 | C53: 331 | D53: 8 | E53: N | F53: OC
A54: YTD Return | B54: 332 | C54: 335 | D54: 4 | E54: N | F54: O
A55: YTD Positive/Negative Indicator | B55: 336 | C55: 336 | D55: 1 | E55: A/N | F55: O
A56: VAR(95%) | B56: 337 | C56: 340 | D56: 4 | E56: N | F56: O
A57: VAR Positive/Negative Indicator | B57: 341 | C57: 341 | D57: 1 | E57: A/N | F57: O
A58: Sharpe Ratio | B58: 342 | C58: 345 | D58: 4 | E58: N | F58: O
A59: Sharpe Ratio Positive/Negative Indicator | B59: 346 | C59: 346 | D59: 1 | E59: A/N | F59: O
A60: Sortino Ratio | B60: 347 | C60: 350 | D60: 4 | E60: N | F60: O
A61: Sortino Ratio Positive/Negative Indicator | B61: 351 | C61: 351 | D61: 1 | E61: A/N | F61: O
A62: Automatic Holdback Refund Indicator | B62: 352 | C62: 352 | D62: 1 | E62: A/N | F62: O
A63: Holdback Release Date | B63: 353 | C63: 360 | D63: 8 | E63: N | F63: O | G63: NO
A64: Security Announcement Last Updated | B64: 361 | C64: 368 | D64: 8 | E64: N | F64: R | G64: NO
A65: Series NSCC Security Issue Number | B65: 369 | C65: 384 | D65: 16 | E65: A/N | F65: OC
A66: Series Roll-up Date | B66: 385 | C66: 392 | D66: 8 | E66: N | F66: OC | G66: NO
A67: Initial Price Per Share | B67: 393 | C67: 404 | D67: 12 | E67: N | F67: O
A68: Total Distributions | B68: 405 | C68: 420 | D68: 16 | E68: N | F68: O
A69: Ordinary Dividends | B69: 421 | C69: 436 | D69: 16 | E69: N | F69: O
A70: Non-Dividend Distributions | B70: 437 | C70: 452 | D70: 16 | E70: N | F70: O
A71: Contract Note Date | B71: 453 | C71: 460 | D71: 8 | E71: N | F71: O | G71: NO
A72: Trade Date/Dealing Date – (Calendar Date) | B72: 461 | C72: 468 | D72: 8 | E72: N | F72: OC | G72: NO
A73: Split/Reverse Split Ratio | B73: 469 | C73: 473 | D73: 5 | E73: A/N | F73: OC
A74: Total Amount of Tender Offer/Redemption Shares | B74: 474 | C74: 487 | D74: 14 | E74: N | F74: O | G74: NO

Sheet SecurityContact
A1: Last Update timestamp : 20-04-20 12:24:23 by Musielak, Victor A. | C1: 063 = Security Contact Note – Red=Required, Blue=Optional, Black=Optional Conditional (see Data Dictionary for condition)
A2: Record Length (R-4-N) | B2: Originator Type (R-1-A/N) | C2: Recipient Number (R-8-A/N) | D2: Fund Number (R-8-A/N) | E2: Record Type (R-3-A/N) | F2: NSCC Security Issue Number (O-16-A/N) | G2: Filler (R-3-A/N) | H2: Share Class (O-8-A/N) | I2: Security Identifier (OC-1-A/N) | J2: Filler (R-35-A/N) | K2: Security Issue ID (OC-12-A/N) | L2: Filler (R-2-A/N) | M2: Requested Action Indicator (R-1-A/N) | N2: NSCC Reject Indicator (R-1-A/N) | O2: NSCC Reject Reason Code 1 (R-4-A/N) | P2: NSCC Reject Reason Code 2 (R-4-A/N) | Q2: NSCC Reject Reason Code 3 (R-4-A/N) | R2: NSCC Reject Reason Code 4 (R-4-A/N) | S2: Submission Date (R-8-N) | T2: Effective Date (R-8-N) | U2: Security Contact Type of Record 1 (R-2-A/N) | V2: Contact Name/Address Line 1 of Record 1 (R-50-A/N) | W2: Contact Name/Address Line 2 of Record 1 (O-50-A/N) | X2: Contact Name Address Line 3 of Record 1 (O-50-A/N) | Y2: Contact Name/Address Line 4 of Record 1 (O-50-A/N) | Z2: Contact City of Record 1 (O-35-A/N) | AA2: Contact State of Record 1 (O-2-A/N) | AB2: Contact Zip/Postal Code of Record 1 (O-15-A/N) | AC2: Contact Country Code of Record 1 (O-3-A/N) | AD2: Contact Telephone Number of Record 1 (O-17-A/N) | AE2: Contact Fax Number of Record 1 (O-17-A/N) | AF2: Contact Email Address of Record 1 (O-100-A/N) | AG2: Security Contact Type of Record 2 (O-2-A/N) | AH2: Contact Name/Address Line 1 of Record 2 (OC-50-A/N) | AI2: Contact Name/Address Line 2 of Record 2 (O-50-A/N) | AJ2: Contact Name/Address Line 3 of Record 2 (O-50-A/N) | AK2: Contact Name/Address Line 4 of Record 2 (O-50-A/N) | AL2: Contact City of Record 2 (O-35-A/N) | AM2: Contact State of Record 2 (O-2-A/N) | AN2: Contact Zip/Postal Code of Record 2 (O-15-A/N) | AO2: Contact Country Code of Record 2 (O-3-A/N) | AP2: Contact Telephone Number of Record 2 (O-17-A/N) | AQ2: Contact Fax Number of Record 2 (O-17-A/N) | AR2: Contact Email Address of Record 2 (O-100-A/N) | AS2: Security Contact Type of Record 3 (O-2-A/N) | AT2: Contact Name/Address Line 1 of Record 3 (OC-50-A/N) | AU2: Contact Name/Address Line 2 of Record 3 (O-50-A/N) | AV2: Contact Name/Address Line 3 of Record 3 (O-50-A/N) | AW2: Contact Name/Address Line 4 of Record 3 (O-50-A/N) | AX2: Contact City of Record 3 (O-35-A/N) | AY2: Contact State of Record 3 (O-2-A/N) | AZ2: Contact Zip/Postal Code of Record 3 (O-15-A/N) | BA2: Contact Country Code of Record 3 (O-3-A/N) | BB2: Contact Telephone Number of Record 3 (O-17-A/N) | BC2: Contact Fax Number of Record 3 (O-17-A/N) | BD2: Contact Email Address of Record 3 (O-100-A/N) | BE2: Security Contact Type of Record 4 (O-2-A/N) | BF2: Contact Name/Address Line 1 of Record 4 (OC-50-A/N) | BG2: Contact Name/Address Line 2 of Record 4 (O-50-A/N) | BH2: Contact Name/Address Line 3 of Record 4 (O-50-A/N) | BI2: Contact Name/Address Line 4 of Record 4 (O-50-A/N) | BJ2: Contact City of Record 4 (O-35-A/N) | BK2: Contact State of Record 4 (O-2-A/N) | BL2: Contact Zip/Postal Code of Record 4 (O-15-A/N) | BM2: Contact Country Code of Record 4 (O-3-A/N) | BN2: Contact Telephone Number of Record 4 (O-17-A/N) | BO2: Contact Fax Number of Record 4 (O-17-A/N) | BP2: Contact Email Address of Record 4 (O-100-A/N) | BQ2: Security Contact Type of Record 5 (O-2-A/N) | BR2: Contact Name/Address Line 1 of Record 5 (OC-50-A/N) | BS2: Contact Name/Address Line 2 of Record 5 (O-50-A/N) | BT2: Contact Name/Address Line 3 of Record 5 (O-50-A/N) | BU2: Contact Name/Address Line 4 of Record 5 (O-50-A/N) | BV2: Contact City of Record 5 (O-35-A/N) | BW2: Contact State of Record 5 (O-2-A/N) | BX2: Contact Zip/Postal Code of Record 5 (O-15-A/N) | BY2: Contact Country Code of Record 5 (O-3-A/N) | BZ2: Contact Telephone Number of Record 5 (O-17-A/N) | CA2: Contact Fax Number of Record 5 (O-17-A/N) | CB2: Contact Email Address of Record 5 (O-100-A/N) | CC2: ToBeExecuted
A3: 2090 | F3: |NoTag| | G3: |NoTag| | H3: |NoTag| | J3: |NoTag| | L3: |NoTag| | W3: |NoTag| | X3: |NoTag| | Y3: |NoTag| | Z3: |NoTag| | AA3: |NoTag| | AB3: |NoTag| | AC3: |NoTag| | AD3: |NoTag| | AE3: |NoTag| | AF3: |NoTag| | AG3: |NoTag| | AI3: |NoTag| | AJ3: |NoTag| | AK3: |NoTag| | AL3: |NoTag| | AM3: |NoTag| | AN3: |NoTag| | AO3: |NoTag| | AP3: |NoTag| | AQ3: |NoTag| | AR3: |NoTag| | AS3: |NoTag| | AU3: |NoTag| | AV3: |NoTag| | AW3: |NoTag| | AX3: |NoTag| | AY3: |NoTag| | AZ3: |NoTag| | BA3: |NoTag| | BB3: |NoTag| | BC3: |NoTag| | BD3: |NoTag| | BE3: |NoTag| | BG3: |NoTag| | BH3: |NoTag| | BI3: |NoTag| | BJ3: |NoTag| | BK3: |NoTag| | BL3: |NoTag| | BM3: |NoTag| | BN3: |NoTag| | BO3: |NoTag| | BP3: |NoTag| | BQ3: |NoTag| | BS3: |NoTag| | BT3: |NoTag| | BU3: |NoTag| | BV3: |NoTag| | BW3: |NoTag| | BX3: |NoTag| | BY3: |NoTag| | BZ3: |NoTag| | CA3: |NoTag| | CB3: |NoTag| | CC3: No

Sheet SecurityContact_DD (hidden)
A1: Field Name | B1: Start | C1: End | D1: Length | E1: Type | F1: Opt/Req | G1: Default2Zero
A2: Record Length | B2: 1 | C2: 4 | D2: 4 | E2: N | F2: R | G2: NO
A3: Originator Type | B3: 5 | C3: 5 | D3: 1 | E3: A/N | F3: R
A4: Recipient Number | B4: 6 | C4: 13 | D4: 8 | E4: A/N | F4: R
A5: Fund Number | B5: 14 | C5: 21 | D5: 8 | E5: A/N | F5: R
A6: Record Type | B6: 22 | C6: 24 | D6: 3 | E6: A/N | F6: R
A7: NSCC Security Issue Number | B7: 25 | C7: 40 | D7: 16 | E7: A/N | F7: O
A8: Filler | B8: 41 | C8: 43 | D8: 3 | E8: A/N | F8: R
A9: Share Class | B9: 44 | C9: 51 | D9: 8 | E9: A/N | F9: O
A10: Security Identifier | B10: 52 | C10: 52 | D10: 1 | E10: A/N | F10: OC
A11: Filler | B11: 53 | C11: 87 | D11: 35 | E11: A/N | F11: R
A12: Security Issue ID | B12: 88 | C12: 99 | D12: 12 | E12: A/N | F12: OC
A13: Filler | B13: 100 | C13: 101 | D13: 2 | E13: A/N | F13: R
A14: Requested Action Indicator | B14: 102 | C14: 102 | D14: 1 | E14: A/N | F14: R
A15: NSCC Reject Indicator | B15: 103 | C15: 103 | D15: 1 | E15: A/N | F15: R
A16: NSCC Reject Reason Code 1 | B16: 104 | C16: 107 | D16: 4 | E16: A/N | F16: R
A17: NSCC Reject Reason Code 2 | B17: 108 | C17: 111 | D17: 4 | E17: A/N | F17: R
A18: NSCC Reject Reason Code 3 | B18: 112 | C18: 115 | D18: 4 | E18: A/N | F18: R
A19: NSCC Reject Reason Code 4 | B19: 116 | C19: 119 | D19: 4 | E19: A/N | F19: R
A20: Submission Date | B20: 120 | C20: 127 | D20: 8 | E20: N | F20: R | G20: NO
A21: Effective Date | B21: 128 | C21: 135 | D21: 8 | E21: N | F21: R | G21: NO
A22: Security Contact Type of Record 1 | B22: 136 | C22: 137 | D22: 2 | E22: A/N | F22: R
A23: Contact Name/Address Line 1 of Record 1 | B23: 138 | C23: 187 | D23: 50 | E23: A/N | F23: R
A24: Contact Name/Address Line 2 of Record 1 | B24: 188 | C24: 237 | D24: 50 | E24: A/N | F24: O
A25: Contact Name Address Line 3 of Record 1 | B25: 238 | C25: 287 | D25: 50 | E25: A/N | F25: O
A26: Contact Name/Address Line 4 of Record 1 | B26: 288 | C26: 337 | D26: 50 | E26: A/N | F26: O
A27: Contact City of Record 1 | B27: 338 | C27: 372 | D27: 35 | E27: A/N | F27: O
A28: Contact State of Record 1 | B28: 373 | C28: 374 | D28: 2 | E28: A/N | F28: O
A29: Contact Zip/Postal Code of Record 1 | B29: 375 | C29: 389 | D29: 15 | E29: A/N | F29: O
A30: Contact Country Code of Record 1 | B30: 390 | C30: 392 | D30: 3 | E30: A/N | F30: O
A31: Contact Telephone Number of Record 1 | B31: 393 | C31: 409 | D31: 17 | E31: A/N | F31: O
A32: Contact Fax Number of Record 1 | B32: 410 | C32: 426 | D32: 17 | E32: A/N | F32: O
A33: Contact Email Address of Record 1 | B33: 427 | C33: 526 | D33: 100 | E33: A/N | F33: O
A34: Security Contact Type of Record 2 | B34: 527 | C34: 528 | D34: 2 | E34: A/N | F34: O
A35: Contact Name/Address Line 1 of Record 2 | B35: 529 | C35: 578 | D35: 50 | E35: A/N | F35: OC
A36: Contact Name/Address Line 2 of Record 2 | B36: 579 | C36: 628 | D36: 50 | E36: A/N | F36: O
A37: Contact Name/Address Line 3 of Record 2 | B37: 629 | C37: 678 | D37: 50 | E37: A/N | F37: O
A38: Contact Name/Address Line 4 of Record 2 | B38: 679 | C38: 728 | D38: 50 | E38: A/N | F38: O
A39: Contact City of Record 2 | B39: 729 | C39: 763 | D39: 35 | E39: A/N | F39: O
A40: Contact State of Record 2 | B40: 764 | C40: 765 | D40: 2 | E40: A/N | F40: O
A41: Contact Zip/Postal Code of Record 2 | B41: 766 | C41: 780 | D41: 15 | E41: A/N | F41: O
A42: Contact Country Code of Record 2 | B42: 781 | C42: 783 | D42: 3 | E42: A/N | F42: O
A43: Contact Telephone Number of Record 2 | B43: 784 | C43: 800 | D43: 17 | E43: A/N | F43: O
A44: Contact Fax Number of Record 2 | B44: 801 | C44: 817 | D44: 17 | E44: A/N | F44: O
A45: Contact Email Address of Record 2 | B45: 818 | C45: 917 | D45: 100 | E45: A/N | F45: O
A46: Security Contact Type of Record 3 | B46: 918 | C46: 919 | D46: 2 | E46: A/N | F46: O
A47: Contact Name/Address Line 1 of Record 3 | B47: 920 | C47: 969 | D47: 50 | E47: A/N | F47: OC
A48: Contact Name/Address Line 2 of Record 3 | B48: 970 | C48: 1019 | D48: 50 | E48: A/N | F48: O
A49: Contact Name/Address Line 3 of Record 3 | B49: 1020 | C49: 1069 | D49: 50 | E49: A/N | F49: O
A50: Contact Name/Address Line 4 of Record 3 | B50: 1070 | C50: 1119 | D50: 50 | E50: A/N | F50: O
A51: Contact City of Record 3 | B51: 1120 | C51: 1154 | D51: 35 | E51: A/N | F51: O
A52: Contact State of Record 3 | B52: 1155 | C52: 1156 | D52: 2 | E52: A/N | F52: O
A53: Contact Zip/Postal Code of Record 3 | B53: 1157 | C53: 1171 | D53: 15 | E53: A/N | F53: O
A54: Contact Country Code of Record 3 | B54: 1172 | C54: 1174 | D54: 3 | E54: A/N | F54: O
A55: Contact Telephone Number of Record 3 | B55: 1175 | C55: 1191 | D55: 17 | E55: A/N | F55: O
A56: Contact Fax Number of Record 3 | B56: 1192 | C56: 1208 | D56: 17 | E56: A/N | F56: O
A57: Contact Email Address of Record 3 | B57: 1209 | C57: 1308 | D57: 100 | E57: A/N | F57: O
A58: Security Contact Type of Record 4 | B58: 1309 | C58: 1310 | D58: 2 | E58: A/N | F58: O
A59: Contact Name/Address Line 1 of Record 4 | B59: 1311 | C59: 1360 | D59: 50 | E59: A/N | F59: OC
A60: Contact Name/Address Line 2 of Record 4 | B60: 1361 | C60: 1410 | D60: 50 | E60: A/N | F60: O
A61: Contact Name/Address Line 3 of Record 4 | B61: 1411 | C61: 1460 | D61: 50 | E61: A/N | F61: O
A62: Contact Name/Address Line 4 of Record 4 | B62: 1461 | C62: 1510 | D62: 50 | E62: A/N | F62: O
A63: Contact City of Record 4 | B63: 1511 | C63: 1545 | D63: 35 | E63: A/N | F63: O
A64: Contact State of Record 4 | B64: 1546 | C64: 1547 | D64: 2 | E64: A/N | F64: O
A65: Contact Zip/Postal Code of Record 4 | B65: 1548 | C65: 1562 | D65: 15 | E65: A/N | F65: O
A66: Contact Country Code of Record 4 | B66: 1563 | C66: 1565 | D66: 3 | E66: A/N | F66: O
A67: Contact Telephone Number of Record 4 | B67: 1566 | C67: 1582 | D67: 17 | E67: A/N | F67: O
A68: Contact Fax Number of Record 4 | B68: 1583 | C68: 1599 | D68: 17 | E68: A/N | F68: O
A69: Contact Email Address of Record 4 | B69: 1600 | C69: 1699 | D69: 100 | E69: A/N | F69: O
A70: Security Contact Type of Record 5 | B70: 1700 | C70: 1701 | D70: 2 | E70: A/N | F70: O
A71: Contact Name/Address Line 1 of Record 5 | B71: 1702 | C71: 1751 | D71: 50 | E71: A/N | F71: OC
A72: Contact Name/Address Line 2 of Record 5 | B72: 1752 | C72: 1801 | D72: 50 | E72: A/N | F72: O
A73: Contact Name/Address Line 3 of Record 5 | B73: 1802 | C73: 1851 | D73: 50 | E73: A/N | F73: O
A74: Contact Name/Address Line 4 of Record 5 | B74: 1852 | C74: 1901 | D74: 50 | E74: A/N | F74: O
A75: Contact City of Record 5 | B75: 1902 | C75: 1936 | D75: 35 | E75: A/N | F75: O
A76: Contact State of Record 5 | B76: 1937 | C76: 1938 | D76: 2 | E76: A/N | F76: O
A77: Contact Zip/Postal Code of Record 5 | B77: 1939 | C77: 1953 | D77: 15 | E77: A/N | F77: O
A78: Contact Country Code of Record 5 | B78: 1954 | C78: 1956 | D78: 3 | E78: A/N | F78: O
A79: Contact Telephone Number of Record 5 | B79: 1957 | C79: 1973 | D79: 17 | E79: A/N | F79: O
A80: Contact Fax Number of Record 5 | B80: 1974 | C80: 1990 | D80: 17 | E80: A/N | F80: O
A81: Contact Email Address of Record 5 | B81: 1991 | C81: 2090 | D81: 100 | E81: A/N | F81: O

Sheet Security Request-Ackn-Reject
A1: Last Update timestamp : 20-04-20 12:25:15 by Musielak, Victor A. | C1: 064 = Security Profile Request 065 = Security Profile Request Acknowledgement 066 = Security Profile Request Reject 067 = Position Request 068 = Position Request Acknowledgement 069 = Position Request Reject Note – Red=Required, Blue=Optional, Black=Optional Conditional (see Data Dictionary for condition)
A2: Record Length (R-4-N) | B2: Originator Type (R-1-A/N) | C2: Firm Number (R-8-A/N) | D2: Fund Number (R-8-A/N) | E2: Record Type (R-3-A/N) | F2: NSCC Security Issue Number (O-16-A/N) | G2: NSCC Sidepocket ID (O-3-A/N) | H2: Share Class (O-8-A/N) | I2: Filler (R-13-A/N) | J2: Control Number (R-20-A/N) | K2: Request Type (R-2-A/N) | L2: Series NSCC Security Issue Number (O-16-A/N) | M2: NSCC Reject Indicator (R-1-A/N) | N2: NSCC Reject Reason Code 1 (R-4-A/N) | O2: NSCC Reject Reason Code 2 (R-4-A/N) | P2: NSCC Reject Reason Code 3 (R-4-A/N) | Q2: NSCC Reject Reason Code 4 (R-4-A/N) | R2: Fund/Firm Reject Indicator (OC-1-A/N) | S2: Fund/Firm Reject Reason Code 1 (OC-4-A/N) | T2: Fund/Firm Reject Reason Code 2 (O-4-A/N) | U2: Fund/Firm Reject Reason Code 3 (O-4-A/N) | V2: Fund/Firm Reject Reason Code 4 (O-4-A/N) | W2: Filler (R-8-A/N) | X2: Position File Schedule (OC-1-A/N) | Y2: Position File Day of Week (OC-1-A/N) | Z2: Position File Numeric Date (OC-2-N) | AA2: Position File Schedule Date (OC-8-N) | AB2: ToBeExecuted
A3: 0156 | F3: |NoTag| | G3: |NoTag| | H3: |NoTag| | I3: |NoTag| | L3: |NoTag| | T3: |NoTag| | U3: |NoTag| | V3: |NoTag| | W3: |NoTag| | AB3: No

Sheet Security Request-Ackn-Reject_DD (hidden)
A1: Field Name | B1: Start | C1: End | D1: Length | E1: Type | F1: Opt/Req | G1: Default2Zero
A2: Record Length | B2: 1 | C2: 4 | D2: 4 | E2: N | F2: R | G2: NO
A3: Originator Type | B3: 5 | C3: 5 | D3: 1 | E3: A/N | F3: R
A4: Firm Number | B4: 6 | C4: 13 | D4: 8 | E4: A/N | F4: R
A5: Fund Number | B5: 14 | C5: 21 | D5: 8 | E5: A/N | F5: R
A6: Record Type | B6: 22 | C6: 24 | D6: 3 | E6: A/N | F6: R
A7: NSCC Security Issue Number | B7: 25 | C7: 40 | D7: 16 | E7: A/N | F7: O
A8: NSCC Sidepocket ID | B8: 41 | C8: 43 | D8: 3 | E8: A/N | F8: O
A9: Share Class | B9: 44 | C9: 51 | D9: 8 | E9: A/N | F9: O
A10: Filler | B10: 52 | C10: 64 | D10: 13 | E10: A/N | F10: R
A11: Control Number | B11: 65 | C11: 84 | D11: 20 | E11: A/N | F11: R
A12: Request Type | B12: 85 | C12: 86 | D12: 2 | E12: A/N | F12: R
A13: Series NSCC Security Issue Number | B13: 87 | C13: 102 | D13: 16 | E13: A/N | F13: O
A14: NSCC Reject Indicator | B14: 103 | C14: 103 | D14: 1 | E14: A/N | F14: R
A15: NSCC Reject Reason Code 1 | B15: 104 | C15: 107 | D15: 4 | E15: A/N | F15: R
A16: NSCC Reject Reason Code 2 | B16: 108 | C16: 111 | D16: 4 | E16: A/N | F16: R
A17: NSCC Reject Reason Code 3 | B17: 112 | C17: 115 | D17: 4 | E17: A/N | F17: R
A18: NSCC Reject Reason Code 4 | B18: 116 | C18: 119 | D18: 4 | E18: A/N | F18: R
A19: Fund/Firm Reject Indicator | B19: 120 | C19: 120 | D19: 1 | E19: A/N | F19: OC
A20: Fund/Firm Reject Reason Code 1 | B20: 121 | C20: 124 | D20: 4 | E20: A/N | F20: OC
A21: Fund/Firm Reject Reason Code 2 | B21: 125 | C21: 128 | D21: 4 | E21: A/N | F21: O
A22: Fund/Firm Reject Reason Code 3 | B22: 129 | C22: 132 | D22: 4 | E22: A/N | F22: O
A23: Fund/Firm Reject Reason Code 4 | B23: 133 | C23: 136 | D23: 4 | E23: A/N | F23: O
A24: Filler | B24: 137 | C24: 144 | D24: 8 | E24: A/N | F24: R
A25: Position File Schedule | B25: 145 | C25: 145 | D25: 1 | E25: A/N | F25: OC
A26: Position File Day of Week | B26: 146 | C26: 146 | D26: 1 | E26: A/N | F26: OC
A27: Position File Numeric Date | B27: 147 | C27: 148 | D27: 2 | E27: N | F27: OC | G27: NO
A28: Position File Schedule Date | B28: 149 | C28: 156 | D28: 8 | E28: N | F28: OC | G28: NO

Sheet OrderwithRegistration
A1: Last Update timestamp : 23-06-29 13:19:05 by Musielak, Victor A. | C1: 011 = Firm Order with Registration 012 = Fund Order with Registration 043 = Prepaid Firm Order with Registration Note – Red=Required, Blue=Optional, Black=Optional Conditional (see Data Dictionary for condition)
A2: Record Length (R-4-N) | B2: Originator Type (R-1-A/N) | C2: Firm Number (R-8-A/N) | D2: Fund Number (R-8-A/N) | E2: Record Type (R-3-A/N) | F2: NSCC Security Issue Number (OC-16-A/N) | G2: NSCC Sidepocket ID (O-3-A/N) | H2: Share Class (O-8-A/N) | I2: Security Identifier (O-1-A/N) | J2: Security Issue ID (O-12-A/N) | K2: Control Number (R-20-A/N) | L2: Correction Indicator (O-1-A/N) | M2: Submission Date (R-8-N) | N2: Trade Date/Dealing Date – (Business Date) (OC-8-N) | O2: Filler (R-1-A/N) | P2: NSCC Reject Indicator (R-1-A/N) | Q2: NSCC Reject Reason Code 1 (R-4-A/N) | R2: NSCC Reject Reason Code 2 (R-4-A/N) | S2: NSCC Reject Reason Code 3 (R-4-A/N) | T2: NSCC Reject Reason Code 4 (R-4-A/N) | U2: Transaction Code (R-2-A/N) | V2: Settlement Date (OC-8-N) | W2: Settlement Indicator (R-1-A/N) | X2: Settlement Date Override Indicator (O-1-A/N) | Y2: Initial Documentation Status Indicator (R-1-A/N) | Z2: Money Amount (OC-16-N) | AA2: Reporting Currency (R-3-A/N) | AB2: Settlement Currency (R-3-A/N) | AC2: Share Quantity (OC-14-N) | AD2: Network Control Indicator (R-1-A/N) | AE2: Firm Account Number (OC-20-A/N) | AF2: Fund Account Number (OC-20-A/N) | AG2: Contract Note Date (O-8-N) | AH2: Series Roll Up Date (O-8-N) | AI2: Custodian Account Number (O-20-A/N) | AJ2: Account Type (R-2-A/N) | AK2: Account Registration Name (R-160-A/N) | AL2: Original Control Number (O-20-A/N) | AM2: RIA/RR Indicator (R-1-A/N) | AN2: Introducing Broker Dealer Firm Name / Registered Investment Advisor Firm Name (OC-35-A/N) | AO2: Account Representative/Advisor Name (OC-15-A/N) | AP2: Account Representative/Advisor Number (OC-9-A/N) | AQ2: Branch ID Number (OC-9-A/N) | AR2: Branch Address 1 (O-35-A/N) | AS2: Branch Address 2 (O-35-A/N) | AT2: Branch Address 3 (O-35-A/N) | AU2: Branch Address 4 (O-35-A/N) | AV2: Branch Address 5 (O-35-A/N) | AW2: Branch Postal Code/Zip Code (OC-11-A/N) | AX2: Branch Country (OC-3-A/N) | AY2: Related Trade Indicator 1 (O-1-A/N) | AZ2: Related Account Number 1 (OC-20-A/N) | BA2: Dealer Concession/Manager Paid Placement Fee Percentage (O-6-N) | BB2: Trading Model (R-1-A/N) | BC2: AIP Firm Role (OC-1-A/N) | BD2: Net/Gross Indicator (OC-1-A/N) | BE2: Account Indicator (R-1-A/N) | BF2: Hybrid Responsibility Indicator (OC-1-A/N) | BG2: Delivery of Fund Notifications (R-1-A/N) | BH2: Load Type Indicator (O-1-A/N) | BI2: Breakpoint Change Reason Code (O-1-A/N) | BJ2: Commission/Placement Fee Amount (OC-16-N) | BK2: Commission/Placement Fee Percentage (OC-6-N) | BL2: Dealer Concession/Manager Paid Placement Fee Amount (O-16-N) | BM2: Firm CRD Number (OC-10-N) | BN2: Dividend Option (O-1-A/N) | BO2: Filler (R-4-A/N) | BP2: SSN/TIN/EIN Indicator (O-1-A/N) | BQ2: SSN/TIN/EIN Number (O-9-A/N) | BR2: Owner DOB (O-8-N) | BS2: Custodian Name (OC-40-A/N) | BT2: Custodian Tax Identification Number (O-9-A/N) | BU2: Joint Owner Name 1 (O-35-A/N) | BV2: Joint Owner SSN 1 (O-9-A/N) | BW2: Joint Owner DOB 1 (O-8-N) | BX2: Backup Withholding Indicator (R-1-A/N) | BY2: W8 Certification Date (OC-8-N) | BZ2: W8 Expiration Date (OC-8-N) | CA2: W8 Qualified Intermediary Indicator (OC-1-A/N) | CB2: W8 Override Country Code (O-3-A/N) | CC2: W8 Override NRA Special Rate (O-8-N) | CD2: LOI/ROA/Side Letter Indicator (O-1-N) | CE2: Side Letter Reference Number (O-20-A/N) | CF2: Individual CRD/IARD Number (OC-10-N) | CG2: Filler (R-6-A/N) | CH2: LOI Number (O-20-A/N) | CI2: LOI/ROA/Side Letter Value (O-16-N) | CJ2: NAV Account Indicator (O-1-A/N) | CK2: ABA Routing Number (O-9-A/N) | CL2: ACH Account Number (O-20-A/N) | CM2: ACH Account Name (O-35-A/N) | CN2: Beneficiary Designation Indicator (O-1-A/N) | CO2: Beneficiary Asset Percent (O-6-N) | CP2: Beneficiary Name (O-35-A/N) | CQ2: Beneficiary SSN (O-9-A/N) | CR2: Beneficiary Relationship (O-2-A/N) | CS2: Beneficiary DOB (O-8-N) | CT2: Chapter 4 Status Code (O-2-A/N) | CU2: Global Intermediary Identification Number (O-25-A/N) | CV2: Underlying Client’s Foreign Tax ID (O-25-A/N) | CW2: FATCA Override Special Rate (O-8-N) | CX2: Trade Date/Dealing Date – (Calendar Date) (O-8-N) | CY2: Gross Amount of Trade (OC-16-N) | CZ2: Accredited Investor Indicator (O-1-A/N) | DA2: Qualified Client Indicator (O-1-A/N) | DB2: Qualified Purchaser Indicator (O-1-A/N) | DC2: Qualified Institutional Buyer Indicator (O-1-A/N) | DD2: State of Sale (O-2-A/N) | DE2: Filler (R-10-A/N) | DF2: Address Type of Record 1 (R-2-A/N) | DG2: Address of Record 1 Line 1 (R-35-A/N) | DH2: Address of Record 1 Line 2 (O-35-A/N) | DI2: Address of Record 1 Line 3 (O-35-A/N) | DJ2: Address of Record 1 Line 4 (O-35-A/N) | DK2: Address of Record 1 Line 5 (O-35-A/N) | DL2: Postal Code/Zip Code of Record 1 (R-11-A/N) | DM2: Country of Record 1 (R-3-A/N) | DN2: Phone Number of Record 1 (O-16-A/N) | DO2: Email Address of Record 1 (O-100-A/N) | DP2: Address Type of Record 2 (OC-2-A/N) | DQ2: Address of Record 2 Line 1 (OC-35-A/N) | DR2: Address of Record 2 Line 2 (O-35-A/N) | DS2: Address of Record 2 Line 3 (O-35-A/N) | DT2: Address of Record 2 Line 4 (O-35-A/N) | DU2: Address of Record 2 Line 5 (O-35-A/N) | DV2: Postal Code/Zip Code of Record 2 (OC-11-A/N) | DW2: Country of Record 2 (OC-3-A/N) | DX2: Phone Number of Record 2 (O-16-A/N) | DY2: Email Address of Record 2 (O-100-A/N) | DZ2: Address Type of Record 3 (OC-2-A/N) | EA2: Address of Record 3 Line 1 (OC-35-A/N) | EB2: Address of Record 3 Line 2 (O-35-A/N) | EC2: Address of Record 3 Line 3 (O-35-A/N) | ED2: Address of Record 3 Line 4 (O-35-A/N) | EE2: Address of Record 3 Line 5 (O-35-A/N) | EF2: Postal Code/Zip Code of Record 3 (OC-11-A/N) | EG2: Country of Record 3 (OC-3-A/N) | EH2: Phone Number of Record 3 (O-16-A/N) | EI2: Email Address of Record 3 (O-100-A/N) | EJ2: Address Type of Record 4 (OC-2-A/N) | EK2: Address of Record 4 Line 1 (OC-35-A/N) | EL2: Address of Record 4 Line 2 (O-35-A/N) | EM2: Address of Record 4 Line 3 (O-35-A/N) | EN2: Address of Record 4 Line 4 (O-35-A/N) | EO2: Address of Record 4 Line 5 (O-35-A/N) | EP2: Postal Code/Zip Code of Record 4 (OC-11-A/N) | EQ2: Country of Record 4 (OC-3-A/N) | ER2: Phone Number of Record 4 (O-16-A/N) | ES2: Email Address of Record 4 (O-100-A/N) | ET2: Address Type of Record 5 (OC-2-A/N) | EU2: Address of Record 5 Line 1 (OC-35-A/N) | EV2: Address of Record 5 Line 2 (O-35-A/N) | EW2: Address of Record 5 Line 3 (O-35-A/N) | EX2: Address of Record 5 Line 4 (O-35-A/N) | EY2: Address of Record 5 Line 5 (O-35-A/N) | EZ2: Postal Code/Zip Code of Record 5 (OC-11-A/N) | FA2: Country of Record 5 (OC-3-A/N) | FB2: Phone Number of Record 5 (O-16-A/N) | FC2: Email Address of Record 5 (O-100-A/N) | FD2: Share Lot Identifier 1 (O-8-N) | FE2: Share Lot Identifier 2 (O-8-N) | FF2: Share Lot Identifier 3 (O-8-N) | FG2: Share Lot Identifier 4 (O-8-N) | FH2: Share Lot Identifier 5 (O-8-N) | FI2: Erisa Eligible Indicator (R-1-A/N) | FJ2: Erisa Percentage (R-6-N) | FK2: Erisa Pre-certified Indicator (R-1-A/N) | FL2: Breakpoint Limit Number (OC-2-N) | FM2: Price Per Share (O-12-N) | FN2: Joint Owner Name 2 (O-35-A/N) | FO2: Joint Owner SSN 2 (O-9-A/N) | FP2: Joint Owner DOB 2 (O-8-N) | FQ2: Joint Owner Name 3 (O-35-A/N) | FR2: Joint Owner SSN 3 (O-9-A/N) | FS2: Joint Owner DOB 3 (O-8-N) | FT2: Joint Owner Name 4 (O-35-A/N) | FU2: Joint Owner SSN 4 (O-9-A/N) | FV2: Joint Owner DOB 4 (O-8-N) | FW2: Joint Owner Name 5 (O-35-A/N) | FX2: Joint Owner SSN 5 (O-9-A/N) | FY2: Joint Owner DOB 5 (O-8-N) | FZ2: Joint Owner Name 6 (O-35-A/N) | GA2: Joint Owner SSN 6 (O-9-A/N) | GB2: Joint Owner DOB 6 (O-8-N) | GC2: Series NSCC Security Issue Number (OC-16-A/N) | GD2: Same Day Multiple Trade Indicator (O-1-A/N) | GE2: Total Trade Amount Value (O-16-N) | GF2: Related Trade Indicator 2 (O-1-A/N) | GG2: Related Account Number 2 (OC-20-A/N) | GH2: Related Trade Indicator 3 (O-1-A/N) | GI2: Related Account Number 3 (OC-20-A/N) | GJ2: Related Trade Indicator 4 (O-1-A/N) | GK2: Related Account Number 4 (OC-20-A/N) | GL2: Related Trade Indicator 5 (O-1-A/N) | GM2: Related Account Number 5 (OC-20-A/N) | GN2: Redemption Reason Code (OC-2-A/N) | GO2: CDSC Amount (O-16-N) | GP2: Redemption Fee (O-16-N) | GQ2: Cost Basis Option (O-2-A/N) | GR2: Redemption Percentage (O-6-N) | GS2: Related Control Number (O-20-A/N) | GT2: TPA Investor ID (O-20-A/N) | GU2: TPA Company (OC-2-A/N) | GV2: ToBeExecuted
A3: 3278 | G3: |NoTag| | H3: |NoTag| | I3: |NoTag| | J3: |NoTag| | L3: |NoTag| | O3: |NoTag| | X3: |NoTag| | AG3: |NoTag| | AH3: |NoTag| | AI3: |NoTag| | AL3: |NoTag| | AR3: |NoTag| | AS3: |NoTag| | AT3: |NoTag| | AU3: |NoTag| | AV3: |NoTag| | AY3: |NoTag| | BA3: |NoTag| | BH3: |NoTag| | BI3: |NoTag| | BL3: |NoTag| | BN3: |NoTag| | BO3: |NoTag| | BP3: |NoTag| | BQ3: |NoTag| | BR3: |NoTag| | BT3: |NoTag| | BU3: |NoTag| | BV3: |NoTag| | BW3: |NoTag| | CB3: |NoTag| | CC3: |NoTag| | CD3: |NoTag| | CE3: |NoTag| | CG3: |NoTag| | CH3: |NoTag| | CI3: |NoTag| | CJ3: |NoTag| | CK3: |NoTag| | CL3: |NoTag| | CM3: |NoTag| | CN3: |NoTag| | CO3: |NoTag| | CP3: |NoTag| | CQ3: |NoTag| | CR3: |NoTag| | CS3: |NoTag| | CT3: |NoTag| | CU3: |NoTag| | CV3: |NoTag| | CW3: |NoTag| | CX3: |NoTag| | CZ3: |NoTag| | DA3: |NoTag| | DB3: |NoTag| | DC3: |NoTag| | DD3: |NoTag| | DE3: |NoTag| | DH3: |NoTag| | DI3: |NoTag| | DJ3: |NoTag| | DK3: |NoTag| | DN3: |NoTag| | DO3: |NoTag| | DR3: |NoTag| | DS3: |NoTag| | DT3: |NoTag| | DU3: |NoTag| | DX3: |NoTag| | DY3: |NoTag| | EB3: |NoTag| | EC3: |NoTag| | ED3: |NoTag| | EE3: |NoTag| | EH3: |NoTag| | EI3: |NoTag| | EL3: |NoTag| | EM3: |NoTag| | EN3: |NoTag| | EO3: |NoTag| | ER3: |NoTag| | ES3: |NoTag| | EV3: |NoTag| | EW3: |NoTag| | EX3: |NoTag| | EY3: |NoTag| | FB3: |NoTag| | FC3: |NoTag| | FD3: |NoTag| | FE3: |NoTag| | FF3: |NoTag| | FG3: |NoTag| | FH3: |NoTag| | FM3: |NoTag| | FN3: |NoTag| | FO3: |NoTag| | FP3: |NoTag| | FQ3: |NoTag| | FR3: |NoTag| | FS3: |NoTag| | FT3: |NoTag| | FU3: |NoTag| | FV3: |NoTag| | FW3: |NoTag| | FX3: |NoTag| | FY3: |NoTag| | FZ3: |NoTag| | GA3: |NoTag| | GB3: |NoTag| | GD3: |NoTag| | GE3: |NoTag| | GF3: |NoTag| | GH3: |NoTag| | GJ3: |NoTag| | GL3: |NoTag| | GO3: |NoTag| | GP3: |NoTag| | GQ3: |NoTag| | GR3: |NoTag| | GS3: |NoTag| | GT3: |NoTag| | GV3: No

Sheet OrderwithRegistration_DD (hidden)
A1: Field Name | B1: Start | C1: End | D1: Length | E1: Type | F1: Opt/Req | G1: Default2Zero
A2: Record Length | B2: 1 | C2: 4 | D2: 4 | E2: N | F2: R | G2: NO
A3: Originator Type | B3: 5 | C3: 5 | D3: 1 | E3: A/N | F3: R
A4: Firm Number | B4: 6 | C4: 13 | D4: 8 | E4: A/N | F4: R
A5: Fund Number | B5: 14 | C5: 21 | D5: 8 | E5: A/N | F5: R
A6: Record Type | B6: 22 | C6: 24 | D6: 3 | E6: A/N | F6: R
A7: NSCC Security Issue Number | B7: 25 | C7: 40 | D7: 16 | E7: A/N | F7: OC
A8: NSCC Sidepocket ID | B8: 41 | C8: 43 | D8: 3 | E8: A/N | F8: O
A9: Share Class | B9: 44 | C9: 51 | D9: 8 | E9: A/N | F9: O
A10: Security Identifier | B10: 52 | C10: 52 | D10: 1 | E10: A/N | F10: O
A11: Security Issue ID | B11: 53 | C11: 64 | D11: 12 | E11: A/N | F11: O
A12: Control Number | B12: 65 | C12: 84 | D12: 20 | E12: A/N | F12: R
A13: Correction Indicator | B13: 85 | C13: 85 | D13: 1 | E13: A/N | F13: O
A14: Submission Date | B14: 86 | C14: 93 | D14: 8 | E14: N | F14: R | G14: NO
A15: Trade Date/Dealing Date – (Business Date) | B15: 94 | C15: 101 | D15: 8 | E15: N | F15: OC | G15: NO
A16: Filler | B16: 102 | C16: 102 | D16: 1 | E16: A/N | F16: R
A17: NSCC Reject Indicator | B17: 103 | C17: 103 | D17: 1 | E17: A/N | F17: R
A18: NSCC Reject Reason Code 1 | B18: 104 | C18: 107 | D18: 4 | E18: A/N | F18: R
A19: NSCC Reject Reason Code 2 | B19: 108 | C19: 111 | D19: 4 | E19: A/N | F19: R
A20: NSCC Reject Reason Code 3 | B20: 112 | C20: 115 | D20: 4 | E20: A/N | F20: R
A21: NSCC Reject Reason Code 4 | B21: 116 | C21: 119 | D21: 4 | E21: A/N | F21: R
A22: Transaction Code | B22: 120 | C22: 121 | D22: 2 | E22: A/N | F22: R
A23: Settlement Date | B23: 122 | C23: 129 | D23: 8 | E23: N | F23: OC | G23: NO
A24: Settlement Indicator | B24: 130 | C24: 130 | D24: 1 | E24: A/N | F24: R
A25: Settlement Date Override Indicator | B25: 131 | C25: 131 | D25: 1 | E25: A/N | F25: O
A26: Initial Documentation Status Indicator | B26: 132 | C26: 132 | D26: 1 | E26: A/N | F26: R
A27: Money Amount | B27: 133 | C27: 148 | D27: 16 | E27: N | F27: OC | G27: NO
A28: Reporting Currency | B28: 149 | C28: 151 | D28: 3 | E28: A/N | F28: R
A29: Settlement Currency | B29: 152 | C29: 154 | D29: 3 | E29: A/N | F29: R
A30: Share Quantity | B30: 155 | C30: 168 | D30: 14 | E30: N | F30: OC | G30: NO
A31: Network Control Indicator | B31: 169 | C31: 169 | D31: 1 | E31: A/N | F31: R
A32: Firm Account Number | B32: 170 | C32: 189 | D32: 20 | E32: A/N | F32: OC
A33: Fund Account Number | B33: 190 | C33: 209 | D33: 20 | E33: A/N | F33: OC
A34: Contract Note Date | B34: 210 | C34: 217 | D34: 8 | E34: N | F34: O | G34: NO
A35: Series Roll Up Date | B35: 218 | C35: 225 | D35: 8 | E35: N | F35: O | G35: NO
A36: Custodian Account Number | B36: 226 | C36: 245 | D36: 20 | E36: A/N | F36: O
A37: Account Type | B37: 246 | C37: 247 | D37: 2 | E37: A/N | F37: R
A38: Account Registration Name | B38: 248 | C38: 407 | D38: 160 | E38: A/N | F38: R
A39: Original Control Number | B39: 408 | C39: 427 | D39: 20 | E39: A/N | F39: O
A40: RIA/RR Indicator | B40: 428 | C40: 428 | D40: 1 | E40: A/N | F40: R
A41: Introducing Broker Dealer Firm Name / Registered Investment Advisor Firm Name | B41: 429 | C41: 463 | D41: 35 | E41: A/N | F41: OC
A42: Account Representative/Advisor Name | B42: 464 | C42: 478 | D42: 15 | E42: A/N | F42: OC
A43: Account Representative/Advisor Number | B43: 479 | C43: 487 | D43: 9 | E43: A/N | F43: OC
A44: Branch ID Number | B44: 488 | C44: 496 | D44: 9 | E44: A/N | F44: OC
A45: Branch Address 1 | B45: 497 | C45: 531 | D45: 35 | E45: A/N | F45: O
A46: Branch Address 2 | B46: 532 | C46: 566 | D46: 35 | E46: A/N | F46: O
A47: Branch Address 3 | B47: 567 | C47: 601 | D47: 35 | E47: A/N | F47: O
A48: Branch Address 4 | B48: 602 | C48: 636 | D48: 35 | E48: A/N | F48: O
A49: Branch Address 5 | B49: 637 | C49: 671 | D49: 35 | E49: A/N | F49: O
A50: Branch Postal Code/Zip Code | B50: 672 | C50: 682 | D50: 11 | E50: A/N | F50: OC
A51: Branch Country | B51: 683 | C51: 685 | D51: 3 | E51: A/N | F51: OC
A52: Related Trade Indicator 1 | B52: 686 | C52: 686 | D52: 1 | E52: A/N | F52: O
A53: Related Account Number 1 | B53: 687 | C53: 706 | D53: 20 | E53: A/N | F53: OC
A54: Dealer Concession/Manager Paid Placement Fee Percentage | B54: 707 | C54: 712 | D54: 6 | E54: N | F54: O
A55: Trading Model | B55: 713 | C55: 713 | D55: 1 | E55: A/N | F55: R
A56: AIP Firm Role | B56: 714 | C56: 714 | D56: 1 | E56: A/N | F56: OC
A57: Net/Gross Indicator | B57: 715 | C57: 715 | D57: 1 | E57: A/N | F57: OC
A58: Account Indicator | B58: 716 | C58: 716 | D58: 1 | E58: A/N | F58: R
A59: Hybrid Responsibility Indicator | B59: 717 | C59: 717 | D59: 1 | E59: A/N | F59: OC
A60: Delivery of Fund Notifications | B60: 718 | C60: 718 | D60: 1 | E60: A/N | F60: R
A61: Load Type Indicator | B61: 719 | C61: 719 | D61: 1 | E61: A/N | F61: O
A62: Breakpoint Change Reason Code | B62: 720 | C62: 720 | D62: 1 | E62: A/N | F62: O
A63: Commission/Placement Fee Amount | B63: 721 | C63: 736 | D63: 16 | E63: N | F63: OC | G63: NO
A64: Commission/Placement Fee Percentage | B64: 737 | C64: 742 | D64: 6 | E64: N | F64: OC | G64: NO
A65: Dealer Concession/Manager Paid Placement Fee Amount | B65: 743 | C65: 758 | D65: 16 | E65: N | F65: O
A66: Firm CRD Number | B66: 759 | C66: 768 | D66: 10 | E66: N | F66: OC | G66: NO
A67: Dividend Option | B67: 769 | C67: 769 | D67: 1 | E67: A/N | F67: O
A68: Filler | B68: 770 | C68: 773 | D68: 4 | E68: A/N | F68: R
A69: SSN/TIN/EIN Indicator | B69: 774 | C69: 774 | D69: 1 | E69: A/N | F69: O
A70: SSN/TIN/EIN Number | B70: 775 | C70: 783 | D70: 9 | E70: A/N | F70: O
A71: Owner DOB | B71: 784 | C71: 791 | D71: 8 | E71: N | F71: O | G71: NO
A72: Custodian Name | B72: 792 | C72: 831 | D72: 40 | E72: A/N | F72: OC
A73: Custodian Tax Identification Number | B73: 832 | C73: 840 | D73: 9 | E73: A/N | F73: O
A74: Joint Owner Name 1 | B74: 841 | C74: 875 | D74: 35 | E74: A/N | F74: O
A75: Joint Owner SSN 1 | B75: 876 | C75: 884 | D75: 9 | E75: A/N | F75: O
A76: Joint Owner DOB 1 | B76: 885 | C76: 892 | D76: 8 | E76: N | F76: O | G76: NO
A77: Backup Withholding Indicator | B77: 893 | C77: 893 | D77: 1 | E77: A/N | F77: R
A78: W8 Certification Date | B78: 894 | C78: 901 | D78: 8 | E78: N | F78: OC | G78: NO
A79: W8 Expiration Date | B79: 902 | C79: 909 | D79: 8 | E79: N | F79: OC | G79: NO
A80: W8 Qualified Intermediary Indicator | B80: 910 | C80: 910 | D80: 1 | E80: A/N | F80: OC
A81: W8 Override Country Code | B81: 911 | C81: 913 | D81: 3 | E81: A/N | F81: O
A82: W8 Override NRA Special Rate | B82: 914 | C82: 921 | D82: 8 | E82: N | F82: O
A83: LOI/ROA/Side Letter Indicator | B83: 922 | C83: 922 | D83: 1 | E83: N | F83: O | G83: NO
A84: Side Letter Reference Number | B84: 923 | C84: 942 | D84: 20 | E84: A/N | F84: O
A85: Individual CRD/IARD Number | B85: 943 | C85: 952 | D85: 10 | E85: N | F85: OC | G85: NO
A86: Filler | B86: 953 | C86: 958 | D86: 6 | E86: A/N | F86: R
A87: LOI Number | B87: 959 | C87: 978 | D87: 20 | E87: A/N | F87: O
A88: LOI/ROA/Side Letter Value | B88: 979 | C88: 994 | D88: 16 | E88: N | F88: O
A89: NAV Account Indicator | B89: 995 | C89: 995 | D89: 1 | E89: A/N | F89: O
A90: ABA Routing Number | B90: 996 | C90: 1004 | D90: 9 | E90: A/N | F90: O
A91: ACH Account Number | B91: 1005 | C91: 1024 | D91: 20 | E91: A/N | F91: O
A92: ACH Account Name | B92: 1025 | C92: 1059 | D92: 35 | E92: A/N | F92: O
A93: Beneficiary Designation Indicator | B93: 1060 | C93: 1060 | D93: 1 | E93: A/N | F93: O
A94: Beneficiary Asset Percent | B94: 1061 | C94: 1066 | D94: 6 | E94: N | F94: O
A95: Beneficiary Name | B95: 1067 | C95: 1101 | D95: 35 | E95: A/N | F95: O
A96: Beneficiary SSN | B96: 1102 | C96: 1110 | D96: 9 | E96: A/N | F96: O
A97: Beneficiary Relationship | B97: 1111 | C97: 1112 | D97: 2 | E97: A/N | F97: O
A98: Beneficiary DOB | B98: 1113 | C98: 1120 | D98: 8 | E98: N | F98: O | G98: NO
A99: Chapter 4 Status Code | B99: 1121 | C99: 1122 | D99: 2 | E99: A/N | F99: O
A100: Global Intermediary Identification Number | B100: 1123 | C100: 1147 | D100: 25 | E100: A/N | F100: O
A101: Underlying Client’s Foreign Tax ID | B101: 1148 | C101: 1172 | D101: 25 | E101: A/N | F101: O
A102: FATCA Override Special Rate | B102: 1173 | C102: 1180 | D102: 8 | E102: N | F102: O
A103: Trade Date/Dealing Date – (Calendar Date) | B103: 1181 | C103: 1188 | D103: 8 | E103: N | F103: O | G103: NO
A104: Gross Amount of Trade | B104: 1189 | C104: 1204 | D104: 16 | E104: N | F104: OC | G104: NO
A105: Accredited Investor Indicator | B105: 1205 | C105: 1205 | D105: 1 | E105: A/N | F105: O
A106: Qualified Client Indicator | B106: 1206 | C106: 1206 | D106: 1 | E106: A/N | F106: O
A107: Qualified Purchaser Indicator | B107: 1207 | C107: 1207 | D107: 1 | E107: A/N | F107: O
A108: Qualified Institutional Buyer Indicator | B108: 1208 | C108: 1208 | D108: 1 | E108: A/N | F108: O
A109: State of Sale | B109: 1209 | C109: 1210 | D109: 2 | E109: A/N | F109: O
A110: Filler | B110: 1211 | C110: 1220 | D110: 10 | E110: A/N | F110: R
A111: Address Type of Record 1 | B111: 1221 | C111: 1222 | D111: 2 | E111: A/N | F111: R
A112: Address of Record 1 Line 1 | B112: 1223 | C112: 1257 | D112: 35 | E112: A/N | F112: R
A113: Address of Record 1 Line 2 | B113: 1258 | C113: 1292 | D113: 35 | E113: A/N | F113: O
A114: Address of Record 1 Line 3 | B114: 1293 | C114: 1327 | D114: 35 | E114: A/N | F114: O
A115: Address of Record 1 Line 4 | B115: 1328 | C115: 1362 | D115: 35 | E115: A/N | F115: O
A116: Address of Record 1 Line 5 | B116: 1363 | C116: 1397 | D116: 35 | E116: A/N | F116: O
A117: Postal Code/Zip Code of Record 1 | B117: 1398 | C117: 1408 | D117: 11 | E117: A/N | F117: R
A118: Country of Record 1 | B118: 1409 | C118: 1411 | D118: 3 | E118: A/N | F118: R
A119: Phone Number of Record 1 | B119: 1412 | C119: 1427 | D119: 16 | E119: A/N | F119: O
A120: Email Address of Record 1 | B120: 1428 | C120: 1527 | D120: 100 | E120: A/N | F120: O
A121: Address Type of Record 2 | B121: 1528 | C121: 1529 | D121: 2 | E121: A/N | F121: OC
A122: Address of Record 2 Line 1 | B122: 1530 | C122: 1564 | D122: 35 | E122: A/N | F122: OC
A123: Address of Record 2 Line 2 | B123: 1565 | C123: 1599 | D123: 35 | E123: A/N | F123: O
A124: Address of Record 2 Line 3 | B124: 1600 | C124: 1634 | D124: 35 | E124: A/N | F124: O
A125: Address of Record 2 Line 4 | B125: 1635 | C125: 1669 | D125: 35 | E125: A/N | F125: O
A126: Address of Record 2 Line 5 | B126: 1670 | C126: 1704 | D126: 35 | E126: A/N | F126: O
A127: Postal Code/Zip Code of Record 2 | B127: 1705 | C127: 1715 | D127: 11 | E127: A/N | F127: OC
A128: Country of Record 2 | B128: 1716 | C128: 1718 | D128: 3 | E128: A/N | F128: OC
A129: Phone Number of Record 2 | B129: 1719 | C129: 1734 | D129: 16 | E129: A/N | F129: O
A130: Email Address of Record 2 | B130: 1735 | C130: 1834 | D130: 100 | E130: A/N | F130: O
A131: Address Type of Record 3 | B131: 1835 | C131: 1836 | D131: 2 | E131: A/N | F131: OC
A132: Address of Record 3 Line 1 | B132: 1837 | C132: 1871 | D132: 35 | E132: A/N | F132: OC
A133: Address of Record 3 Line 2 | B133: 1872 | C133: 1906 | D133: 35 | E133: A/N | F133: O
A134: Address of Record 3 Line 3 | B134: 1907 | C134: 1941 | D134: 35 | E134: A/N | F134: O
A135: Address of Record 3 Line 4 | B135: 1942 | C135: 1976 | D135: 35 | E135: A/N | F135: O
A136: Address of Record 3 Line 5 | B136: 1977 | C136: 2011 | D136: 35 | E136: A/N | F136: O
A137: Postal Code/Zip Code of Record 3 | B137: 2012 | C137: 2022 | D137: 11 | E137: A/N | F137: OC
A138: Country of Record 3 | B138: 2023 | C138: 2025 | D138: 3 | E138: A/N | F138: OC
A139: Phone Number of Record 3 | B139: 2026 | C139: 2041 | D139: 16 | E139: A/N | F139: O
A140: Email Address of Record 3 | B140: 2042 | C140: 2141 | D140: 100 | E140: A/N | F140: O
A141: Address Type of Record 4 | B141: 2142 | C141: 2143 | D141: 2 | E141: A/N | F141: OC
A142: Address of Record 4 Line 1 | B142: 2144 | C142: 2178 | D142: 35 | E142: A/N | F142: OC
A143: Address of Record 4 Line 2 | B143: 2179 | C143: 2213 | D143: 35 | E143: A/N | F143: O
A144: Address of Record 4 Line 3 | B144: 2214 | C144: 2248 | D144: 35 | E144: A/N | F144: O
A145: Address of Record 4 Line 4 | B145: 2249 | C145: 2283 | D145: 35 | E145: A/N | F145: O
A146: Address of Record 4 Line 5 | B146: 2284 | C146: 2318 | D146: 35 | E146: A/N | F146: O
A147: Postal Code/Zip Code of Record 4 | B147: 2319 | C147: 2329 | D147: 11 | E147: A/N | F147: OC
A148: Country of Record 4 | B148: 2330 | C148: 2332 | D148: 3 | E148: A/N | F148: OC
A149: Phone Number of Record 4 | B149: 2333 | C149: 2348 | D149: 16 | E149: A/N | F149: O
A150: Email Address of Record 4 | B150: 2349 | C150: 2448 | D150: 100 | E150: A/N | F150: O
A151: Address Type of Record 5 | B151: 2449 | C151: 2450 | D151: 2 | E151: A/N | F151: OC
A152: Address of Record 5 Line 1 | B152: 2451 | C152: 2485 | D152: 35 | E152: A/N | F152: OC
A153: Address of Record 5 Line 2 | B153: 2486 | C153: 2520 | D153: 35 | E153: A/N | F153: O
A154: Address of Record 5 Line 3 | B154: 2521 | C154: 2555 | D154: 35 | E154: A/N | F154: O
A155: Address of Record 5 Line 4 | B155: 2556 | C155: 2590 | D155: 35 | E155: A/N | F155: O
A156: Address of Record 5 Line 5 | B156: 2591 | C156: 2625 | D156: 35 | E156: A/N | F156: O
A157: Postal Code/Zip Code of Record 5 | B157: 2626 | C157: 2636 | D157: 11 | E157: A/N | F157: OC
A158: Country of Record 5 | B158: 2637 | C158: 2639 | D158: 3 | E158: A/N | F158: OC
A159: Phone Number of Record 5 | B159: 2640 | C159: 2655 | D159: 16 | E159: A/N | F159: O
A160: Email Address of Record 5 | B160: 2656 | C160: 2755 | D160: 100 | E160: A/N | F160: O
A161: Share Lot Identifier 1 | B161: 2756 | C161: 2763 | D161: 8 | E161: N | F161: O | G161: NO
A162: Share Lot Identifier 2 | B162: 2764 | C162: 2771 | D162: 8 | E162: N | F162: O | G162: NO
A163: Share Lot Identifier 3 | B163: 2772 | C163: 2779 | D163: 8 | E163: N | F163: O | G163: NO
A164: Share Lot Identifier 4 | B164: 2780 | C164: 2787 | D164: 8 | E164: N | F164: O | G164: NO
A165: Share Lot Identifier 5 | B165: 2788 | C165: 2795 | D165: 8 | E165: N | F165: O | G165: NO
A166: Erisa Eligible Indicator | B166: 2796 | C166: 2796 | D166: 1 | E166: A/N | F166: R
A167: Erisa Percentage | B167: 2797 | C167: 2802 | D167: 6 | E167: N | F167: R | G167: NO
A168: Erisa Pre-certified Indicator | B168: 2803 | C168: 2803 | D168: 1 | E168: A/N | F168: R
A169: Breakpoint Limit Number | B169: 2804 | C169: 2805 | D169: 2 | E169: N | F169: OC
A170: Price Per Share | B170: 2806 | C170: 2817 | D170: 12 | E170: N | F170: O
A171: Joint Owner Name 2 | B171: 2818 | C171: 2852 | D171: 35 | E171: A/N | F171: O
A172: Joint Owner SSN 2 | B172: 2853 | C172: 2861 | D172: 9 | E172: A/N | F172: O
A173: Joint Owner DOB 2 | B173: 2862 | C173: 2869 | D173: 8 | E173: N | F173: O | G173: NO
A174: Joint Owner Name 3 | B174: 2870 | C174: 2904 | D174: 35 | E174: A/N | F174: O
A175: Joint Owner SSN 3 | B175: 2905 | C175: 2913 | D175: 9 | E175: A/N | F175: O
A176: Joint Owner DOB 3 | B176: 2914 | C176: 2921 | D176: 8 | E176: N | F176: O | G176: NO
A177: Joint Owner Name 4 | B177: 2922 | C177: 2956 | D177: 35 | E177: A/N | F177: O
A178: Joint Owner SSN 4 | B178: 2957 | C178: 2965 | D178: 9 | E178: A/N | F178: O
A179: Joint Owner DOB 4 | B179: 2966 | C179: 2973 | D179: 8 | E179: N | F179: O | G179: NO
A180: Joint Owner Name 5 | B180: 2974 | C180: 3008 | D180: 35 | E180: A/N | F180: O
A181: Joint Owner SSN 5 | B181: 3009 | C181: 3017 | D181: 9 | E181: A/N | F181: O
A182: Joint Owner DOB 5 | B182: 3018 | C182: 3025 | D182: 8 | E182: N | F182: O | G182: NO
A183: Joint Owner Name 6 | B183: 3026 | C183: 3060 | D183: 35 | E183: A/N | F183: O
A184: Joint Owner SSN 6 | B184: 3061 | C184: 3069 | D184: 9 | E184: A/N | F184: O
A185: Joint Owner DOB 6 | B185: 3070 | C185: 3077 | D185: 8 | E185: N | F185: O | G185: NO
A186: Series NSCC Security Issue Number | B186: 3078 | C186: 3093 | D186: 16 | E186: A/N | F186: OC
A187: Same Day Multiple Trade Indicator | B187: 3094 | C187: 3094 | D187: 1 | E187: A/N | F187: O
A188: Total Trade Amount Value | B188: 3095 | C188: 3110 | D188: 16 | E188: N | F188: O
A189: Related Trade Indicator 2 | B189: 3111 | C189: 3111 | D189: 1 | E189: A/N | F189: O
A190: Related Account Number 2 | B190: 3112 | C190: 3131 | D190: 20 | E190: A/N | F190: OC
A191: Related Trade Indicator 3 | B191: 3132 | C191: 3132 | D191: 1 | E191: A/N | F191: O
A192: Related Account Number 3 | B192: 3133 | C192: 3152 | D192: 20 | E192: A/N | F192: OC
A193: Related Trade Indicator 4 | B193: 3153 | C193: 3153 | D193: 1 | E193: A/N | F193: O
A194: Related Account Number 4 | B194: 3154 | C194: 3173 | D194: 20 | E194: A/N | F194: OC
A195: Related Trade Indicator 5 | B195: 3174 | C195: 3174 | D195: 1 | E195: A/N | F195: O
A196: Related Account Number 5 | B196: 3175 | C196: 3194 | D196: 20 | E196: A/N | F196: OC
A197: Redemption Reason Code | B197: 3195 | C197: 3196 | D197: 2 | E197: A/N | F197: OC
A198: CDSC Amount | B198: 3197 | C198: 3212 | D198: 16 | E198: N | F198: O | G198: NO
A199: Redemption Fee | B199: 3213 | C199: 3228 | D199: 16 | E199: N | F199: O | G199: NO
A200: Cost Basis Option | B200: 3229 | C200: 3230 | D200: 2 | E200: A/N | F200: O
... 4 more rows

Sheet Order
A1: Last Update timestamp : 21-07-12 10:08:55 by Musielak, Victor A. | C1: 001 = Firm Order 002 = Fund Order 032 = Prepaid Firm Order Note – Red=Required, Blue=Optional, Black=Optional Conditional (see Data Dictionary for condition)
A2: Record Length (R-4-N) | B2: Originator Type (R-1-A/N) | C2: Firm Number (R-8-A/N) | D2: Fund Number (R-8-A/N) | E2: Record Type (R-3-A/N) | F2: NSCC Security Issue Number (OC-16-A/N) | G2: NSCC Sidepocket ID (O-3-A/N) | H2: Share Class (O-8-A/N) | I2: Security Identifier (O-1-A/N) | J2: Security Issue ID (O-12-A/N) | K2: Control Number (R-20-A/N) | L2: Correction Indicator (O-1-A/N) | M2: Submission Date (R-8-N) | N2: Trade Date/Dealing Date – (Business Date) (OC-8-N) | O2: Registration Indicator (OC-1-A/N) | P2: NSCC Reject Indicator (R-1-A/N) | Q2: NSCC Reject Reason Code 1 (R-4-A/N) | R2: NSCC Reject Reason Code 2 (R-4-A/N) | S2: NSCC Reject Reason Code 3 (R-4-A/N) | T2: NSCC Reject Reason Code 4 (R-4-A/N) | U2: Transaction Code (R-2-A/N) | V2: Settlement Date (OC-8-N) | W2: Settlement Indicator (R-1-A/N) | X2: Settlement Date Override Indicator (O-1-A/N) | Y2: Initial Documentation Status Indicator (R-1-A/N) | Z2: Money Amount (OC-16-N) | AA2: Reporting Currency (R-3-A/N) | AB2: Settlement Currency (R-3-A/N) | AC2: Share Quantity (OC-14-N) | AD2: Network Control Indicator (R-1-A/N) | AE2: Firm Account Number (OC-20-A/N) | AF2: Fund Account Number (OC-20-A/N) | AG2: Contract Note Date (O-8-N) | AH2: Series Roll Up Date (O-8-N) | AI2: Custodian Account Number (O-20-A/N) | AJ2: Account Type (R-2-A/N) | AK2: Account Registration Name (OC-160-A/N) | AL2: Original Control Number (O-20-A/N) | AM2: RIA/RR Indicator (OC-1-A/N) | AN2: Introducing Broker Dealer Firm Name / Registered Investment Advisor Firm Name (OC-35-A/N) | AO2: Account Representative/Advisor Name (OC-15-A/N) | AP2: Account Representative/Advisor Number (OC-9-A/N) | AQ2: Branch ID Number (OC-9-A/N) | AR2: Branch Address 1 (O-35-A/N) | AS2: Branch Address 2 (O-35-A/N) | AT2: Branch Address 3 (O-35-A/N) | AU2: Branch Address 4 (O-35-A/N) | AV2: Branch Address 5 (O-35-A/N) | AW2: Branch Postal Code/Zip Code (OC-11-A/N) | AX2: Branch Country (OC-3-A/N) | AY2: Related Trade Indicator 1 (O-1-A/N) | AZ2: Related Account Number 1 (OC-20-A/N) | BA2: Dealer Concession/Manager Paid Placement Fee Percentage (O-6-N) | BB2: Trading Model (R-1-A/N) | BC2: AIP Firm Role (OC-1-A/N) | BD2: NAV Account Indicator (O-1-A/N) | BE2: Net/Gross Indicator (OC-1-A/N) | BF2: Filler (R-2-A/N) | BG2: Load Type Indicator (O-1-A/N) | BH2: Breakpoint Change Reason Code (O-1-A/N) | BI2: Commission/Placement Fee Amount (OC-16-N) | BJ2: Commission/Placement Fee Percentage (OC-6-N) | BK2: Dealer Concession/Manager Paid Placement Fee Amount (O-16-N) | BL2: Redemption Percentage (O-6-N) | BM2: Share Lot Identifier 1 (O-8-N) | BN2: Share Lot Identifier 2 (O-8-N) | BO2: Share Lot Identifier 3 (O-8-N) | BP2: Share Lot Identifier 4 (O-8-N) | BQ2: Share Lot Identifier 5 (O-8-N) | BR2: Erisa Eligible Indicator (O-1-A/N) | BS2: Erisa Percentage (O-6-N) | BT2: Erisa Pre-certified Indicator (O-1-A/N) | BU2: Breakpoint Limit Number (OC-2-N) | BV2: Price Per Share (O-12-N) | BW2: Series NSCC Security Issue Number (OC-16-A/N) | BX2: Same Day Multiple Trade Indicator (O-1-A/N) | BY2: Total Trade Amount Value (O-16-N) | BZ2: Related Trade Indicator 2 (O-1-A/N) | CA2: Related Account Number 2 (OC-20-A/N) | CB2: Related Trade Indicator 3 (O-1-A/N) | CC2: Related Account Number 3 (OC-20-A/N) | CD2: Related Trade Indicator 4 (O-1-A/N) | CE2: Related Account Number 4 (OC-20-A/N) | CF2: Related Trade Indicator 5 (O-1-A/N) | CG2: Related Account Number 5 (OC-20-A/N) | CH2: Firm CRD Number (OC-10-N) | CI2: Individual CRD/IARD Number (OC-10-N) | CJ2: Trade Date/Dealing Date – (Calendar Date) (O-8-N) | CK2: Gross Amount of Trade (OC-16-N) | CL2: Accredited Investor Indicator (O-1-A/N) | CM2: Qualified Client Indicator (O-1-A/N) | CN2: Qualified Purchaser Indicator (O-1-A/N) | CO2: Qualified Institutional Buyer Indicator (O-1-A/N) | CP2: State of Sale (O-2-A/N) | CQ2: Redemption Reason Code (OC-2-A/N) | CR2: CDSC Amount (O-16-N) | CS2: Redemption Fee (O-16-N) | CT2: Cost Basis Option (O-2-A/N) | CU2: Related Control Number (O-20-A/N) | CV2: ToBeExecuted
A3: 1049 | G3: |NoTag| | H3: |NoTag| | I3: |NoTag| | J3: |NoTag| | L3: |NoTag| | X3: |NoTag| | AG3: |NoTag| | AH3: |NoTag| | AI3: |NoTag| | AL3: |NoTag| | AR3: |NoTag| | AS3: |NoTag| | AT3: |NoTag| | AU3: |NoTag| | AV3: |NoTag| | AY3: |NoTag| | BA3: |NoTag| | BD3: |NoTag| | BF3: |NoTag| | BG3: |NoTag| | BH3: |NoTag| | BK3: |NoTag| | BL3: |NoTag| | BM3: |NoTag| | BN3: |NoTag| | BO3: |NoTag| | BP3: |NoTag| | BQ3: |NoTag| | BR3: |NoTag| | BS3: |NoTag| | BT3: |NoTag| | BV3: |NoTag| | BX3: |NoTag| | BY3: |NoTag| | BZ3: |NoTag| | CB3: |NoTag| | CD3: |NoTag| | CF3: |NoTag| | CJ3: |NoTag| | CL3: |NoTag| | CM3: |NoTag| | CN3: |NoTag| | CO3: |NoTag| | CP3: |NoTag| | CR3: |NoTag| | CS3: |NoTag| | CT3: |NoTag| | CU3: |NoTag| | CV3: No
XFD4: yes

Sheet Order_DD (hidden)
A1: Field Name | B1: Start | C1: End | D1: Length | E1: Type | F1: Opt/Req | G1: Default2Zero
A2: Record Length | B2: 1 | C2: 4 | D2: 4 | E2: N | F2: R | G2: NO
A3: Originator Type | B3: 5 | C3: 5 | D3: 1 | E3: A/N | F3: R
A4: Firm Number | B4: 6 | C4: 13 | D4: 8 | E4: A/N | F4: R
A5: Fund Number | B5: 14 | C5: 21 | D5: 8 | E5: A/N | F5: R
A6: Record Type | B6: 22 | C6: 24 | D6: 3 | E6: A/N | F6: R
A7: NSCC Security Issue Number | B7: 25 | C7: 40 | D7: 16 | E7: A/N | F7: OC
A8: NSCC Sidepocket ID | B8: 41 | C8: 43 | D8: 3 | E8: A/N | F8: O
A9: Share Class | B9: 44 | C9: 51 | D9: 8 | E9: A/N | F9: O
A10: Security Identifier | B10: 52 | C10: 52 | D10: 1 | E10: A/N | F10: O
A11: Security Issue ID | B11: 53 | C11: 64 | D11: 12 | E11: A/N | F11: O
A12: Control Number | B12: 65 | C12: 84 | D12: 20 | E12: A/N | F12: R
A13: Correction Indicator | B13: 85 | C13: 85 | D13: 1 | E13: A/N | F13: O
A14: Submission Date | B14: 86 | C14: 93 | D14: 8 | E14: N | F14: R | G14: NO
A15: Trade Date/Dealing Date – (Business Date) | B15: 94 | C15: 101 | D15: 8 | E15: N | F15: OC | G15: NO
A16: Registration Indicator | B16: 102 | C16: 102 | D16: 1 | E16: A/N | F16: OC
A17: NSCC Reject Indicator | B17: 103 | C17: 103 | D17: 1 | E17: A/N | F17: R
A18: NSCC Reject Reason Code 1 | B18: 104 | C18: 107 | D18: 4 | E18: A/N | F18: R
A19: NSCC Reject Reason Code 2 | B19: 108 | C19: 111 | D19: 4 | E19: A/N | F19: R
A20: NSCC Reject Reason Code 3 | B20: 112 | C20: 115 | D20: 4 | E20: A/N | F20: R
A21: NSCC Reject Reason Code 4 | B21: 116 | C21: 119 | D21: 4 | E21: A/N | F21: R
A22: Transaction Code | B22: 120 | C22: 121 | D22: 2 | E22: A/N | F22: R
A23: Settlement Date | B23: 122 | C23: 129 | D23: 8 | E23: N | F23: OC | G23: NO
A24: Settlement Indicator | B24: 130 | C24: 130 | D24: 1 | E24: A/N | F24: R
A25: Settlement Date Override Indicator | B25: 131 | C25: 131 | D25: 1 | E25: A/N | F25: O
A26: Initial Documentation Status Indicator | B26: 132 | C26: 132 | D26: 1 | E26: A/N | F26: R
A27: Money Amount | B27: 133 | C27: 148 | D27: 16 | E27: N | F27: OC | G27: NO
A28: Reporting Currency | B28: 149 | C28: 151 | D28: 3 | E28: A/N | F28: R
A29: Settlement Currency | B29: 152 | C29: 154 | D29: 3 | E29: A/N | F29: R
A30: Share Quantity | B30: 155 | C30: 168 | D30: 14 | E30: N | F30: OC | G30: NO
A31: Network Control Indicator | B31: 169 | C31: 169 | D31: 1 | E31: A/N | F31: R
A32: Firm Account Number | B32: 170 | C32: 189 | D32: 20 | E32: A/N | F32: OC
A33: Fund Account Number | B33: 190 | C33: 209 | D33: 20 | E33: A/N | F33: OC
A34: Contract Note Date | B34: 210 | C34: 217 | D34: 8 | E34: N | F34: O | G34: NO
A35: Series Roll Up Date | B35: 218 | C35: 225 | D35: 8 | E35: N | F35: O | G35: NO
A36: Custodian Account Number | B36: 226 | C36: 245 | D36: 20 | E36: A/N | F36: O | G36: NO
A37: Account Type | B37: 246 | C37: 247 | D37: 2 | E37: A/N | F37: R
A38: Account Registration Name | B38: 248 | C38: 407 | D38: 160 | E38: A/N | F38: OC
A39: Original Control Number | B39: 408 | C39: 427 | D39: 20 | E39: A/N | F39: O
A40: RIA/RR Indicator | B40: 428 | C40: 428 | D40: 1 | E40: A/N | F40: OC
A41: Introducing Broker Dealer Firm Name / Registered Investment Advisor Firm Name | B41: 429 | C41: 463 | D41: 35 | E41: A/N | F41: OC
A42: Account Representative/Advisor Name | B42: 464 | C42: 478 | D42: 15 | E42: A/N | F42: OC
A43: Account Representative/Advisor Number | B43: 479 | C43: 487 | D43: 9 | E43: A/N | F43: OC
A44: Branch ID Number | B44: 488 | C44: 496 | D44: 9 | E44: A/N | F44: OC
A45: Branch Address 1 | B45: 497 | C45: 531 | D45: 35 | E45: A/N | F45: O
A46: Branch Address 2 | B46: 532 | C46: 566 | D46: 35 | E46: A/N | F46: O
A47: Branch Address 3 | B47: 567 | C47: 601 | D47: 35 | E47: A/N | F47: O
A48: Branch Address 4 | B48: 602 | C48: 636 | D48: 35 | E48: A/N | F48: O
A49: Branch Address 5 | B49: 637 | C49: 671 | D49: 35 | E49: A/N | F49: O
A50: Branch Postal Code/Zip Code | B50: 672 | C50: 682 | D50: 11 | E50: A/N | F50: OC
A51: Branch Country | B51: 683 | C51: 685 | D51: 3 | E51: A/N | F51: OC
A52: Related Trade Indicator 1 | B52: 686 | C52: 686 | D52: 1 | E52: A/N | F52: O
A53: Related Account Number 1 | B53: 687 | C53: 706 | D53: 20 | E53: A/N | F53: OC
A54: Dealer Concession/Manager Paid Placement Fee Percentage | B54: 707 | C54: 712 | D54: 6 | E54: N | F54: O
A55: Trading Model | B55: 713 | C55: 713 | D55: 1 | E55: A/N | F55: R
A56: AIP Firm Role | B56: 714 | C56: 714 | D56: 1 | E56: A/N | F56: OC
A57: NAV Account Indicator | B57: 715 | C57: 715 | D57: 1 | E57: A/N | F57: O
A58: Net/Gross Indicator | B58: 716 | C58: 716 | D58: 1 | E58: A/N | F58: OC
A59: Filler | B59: 717 | C59: 718 | D59: 2 | E59: A/N | F59: R
A60: Load Type Indicator | B60: 719 | C60: 719 | D60: 1 | E60: A/N | F60: O
A61: Breakpoint Change Reason Code | B61: 720 | C61: 720 | D61: 1 | E61: A/N | F61: O
A62: Commission/Placement Fee Amount | B62: 721 | C62: 736 | D62: 16 | E62: N | F62: OC | G62: NO
A63: Commission/Placement Fee Percentage | B63: 737 | C63: 742 | D63: 6 | E63: N | F63: OC | G63: NO
A64: Dealer Concession/Manager Paid Placement Fee Amount | B64: 743 | C64: 758 | D64: 16 | E64: N | F64: O
A65: Redemption Percentage | B65: 759 | C65: 764 | D65: 6 | E65: N | F65: O
A66: Share Lot Identifier 1 | B66: 765 | C66: 772 | D66: 8 | E66: N | F66: O | G66: NO
A67: Share Lot Identifier 2 | B67: 773 | C67: 780 | D67: 8 | E67: N | F67: O | G67: NO
A68: Share Lot Identifier 3 | B68: 781 | C68: 788 | D68: 8 | E68: N | F68: O | G68: NO
A69: Share Lot Identifier 4 | B69: 789 | C69: 796 | D69: 8 | E69: N | F69: O | G69: NO
A70: Share Lot Identifier 5 | B70: 797 | C70: 804 | D70: 8 | E70: N | F70: O | G70: NO
A71: Erisa Eligible Indicator | B71: 805 | C71: 805 | D71: 1 | E71: A/N | F71: O
A72: Erisa Percentage | B72: 806 | C72: 811 | D72: 6 | E72: N | F72: O | G72: NO
A73: Erisa Pre-certified Indicator | B73: 812 | C73: 812 | D73: 1 | E73: A/N | F73: O
A74: Breakpoint Limit Number | B74: 813 | C74: 814 | D74: 2 | E74: N | F74: OC | G74: NO
A75: Price Per Share | B75: 815 | C75: 826 | D75: 12 | E75: N | F75: O
A76: Series NSCC Security Issue Number | B76: 827 | C76: 842 | D76: 16 | E76: A/N | F76: OC
A77: Same Day Multiple Trade Indicator | B77: 843 | C77: 843 | D77: 1 | E77: A/N | F77: O
A78: Total Trade Amount Value | B78: 844 | C78: 859 | D78: 16 | E78: N | F78: O
A79: Related Trade Indicator 2 | B79: 860 | C79: 860 | D79: 1 | E79: A/N | F79: O
A80: Related Account Number 2 | B80: 861 | C80: 880 | D80: 20 | E80: A/N | F80: OC
A81: Related Trade Indicator 3 | B81: 881 | C81: 881 | D81: 1 | E81: A/N | F81: O
A82: Related Account Number 3 | B82: 882 | C82: 901 | D82: 20 | E82: A/N | F82: OC
A83: Related Trade Indicator 4 | B83: 902 | C83: 902 | D83: 1 | E83: A/N | F83: O
A84: Related Account Number 4 | B84: 903 | C84: 922 | D84: 20 | E84: A/N | F84: OC
A85: Related Trade Indicator 5 | B85: 923 | C85: 923 | D85: 1 | E85: A/N | F85: O
A86: Related Account Number 5 | B86: 924 | C86: 943 | D86: 20 | E86: A/N | F86: OC
A87: Firm CRD Number | B87: 944 | C87: 953 | D87: 10 | E87: N | F87: OC | G87: NO
A88: Individual CRD/IARD Number | B88: 954 | C88: 963 | D88: 10 | E88: N | F88: OC | G88: NO
A89: Trade Date/Dealing Date – (Calendar Date) | B89: 964 | C89: 971 | D89: 8 | E89: N | F89: O | G89: NO
A90: Gross Amount of Trade | B90: 972 | C90: 987 | D90: 16 | E90: N | F90: OC | G90: NO
A91: Accredited Investor Indicator | B91: 988 | C91: 988 | D91: 1 | E91: A/N | F91: O
A92: Qualified Client Indicator | B92: 989 | C92: 989 | D92: 1 | E92: A/N | F92: O
A93: Qualified Purchaser Indicator | B93: 990 | C93: 990 | D93: 1 | E93: A/N | F93: O
A94: Qualified Institutional Buyer Indicator | B94: 991 | C94: 991 | D94: 1 | E94: A/N | F94: O
A95: State of Sale | B95: 992 | C95: 993 | D95: 2 | E95: A/N | F95: O
A96: Redemption Reason Code | B96: 994 | C96: 995 | D96: 2 | E96: A/N | F96: OC
A97: CDSC Amount | B97: 996 | C97: 1011 | D97: 16 | E97: N | F97: O | G97: NO
A98: Redemption Fee | B98: 1012 | C98: 1027 | D98: 16 | E98: N | F98: O | G98: NO
A99: Cost Basis Option | B99: 1028 | C99: 1029 | D99: 2 | E99: A/N | F99: O
A100: Related Control Number | B100: 1030 | C100: 1049 | D100: 20 | E100: A/N | F100: O

Sheet Order Ackn-Rej-Exit
A1: Last Update timestamp : 20-04-20 13:49:03 by Musielak, Victor A. | C1: 003 = Firm Acknowledgement of Fund Order 004 = Firm Reject of Fund Order 005 = Fund Acknowledgement of Firm Order 006 = Fund Reject of Firm Order 009 = Firm Exit of Order 010 = Fund Exit of Order 036 = Fund Acknowledgement of Prepaid Order 037 = Fund Reject of Prepaid Order 038 = Firm Exit of Prepaid Order Note – Red=Required, Blue=Optional, Black=Optional Conditional (see Data Dictionary for condition)
A2: Record Length (R-4-N) | B2: Originator Type (R-1-A/N) | C2: Firm Number (R-8-A/N) | D2: Fund Number (R-8-A/N) | E2: Record Type (R-3-A/N) | F2: NSCC Security Issue Number (OC-16-A/N) | G2: NSCC Sidepocket ID (O-3-A/N) | H2: Share Class (O-8-A/N) | I2: Security Identifier (O-1-A/N) | J2: Security Issue ID (O-12-A/N) | K2: Control Number (R-20-A/N) | L2: Re-acknowledgement Indicator (OC-1-A/N) | M2: Submission Date (R-8-N) | N2: Trade Date/Dealing Date – (Business Date) (OC-8-N) | O2: Registration Indicator (OC-1-A/N) | P2: NSCC Reject Indicator (R-1-A/N) | Q2: NSCC Reject Reason Code 1 (R-4-A/N) | R2: NSCC Reject Reason Code 2 (R-4-A/N) | S2: NSCC Reject Reason Code 3 (R-4-A/N) | T2: NSCC Reject Reason Code 4 (R-4-A/N) | U2: Transaction Code (S-2-A/N) | V2: Settlement Date (O-8-N) | W2: Settlement Indicator (S-1-A/N) | X2: Settlement Date Override Indicator (S-1-A/N) | Y2: Filler (R-1-A/N) | Z2: Money Amount (S-16-N) | AA2: Reporting Currency (S-3-A/N) | AB2: Settlement Currency (S-3-A/N) | AC2: Share Quantity (S-14-N) | AD2: Net/Gross Indicator (S-1-A/N) | AE2: Firm Account Number (S-20-A/N) | AF2: Fund Account Number (S-20-A/N) | AG2: Contract Note Date (S-8-N) | AH2: Series Roll Up Date (S-8-N) | AI2: Trade Date/Dealing Date – (Calendar Date) (S-8-N) | AJ2: Filler (R-49-A/N) | AK2: Original Control Number (S-20-A/N) | AL2: Filler (R-444-A/N) | AM2: Series NSCC Security Issue Number (OC-16-A/N) | AN2: Fund/Firm Reject-Exit Indicator (OC-1-A/N) | AO2: Fund/Firm Reject-Exit Reason Code 1 (OC-4-A/N) | AP2: Fund/Firm Reject-Exit Reason Code 2 (O-4-A/N) | AQ2: Fund/Firm Reject-Exit Reason Code 3 (O-4-A/N) | AR2: Fund/Firm Reject-Exit Reason Code 4 (O-4-A/N) | AS2: Filler (R-1-A/N) | AT2: Payment Status Indicator (OC-1-A/N) | AU2: Equalization Amount (O-16-N) | AV2: Equalization Percentage (O-6-N) | AW2: Equalization Debit/Credit Indicator (OC-1-A/N) | AX2: Erisa Eligible Indicator (O-1-A/N) | AY2: Erisa Percentage (O-6-N) | AZ2: Erisa Pre-certified Indicator (O-1-A/N) | BA2: ToBeExecuted
A3: 0812 | G3: |NoTag| | H3: |NoTag| | I3: |NoTag| | J3: |NoTag| | U3: |NoTag| | V3: |NoTag| | W3: |NoTag| | X3: |NoTag| | Y3: |NoTag| | Z3: |NoTag| | AA3: |NoTag| | AB3: |NoTag| | AC3: |NoTag| | AD3: |NoTag| | AE3: |NoTag| | AF3: |NoTag| | AG3: |NoTag| | AH3: |NoTag| | AI3: |NoTag| | AJ3: |NoTag| | AK3: |NoTag| | AL3: |NoTag| | AP3: |NoTag| | AQ3: |NoTag| | AR3: |NoTag| | AS3: |NoTag| | AU3: |NoTag| | AV3: |NoTag| | AX3: |NoTag| | AY3: |NoTag| | AZ3: |NoTag| | BA3: No
XFD4: y

Sheet Order Ackn-Rej-Exit_DD (hidden)
A1: Field Name | B1: Start | C1: End | D1: Length | E1: Type | F1: Opt/Req | G1: Default2Zero
A2: Record Length | B2: 1 | C2: 4 | D2: 4 | E2: N | F2: R | G2: NO
A3: Originator Type | B3: 5 | C3: 5 | D3: 1 | E3: A/N | F3: R
A4: Firm Number | B4: 6 | C4: 13 | D4: 8 | E4: A/N | F4: R
A5: Fund Number | B5: 14 | C5: 21 | D5: 8 | E5: A/N | F5: R
A6: Record Type | B6: 22 | C6: 24 | D6: 3 | E6: A/N | F6: R
A7: NSCC Security Issue Number | B7: 25 | C7: 40 | D7: 16 | E7: A/N | F7: OC
A8: NSCC Sidepocket ID | B8: 41 | C8: 43 | D8: 3 | E8: A/N | F8: O
A9: Share Class | B9: 44 | C9: 51 | D9: 8 | E9: A/N | F9: O
A10: Security Identifier | B10: 52 | C10: 52 | D10: 1 | E10: A/N | F10: O
A11: Security Issue ID | B11: 53 | C11: 64 | D11: 12 | E11: A/N | F11: O
A12: Control Number | B12: 65 | C12: 84 | D12: 20 | E12: A/N | F12: R
A13: Re-acknowledgement Indicator | B13: 85 | C13: 85 | D13: 1 | E13: A/N | F13: OC
A14: Submission Date | B14: 86 | C14: 93 | D14: 8 | E14: N | F14: R | G14: NO
A15: Trade Date/Dealing Date – (Business Date) | B15: 94 | C15: 101 | D15: 8 | E15: N | F15: OC | G15: NO
A16: Registration Indicator | B16: 102 | C16: 102 | D16: 1 | E16: A/N | F16: OC
A17: NSCC Reject Indicator | B17: 103 | C17: 103 | D17: 1 | E17: A/N | F17: R
A18: NSCC Reject Reason Code 1 | B18: 104 | C18: 107 | D18: 4 | E18: A/N | F18: R
A19: NSCC Reject Reason Code 2 | B19: 108 | C19: 111 | D19: 4 | E19: A/N | F19: R
A20: NSCC Reject Reason Code 3 | B20: 112 | C20: 115 | D20: 4 | E20: A/N | F20: R
A21: NSCC Reject Reason Code 4 | B21: 116 | C21: 119 | D21: 4 | E21: A/N | F21: R
A22: Transaction Code | B22: 120 | C22: 121 | D22: 2 | E22: A/N | F22: S
A23: Settlement Date | B23: 122 | C23: 129 | D23: 8 | E23: N | F23: O | G23: NO
A24: Settlement Indicator | B24: 130 | C24: 130 | D24: 1 | E24: A/N | F24: S
A25: Settlement Date Override Indicator | B25: 131 | C25: 131 | D25: 1 | E25: A/N | F25: S
A26: Filler | B26: 132 | C26: 132 | D26: 1 | E26: A/N | F26: R
A27: Money Amount | B27: 133 | C27: 148 | D27: 16 | E27: N | F27: S | G27: NO
A28: Reporting Currency | B28: 149 | C28: 151 | D28: 3 | E28: A/N | F28: S
A29: Settlement Currency | B29: 152 | C29: 154 | D29: 3 | E29: A/N | F29: S
A30: Share Quantity | B30: 155 | C30: 168 | D30: 14 | E30: N | F30: S | G30: NO
A31: Net/Gross Indicator | B31: 169 | C31: 169 | D31: 1 | E31: A/N | F31: S
A32: Firm Account Number | B32: 170 | C32: 189 | D32: 20 | E32: A/N | F32: S
A33: Fund Account Number | B33: 190 | C33: 209 | D33: 20 | E33: A/N | F33: S
A34: Contract Note Date | B34: 210 | C34: 217 | D34: 8 | E34: N | F34: S | G34: NO
A35: Series Roll Up Date | B35: 218 | C35: 225 | D35: 8 | E35: N | F35: S | G35: NO
A36: Trade Date/Dealing Date – (Calendar Date) | B36: 226 | C36: 233 | D36: 8 | E36: N | F36: S | G36: NO
A37: Filler | B37: 234 | C37: 282 | D37: 49 | E37: A/N | F37: R
A38: Original Control Number | B38: 283 | C38: 302 | D38: 20 | E38: A/N | F38: S
A39: Filler | B39: 303 | C39: 746 | D39: 444 | E39: A/N | F39: R
A40: Series NSCC Security Issue Number | B40: 747 | C40: 762 | D40: 16 | E40: A/N | F40: OC
A41: Fund/Firm Reject-Exit Indicator | B41: 763 | C41: 763 | D41: 1 | E41: A/N | F41: OC
A42: Fund/Firm Reject-Exit Reason Code 1 | B42: 764 | C42: 767 | D42: 4 | E42: A/N | F42: OC
A43: Fund/Firm Reject-Exit Reason Code 2 | B43: 768 | C43: 771 | D43: 4 | E43: A/N | F43: O
A44: Fund/Firm Reject-Exit Reason Code 3 | B44: 772 | C44: 775 | D44: 4 | E44: A/N | F44: O
A45: Fund/Firm Reject-Exit Reason Code 4 | B45: 776 | C45: 779 | D45: 4 | E45: A/N | F45: O
A46: Filler | B46: 780 | C46: 780 | D46: 1 | E46: A/N | F46: R
A47: Payment Status Indicator | B47: 781 | C47: 781 | D47: 1 | E47: A/N | F47: OC
A48: Equalization Amount | B48: 782 | C48: 797 | D48: 16 | E48: N | F48: O
A49: Equalization Percentage | B49: 798 | C49: 803 | D49: 6 | E49: N | F49: O
A50: Equalization Debit/Credit Indicator | B50: 804 | C50: 804 | D50: 1 | E50: A/N | F50: OC
A51: Erisa Eligible Indicator | B51: 805 | C51: 805 | D51: 1 | E51: A/N | F51: O
A52: Erisa Percentage | B52: 806 | C52: 811 | D52: 6 | E52: N | F52: O | G52: NO
A53: Erisa Pre-certified Indicator | B53: 812 | C53: 812 | D53: 1 | E53: A/N | F53: O

Sheet OrderCorrConf
A1: Last Update timestamp : 23-04-26 11:32:41 by Musielak, Victor A. | C1: 007 = Confirmation 008 = Correction 040 = Prepaid Confirmation 041 = Prepaid Correction 042 = Contract Note Note – Red=Required, Blue=Optional, Black=Optional Conditional (see Data Dictionary for condition)
A2: Record Length (R-4-N) | B2: Originator Type (R-1-A/N) | C2: Firm Number (R-8-A/N) | D2: Fund Number (R-8-A/N) | E2: Record Type (R-3-A/N) | F2: NSCC Security Issue Number (OC-16-A/N) | G2: NSCC Sidepocket ID (O-3-A/N) | H2: Share Class (O-8-A/N) | I2: Security Identifier (O-1-A/N) | J2: Security Issue ID (O-12-A/N) | K2: Control Number (R-20-A/N) | L2: Correction Indicator (OC-1-A/N) | M2: Submission Date (R-8-N) | N2: Trade Date/Dealing Date – (Business Date) (OC-8-N) | O2: Registration Indicator (OC-1-A/N) | P2: NSCC Reject Indicator (R-1-A/N) | Q2: NSCC Reject Reason Code 1 (R-4-A/N) | R2: NSCC Reject Reason Code 2 (R-4-A/N) | S2: NSCC Reject Reason Code 3 (R-4-A/N) | T2: NSCC Reject Reason Code 4 (R-4-A/N) | U2: Transaction Code (R-2-A/N) | V2: Settlement Date (OC-8-N) | W2: Settlement Indicator (R-1-A/N) | X2: Settlement Date Override Indicator (O-1-A/N) | Y2: Contract Note Indicator (OC-1-A/N) | Z2: Money Amount (OC-16-N) | AA2: Reporting Currency (R-3-A/N) | AB2: Settlement Currency (R-3-A/N) | AC2: Share Quantity (OC-14-N) | AD2: Network Control Indicator (R-1-A/N) | AE2: Firm Account Number (OC-20-A/N) | AF2: Fund Account Number (OC-20-A/N) | AG2: Contract Note Date (OC-8-N) | AH2: Series Roll Up Date (O-8-N) | AI2: Custodian Account Number (O-20-A/N) | AJ2: Account Type (R-2-A/N) | AK2: Account Registration Name (OC-160-A/N) | AL2: Original Control Number (O-20-A/N) | AM2: RIA/RR Indicator (OC-1-A/N) | AN2: Introducing Broker Dealer Firm Name / Registered Investment Advisor Firm Name (OC-35-A/N) | AO2: Account Representative/Advisor Name (OC-15-A/N) | AP2: Account Representative/Advisor Number (OC-9-A/N) | AQ2: Branch ID Number (OC-9-A/N) | AR2: Trading Model (OC-1-A/N) | AS2: AIP Firm Role (OC-1-A/N) | AT2: Firm CRD Number (OC-10-N) | AU2: Individual CRD/IARD Number (OC-10-N) | AV2: NAV Account Indicator (O-1-A/N) | AW2: Trade Date/Dealing Date – (Calendar Date) (OC-8-N) | AX2: Gross Amount of Trade (OC-16-N) | AY2: Accredited Investor Indicator (O-1-A/N) | AZ2: Qualified Client Indicator (O-1-A/N) | BA2: Qualified Purchaser Indicator (O-1-A/N) | BB2: Qualified Institutional Buyer Indicator (O-1-A/N) | BC2: State of Sale (O-2-A/N) | BD2: Redemption Reason Code (OC-2-A/N) | BE2: CDSC Amount (O-16-N) | BF2: Redemption Fee (O-16-N) | BG2: Cost Basis Option (O-2-A/N) | BH2: Redemption Percentage (O-6-N) | BI2: Reconfirmation Indicator (OC-1-A/N) | BJ2: Net/Gross Indicator (OC-1-A/N) | BK2: Related Control Number (O-20-A/N) | BL2: Total Commitment Amount (OC-16-N) | BM2: Fulfilled Commitment Amount (O-16-N) | BN2: Remaining Commitment Amount (O-16-N) | BO2: Filler (R-48-A/N) | BP2: Related Trade Indicator 1 (O-1-A/N) | BQ2: Related Account Number 1 (OC-20-A/N) | BR2: Dealer Concession/Manager Paid Placement Fee Percentage (O-6-N) | BS2: Filler (R-6-A/N) | BT2: Load Type Indicator (O-1-A/N) | BU2: Breakpoint Change Reason Code (O-1-A/N) | BV2: Commission/Placement Fee Amount (OC-16-N) | BW2: Commission/Placement Fee Percentage (OC-6-N) | BX2: Dealer Concession/Manager Paid Placement Fee Amount (O-16-N) | BY2: Number of Business Days Until Valuation (O-3-N) | BZ2: Valuation Date (O-8-N) | CA2: Value Price (O-12-N) | CB2: Confirm Share Quantity (O-14-N) | CC2: Estimated or Actual Value Confirm (O-1-A/N) | CD2: Tender Offer Subject to Holdback Indicator (O-1-A/N) | CE2: Number of Business Days for Holdback (OC-3-N) | CF2: Holdback Release Date (OC-8-N) | CG2: Holdback Percentage (OC-6-N) | CH2: Interest Rate on Holdback (O-8-N) | CI2: Interest Paid on Holdback (O-16-N) | CJ2: Tender Offer Oversold Indicator (O-1-A/N) | CK2: Tender Offer Pro Rata Indicator (OC-1-A/N) | CL2: Percent of ProRata Allocation (OC-6-N) | CM2: Automatic Holdback Refund Indicator (OC-1-A/N) | CN2: Share Lot Identifier 1 (O-8-N) | CO2: Share Lot Identifier 2 (O-8-N) | CP2: Share Lot Identifier 3 (O-8-N) | CQ2: Share Lot Identifier 4 (O-8-N) | CR2: Share Lot Identifier 5 (O-8-N) | CS2: Equalization Amount (O-16-N) | CT2: Equalization Percentage (O-6-N) | CU2: Equalization Debit/Credit Indicator (OC-1-A/N) | CV2: Erisa Eligible Indicator (O-1-A/N) | CW2: Erisa Percentage (O-6-N) | CX2: Erisa Pre-certified Indicator (O-1-A/N) | CY2: Series NSCC Security Issue Number (OC-16-A/N) | CZ2: Breakpoint Limit Number (OC-2-N) | DA2: Price Per Share (OC-12-N) | DB2: Same Day Multiple Trade Indicator (O-1-A/N) | DC2: Total Trade Amount Value (O-16-N) | DD2: Related Trade Indicator 2 (O-1-A/N) | DE2: Related Account Number 2 (OC-20-A/N) | DF2: Related Trade Indicator 3 (O-1-A/N) | DG2: Related Account Number 3 (OC-20-A/N) | DH2: Related Trade Indicator 4 (O-1-A/N) | DI2: Related Account Number 4 (OC-20-A/N) | DJ2: Related Trade Indicator 5 (O-1-A/N) | DK2: Related Account Number 5 (OC-20-A/N) | DL2: ToBeExecuted
A3: 1073 | G3: |NoTag| | H3: |NoTag| | I3: |NoTag| | J3: |NoTag| | X3: |NoTag| | AH3: |NoTag| | AI3: |NoTag| | AL3: |NoTag| | AV3: |NoTag| | AY3: |NoTag| | AZ3: |NoTag| | BA3: |NoTag| | BB3: |NoTag| | BC3: |NoTag| | BE3: |NoTag| | BF3: |NoTag| | BG3: |NoTag| | BH3: |NoTag| | BK3: |NoTag| | BM3: |NoTag| | BN3: |NoTag| | BO3: |NoTag| | BP3: |NoTag| | BR3: |NoTag| | BS3: |NoTag| | BT3: |NoTag| | BU3: |NoTag| | BX3: |NoTag| | BY3: |NoTag| | BZ3: |NoTag| | CA3: |NoTag| | CB3: |NoTag| | CC3: |NoTag| | CD3: |NoTag| | CH3: |NoTag| | CI3: |NoTag| | CJ3: |NoTag| | CN3: |NoTag| | CO3: |NoTag| | CP3: |NoTag| | CQ3: |NoTag| | CR3: |NoTag| | CS3: |NoTag| | CT3: |NoTag| | CV3: |NoTag| | CW3: |NoTag| | CX3: |NoTag| | DB3: |NoTag| | DC3: |NoTag| | DD3: |NoTag| | DF3: |NoTag| | DH3: |NoTag| | DJ3: |NoTag| | DL3: No

Sheet OrderCorrConf_DD (hidden)
A1: Field Name | B1: Start | C1: End | D1: Length | E1: Type | F1: Opt/Req | G1: Default2Zero
A2: Record Length | B2: 1 | C2: 4 | D2: 4 | E2: N | F2: R | G2: NO
A3: Originator Type | B3: 5 | C3: 5 | D3: 1 | E3: A/N | F3: R
A4: Firm Number | B4: 6 | C4: 13 | D4: 8 | E4: A/N | F4: R
A5: Fund Number | B5: 14 | C5: 21 | D5: 8 | E5: A/N | F5: R
A6: Record Type | B6: 22 | C6: 24 | D6: 3 | E6: A/N | F6: R
A7: NSCC Security Issue Number | B7: 25 | C7: 40 | D7: 16 | E7: A/N | F7: OC
A8: NSCC Sidepocket ID | B8: 41 | C8: 43 | D8: 3 | E8: A/N | F8: O
A9: Share Class | B9: 44 | C9: 51 | D9: 8 | E9: A/N | F9: O
A10: Security Identifier | B10: 52 | C10: 52 | D10: 1 | E10: A/N | F10: O
A11: Security Issue ID | B11: 53 | C11: 64 | D11: 12 | E11: A/N | F11: O
A12: Control Number | B12: 65 | C12: 84 | D12: 20 | E12: A/N | F12: R
A13: Correction Indicator | B13: 85 | C13: 85 | D13: 1 | E13: A/N | F13: OC
A14: Submission Date | B14: 86 | C14: 93 | D14: 8 | E14: N | F14: R | G14: NO
A15: Trade Date/Dealing Date – (Business Date) | B15: 94 | C15: 101 | D15: 8 | E15: N | F15: OC | G15: NO
A16: Registration Indicator | B16: 102 | C16: 102 | D16: 1 | E16: A/N | F16: OC
A17: NSCC Reject Indicator | B17: 103 | C17: 103 | D17: 1 | E17: A/N | F17: R
A18: NSCC Reject Reason Code 1 | B18: 104 | C18: 107 | D18: 4 | E18: A/N | F18: R
A19: NSCC Reject Reason Code 2 | B19: 108 | C19: 111 | D19: 4 | E19: A/N | F19: R
A20: NSCC Reject Reason Code 3 | B20: 112 | C20: 115 | D20: 4 | E20: A/N | F20: R
A21: NSCC Reject Reason Code 4 | B21: 116 | C21: 119 | D21: 4 | E21: A/N | F21: R
A22: Transaction Code | B22: 120 | C22: 121 | D22: 2 | E22: A/N | F22: R
A23: Settlement Date | B23: 122 | C23: 129 | D23: 8 | E23: N | F23: OC | G23: NO
A24: Settlement Indicator | B24: 130 | C24: 130 | D24: 1 | E24: A/N | F24: R
A25: Settlement Date Override Indicator | B25: 131 | C25: 131 | D25: 1 | E25: A/N | F25: O
A26: Contract Note Indicator | B26: 132 | C26: 132 | D26: 1 | E26: A/N | F26: OC
A27: Money Amount | B27: 133 | C27: 148 | D27: 16 | E27: N | F27: OC | G27: NO
A28: Reporting Currency | B28: 149 | C28: 151 | D28: 3 | E28: A/N | F28: R
A29: Settlement Currency | B29: 152 | C29: 154 | D29: 3 | E29: A/N | F29: R
A30: Share Quantity | B30: 155 | C30: 168 | D30: 14 | E30: N | F30: OC | G30: NO
A31: Network Control Indicator | B31: 169 | C31: 169 | D31: 1 | E31: A/N | F31: R
A32: Firm Account Number | B32: 170 | C32: 189 | D32: 20 | E32: A/N | F32: OC
A33: Fund Account Number | B33: 190 | C33: 209 | D33: 20 | E33: A/N | F33: OC
A34: Contract Note Date | B34: 210 | C34: 217 | D34: 8 | E34: N | F34: OC | G34: NO
A35: Series Roll Up Date | B35: 218 | C35: 225 | D35: 8 | E35: N | F35: O | G35: NO
A36: Custodian Account Number | B36: 226 | C36: 245 | D36: 20 | E36: A/N | F36: O
A37: Account Type | B37: 246 | C37: 247 | D37: 2 | E37: A/N | F37: R
A38: Account Registration Name | B38: 248 | C38: 407 | D38: 160 | E38: A/N | F38: OC
A39: Original Control Number | B39: 408 | C39: 427 | D39: 20 | E39: A/N | F39: O
A40: RIA/RR Indicator | B40: 428 | C40: 428 | D40: 1 | E40: A/N | F40: OC
A41: Introducing Broker Dealer Firm Name / Registered Investment Advisor Firm Name | B41: 429 | C41: 463 | D41: 35 | E41: A/N | F41: OC
A42: Account Representative/Advisor Name | B42: 464 | C42: 478 | D42: 15 | E42: A/N | F42: OC
A43: Account Representative/Advisor Number | B43: 479 | C43: 487 | D43: 9 | E43: A/N | F43: OC
A44: Branch ID Number | B44: 488 | C44: 496 | D44: 9 | E44: A/N | F44: OC
A45: Trading Model | B45: 497 | C45: 497 | D45: 1 | E45: A/N | F45: OC
A46: AIP Firm Role | B46: 498 | C46: 498 | D46: 1 | E46: A/N | F46: OC
A47: Firm CRD Number | B47: 499 | C47: 508 | D47: 10 | E47: N | F47: OC | G47: NO
A48: Individual CRD/IARD Number | B48: 509 | C48: 518 | D48: 10 | E48: N | F48: OC | G48: NO
A49: NAV Account Indicator | B49: 519 | C49: 519 | D49: 1 | E49: A/N | F49: O
A50: Trade Date/Dealing Date – (Calendar Date) | B50: 520 | C50: 527 | D50: 8 | E50: N | F50: OC | G50: NO
A51: Gross Amount of Trade | B51: 528 | C51: 543 | D51: 16 | E51: N | F51: OC | G51: NO
A52: Accredited Investor Indicator | B52: 544 | C52: 544 | D52: 1 | E52: A/N | F52: O
A53: Qualified Client Indicator | B53: 545 | C53: 545 | D53: 1 | E53: A/N | F53: O
A54: Qualified Purchaser Indicator | B54: 546 | C54: 546 | D54: 1 | E54: A/N | F54: O
A55: Qualified Institutional Buyer Indicator | B55: 547 | C55: 547 | D55: 1 | E55: A/N | F55: O
A56: State of Sale | B56: 548 | C56: 549 | D56: 2 | E56: A/N | F56: O
A57: Redemption Reason Code | B57: 550 | C57: 551 | D57: 2 | E57: A/N | F57: OC
A58: CDSC Amount | B58: 552 | C58: 567 | D58: 16 | E58: N | F58: O | G58: NO
A59: Redemption Fee | B59: 568 | C59: 583 | D59: 16 | E59: N | F59: O | G59: NO
A60: Cost Basis Option | B60: 584 | C60: 585 | D60: 2 | E60: A/N | F60: O
A61: Redemption Percentage | B61: 586 | C61: 591 | D61: 6 | E61: N | F61: O | G61: NO
A62: Reconfirmation Indicator | B62: 592 | C62: 592 | D62: 1 | E62: A/N | F62: OC
A63: Net/Gross Indicator | B63: 593 | C63: 593 | D63: 1 | E63: A/N | F63: OC
A64: Related Control Number | B64: 594 | C64: 613 | D64: 20 | E64: A/N | F64: O
A65: Total Commitment Amount | B65: 614 | C65: 629 | D65: 16 | E65: N | F65: OC | G65: NO
A66: Fulfilled Commitment Amount | B66: 630 | C66: 645 | D66: 16 | E66: N | F66: O | G66: NO
A67: Remaining Commitment Amount | B67: 646 | C67: 661 | D67: 16 | E67: N | F67: O | G67: NO
A68: Filler | B68: 662 | C68: 709 | D68: 48 | E68: A/N | F68: R
A69: Related Trade Indicator 1 | B69: 710 | C69: 710 | D69: 1 | E69: A/N | F69: O
A70: Related Account Number 1 | B70: 711 | C70: 730 | D70: 20 | E70: A/N | F70: OC
A71: Dealer Concession/Manager Paid Placement Fee Percentage | B71: 731 | C71: 736 | D71: 6 | E71: N | F71: O
A72: Filler | B72: 737 | C72: 742 | D72: 6 | E72: A/N | F72: R
A73: Load Type Indicator | B73: 743 | C73: 743 | D73: 1 | E73: A/N | F73: O
A74: Breakpoint Change Reason Code | B74: 744 | C74: 744 | D74: 1 | E74: A/N | F74: O
A75: Commission/Placement Fee Amount | B75: 745 | C75: 760 | D75: 16 | E75: N | F75: OC | G75: NO
A76: Commission/Placement Fee Percentage | B76: 761 | C76: 766 | D76: 6 | E76: N | F76: OC | G76: NO
A77: Dealer Concession/Manager Paid Placement Fee Amount | B77: 767 | C77: 782 | D77: 16 | E77: N | F77: O
A78: Number of Business Days Until Valuation | B78: 783 | C78: 785 | D78: 3 | E78: N | F78: O | G78: NO
A79: Valuation Date | B79: 786 | C79: 793 | D79: 8 | E79: N | F79: O | G79: NO
A80: Value Price | B80: 794 | C80: 805 | D80: 12 | E80: N | F80: O
A81: Confirm Share Quantity | B81: 806 | C81: 819 | D81: 14 | E81: N | F81: O
A82: Estimated or Actual Value Confirm | B82: 820 | C82: 820 | D82: 1 | E82: A/N | F82: O
A83: Tender Offer Subject to Holdback Indicator | B83: 821 | C83: 821 | D83: 1 | E83: A/N | F83: O
A84: Number of Business Days for Holdback | B84: 822 | C84: 824 | D84: 3 | E84: N | F84: OC | G84: NO
A85: Holdback Release Date | B85: 825 | C85: 832 | D85: 8 | E85: N | F85: OC | G85: NO
A86: Holdback Percentage | B86: 833 | C86: 838 | D86: 6 | E86: N | F86: OC
A87: Interest Rate on Holdback | B87: 839 | C87: 846 | D87: 8 | E87: N | F87: O
A88: Interest Paid on Holdback | B88: 847 | C88: 862 | D88: 16 | E88: N | F88: O
A89: Tender Offer Oversold Indicator | B89: 863 | C89: 863 | D89: 1 | E89: A/N | F89: O
A90: Tender Offer Pro Rata Indicator | B90: 864 | C90: 864 | D90: 1 | E90: A/N | F90: OC
A91: Percent of ProRata Allocation | B91: 865 | C91: 870 | D91: 6 | E91: N | F91: OC
A92: Automatic Holdback Refund Indicator | B92: 871 | C92: 871 | D92: 1 | E92: A/N | F92: OC
A93: Share Lot Identifier 1 | B93: 872 | C93: 879 | D93: 8 | E93: N | F93: O | G93: NO
A94: Share Lot Identifier 2 | B94: 880 | C94: 887 | D94: 8 | E94: N | F94: O | G94: NO
A95: Share Lot Identifier 3 | B95: 888 | C95: 895 | D95: 8 | E95: N | F95: O | G95: NO
A96: Share Lot Identifier 4 | B96: 896 | C96: 903 | D96: 8 | E96: N | F96: O | G96: NO
A97: Share Lot Identifier 5 | B97: 904 | C97: 911 | D97: 8 | E97: N | F97: O | G97: NO
A98: Equalization Amount | B98: 912 | C98: 927 | D98: 16 | E98: N | F98: O
A99: Equalization Percentage | B99: 928 | C99: 933 | D99: 6 | E99: N | F99: O
A100: Equalization Debit/Credit Indicator | B100: 934 | C100: 934 | D100: 1 | E100: A/N | F100: OC
A101: Erisa Eligible Indicator | B101: 935 | C101: 935 | D101: 1 | E101: A/N | F101: O
A102: Erisa Percentage | B102: 936 | C102: 941 | D102: 6 | E102: N | F102: O | G102: NO
A103: Erisa Pre-certified Indicator | B103: 942 | C103: 942 | D103: 1 | E103: A/N | F103: O
A104: Series NSCC Security Issue Number | B104: 943 | C104: 958 | D104: 16 | E104: A/N | F104: OC
A105: Breakpoint Limit Number | B105: 959 | C105: 960 | D105: 2 | E105: N | F105: OC | G105: NO
A106: Price Per Share | B106: 961 | C106: 972 | D106: 12 | E106: N | F106: OC
A107: Same Day Multiple Trade Indicator | B107: 973 | C107: 973 | D107: 1 | E107: A/N | F107: O
A108: Total Trade Amount Value | B108: 974 | C108: 989 | D108: 16 | E108: N | F108: O
A109: Related Trade Indicator 2 | B109: 990 | C109: 990 | D109: 1 | E109: A/N | F109: O
A110: Related Account Number 2 | B110: 991 | C110: 1010 | D110: 20 | E110: A/N | F110: OC
A111: Related Trade Indicator 3 | B111: 1011 | C111: 1011 | D111: 1 | E111: A/N | F111: O
A112: Related Account Number 3 | B112: 1012 | C112: 1031 | D112: 20 | E112: A/N | F112: OC
A113: Related Trade Indicator 4 | B113: 1032 | C113: 1032 | D113: 1 | E113: A/N | F113: O
A114: Related Account Number 4 | B114: 1033 | C114: 1052 | D114: 20 | E114: A/N | F114: OC
A115: Related Trade Indicator 5 | B115: 1053 | C115: 1053 | D115: 1 | E115: A/N | F115: O
A116: Related Account Number 5 | B116: 1054 | C116: 1073 | D116: 20 | E116: A/N | F116: OC

Sheet Payment
A1: Last Update timestamp : 20-04-20 12:25:56 by Musielak, Victor A. | C1: 030 = Payment Note – Red=Required, Blue=Optional, Black=Optional Conditional (see Data Dictionary for condition)
A2: Record Length (R-4-N) | B2: Originator Type (R-1-A/N) | C2: Firm Number (R-8-A/N) | D2: Fund Number (R-8-A/N) | E2: Record Type (R-3-A/N) | F2: NSCC Security Issue Number (OC-16-A/N) | G2: NSCC Sidepocket ID (O-3-A/N) | H2: Share Class (O-8-A/N) | I2: Security Identifier (O-1-A/N) | J2: Security Issue ID (O-12-A/N) | K2: Control Number (R-20-A/N) | L2: Filler (R-1-A/N) | M2: Submission Date (R-8-N) | N2: Trade Date/Dealing Date (R-8-N) | O2: Filler (R-1-A/N) | P2: NSCC Reject Indicator (R-1-A/N) | Q2: NSCC Reject Reason Code 1 (R-4-A/N) | R2: NSCC Reject Reason Code 2 (R-4-A/N) | S2: NSCC Reject Reason Code 3 (R-4-A/N) | T2: NSCC Reject Reason Code 4 (R-4-A/N) | U2: Transaction Code (R-2-A/N) | V2: Filler (R-8-A/N) | W2: Settlement Indicator (R-1-A/N) | X2: Filler (R-1-A/N) | Y2: Initial Documentation Status Indicator (R-1-A/N) | Z2: Money Amount (R-16-N) | AA2: Reporting Currency (R-3-A/N) | AB2: Settlement Currency (R-3-A/N) | AC2: Share Quantity (O-14-N) | AD2: Network Control Indicator (R-1-A/N) | AE2: Firm Account Number (OC-20-A/N) | AF2: Fund Account Number (OC-20-A/N) | AG2: Filler (R-8-A/N) | AH2: Payment Date (R-8-N) | AI2: Documentation Date (O-8-N) | AJ2: Price/Valuation Date (O-8-N) | AK2: Share Lot Identifier 1 (O-8-N) | AL2: Share Lot Identifier 2 (O-8-N) | AM2: Share Lot Identifier 3 (O-8-N) | AN2: Share Lot Identifier 4 (O-8-N) | AO2: Share Lot Identifier 5 (O-8-N) | AP2: Series NSCC Security Issue Number (OC-16-A/N) | AQ2: ToBeExecuted
A3: 0297 | G3: |NoTag| | H3: |NoTag| | I3: |NoTag| | J3: |NoTag| | L3: |NoTag| | O3: |NoTag| | V3: |NoTag| | X3: |NoTag| | AC3: |NoTag| | AG3: |NoTag| | AI3: |NoTag| | AJ3: |NoTag| | AK3: |NoTag| | AL3: |NoTag| | AM3: |NoTag| | AN3: |NoTag| | AO3: |NoTag| | AQ3: No

Sheet Payment_DD (hidden)
A1: Field Name | B1: Start | C1: End | D1: Length | E1: Type | F1: Opt/Req | G1: Default2Zero
A2: Record Length | B2: 1 | C2: 4 | D2: 4 | E2: N | F2: R | G2: NO
A3: Originator Type | B3: 5 | C3: 5 | D3: 1 | E3: A/N | F3: R
A4: Firm Number | B4: 6 | C4: 13 | D4: 8 | E4: A/N | F4: R
A5: Fund Number | B5: 14 | C5: 21 | D5: 8 | E5: A/N | F5: R
A6: Record Type | B6: 22 | C6: 24 | D6: 3 | E6: A/N | F6: R
A7: NSCC Security Issue Number | B7: 25 | C7: 40 | D7: 16 | E7: A/N | F7: OC
A8: NSCC Sidepocket ID | B8: 41 | C8: 43 | D8: 3 | E8: A/N | F8: O
A9: Share Class | B9: 44 | C9: 51 | D9: 8 | E9: A/N | F9: O
A10: Security Identifier | B10: 52 | C10: 52 | D10: 1 | E10: A/N | F10: O
A11: Security Issue ID | B11: 53 | C11: 64 | D11: 12 | E11: A/N | F11: O
A12: Control Number | B12: 65 | C12: 84 | D12: 20 | E12: A/N | F12: R
A13: Filler | B13: 85 | C13: 85 | D13: 1 | E13: A/N | F13: R
A14: Submission Date | B14: 86 | C14: 93 | D14: 8 | E14: N | F14: R | G14: NO
A15: Trade Date/Dealing Date | B15: 94 | C15: 101 | D15: 8 | E15: N | F15: R | G15: NO
A16: Filler | B16: 102 | C16: 102 | D16: 1 | E16: A/N | F16: R
A17: NSCC Reject Indicator | B17: 103 | C17: 103 | D17: 1 | E17: A/N | F17: R
A18: NSCC Reject Reason Code 1 | B18: 104 | C18: 107 | D18: 4 | E18: A/N | F18: R
A19: NSCC Reject Reason Code 2 | B19: 108 | C19: 111 | D19: 4 | E19: A/N | F19: R
A20: NSCC Reject Reason Code 3 | B20: 112 | C20: 115 | D20: 4 | E20: A/N | F20: R
A21: NSCC Reject Reason Code 4 | B21: 116 | C21: 119 | D21: 4 | E21: A/N | F21: R
A22: Transaction Code | B22: 120 | C22: 121 | D22: 2 | E22: A/N | F22: R
A23: Filler | B23: 122 | C23: 129 | D23: 8 | E23: A/N | F23: R
A24: Settlement Indicator | B24: 130 | C24: 130 | D24: 1 | E24: A/N | F24: R
A25: Filler | B25: 131 | C25: 131 | D25: 1 | E25: A/N | F25: R
A26: Initial Documentation Status Indicator | B26: 132 | C26: 132 | D26: 1 | E26: A/N | F26: R
A27: Money Amount | B27: 133 | C27: 148 | D27: 16 | E27: N | F27: R | G27: NO
A28: Reporting Currency | B28: 149 | C28: 151 | D28: 3 | E28: A/N | F28: R
A29: Settlement Currency | B29: 152 | C29: 154 | D29: 3 | E29: A/N | F29: R
A30: Share Quantity | B30: 155 | C30: 168 | D30: 14 | E30: N | F30: O
A31: Network Control Indicator | B31: 169 | C31: 169 | D31: 1 | E31: A/N | F31: R
A32: Firm Account Number | B32: 170 | C32: 189 | D32: 20 | E32: A/N | F32: OC
A33: Fund Account Number | B33: 190 | C33: 209 | D33: 20 | E33: A/N | F33: OC
A34: Filler | B34: 210 | C34: 217 | D34: 8 | E34: A/N | F34: R
A35: Payment Date | B35: 218 | C35: 225 | D35: 8 | E35: N | F35: R | G35: NO
A36: Documentation Date | B36: 226 | C36: 233 | D36: 8 | E36: N | F36: O | G36: NO
A37: Price/Valuation Date | B37: 234 | C37: 241 | D37: 8 | E37: N | F37: O | G37: NO
A38: Share Lot Identifier 1 | B38: 242 | C38: 249 | D38: 8 | E38: N | F38: O | G38: NO
A39: Share Lot Identifier 2 | B39: 250 | C39: 257 | D39: 8 | E39: N | F39: O | G39: NO
A40: Share Lot Identifier 3 | B40: 258 | C40: 265 | D40: 8 | E40: N | F40: O | G40: NO
A41: Share Lot Identifier 4 | B41: 266 | C41: 273 | D41: 8 | E41: N | F41: O | G41: NO
A42: Share Lot Identifier 5 | B42: 274 | C42: 281 | D42: 8 | E42: N | F42: O | G42: NO
A43: Series NSCC Security Issue Number | B43: 282 | C43: 297 | D43: 16 | E43: A/N | F43: OC

Sheet Payment Acknowledgement
A1: Last Update timestamp : 20-04-20 12:26:24 by Musielak, Victor A. | C1: 031 – Payment Acknowledgement Note – Red=Required, Blue=Optional, Black=Optional Conditional (see Data Dictionary for condition)
A2: Record Length (R-4-N) | B2: Originator Type (R-1-A/N) | C2: Firm Number (R-8-A/N) | D2: Fund Number (R-8-A/N) | E2: Record Type (R-3-A/N) | F2: NSCC Security Issue Number (OC-16-A/N) | G2: NSCC Sidepocket ID (O-3-A/N) | H2: Share Class (O-8-A/N) | I2: Security Identifier (O-1-A/N) | J2: Security Issue ID (O-12-A/N) | K2: Control Number (R-20-A/N) | L2: Filler (R-1-A/N) | M2: Submission Date (R-8-N) | N2: Trade Date/Dealing Date (R-8-N) | O2: Filler (R-1-A/N) | P2: Series NSCC Security Issue Number (OC-16-A/N) | Q2: NSCC Reject Indicator (R-1-A/N) | R2: NSCC Reject Reason Code 1 (R-4-A/N) | S2: NSCC Reject Reason Code 2 (R-4-A/N) | T2: NSCC Reject Reason Code 3 (R-4-A/N) | U2: NSCC Reject Reason Code 4 (R-4-A/N) | V2: Transaction Code (S-2-A/N) | W2: Filler (R-8-A/N) | X2: Settlement Indicator (S-1-A/N) | Y2: Filler (R-1-A/N) | Z2: Initial Documentation Status Indicator (S-1-A/N) | AA2: Money Amount (S-16-N) | AB2: Reporting Currency (S-3-A/N) | AC2: Settlement Currency (S-3-A/N) | AD2: Share Quantity (S-14-N) | AE2: Network Control Indicator (S-1-A/N) | AF2: Firm Account Number (S-20-A/N) | AG2: Fund Account Number (S-20-A/N) | AH2: Filler (R-8-A/N) | AI2: Payment Date (S-8-N) | AJ2: Documentation Due Date (S-8-N) | AK2: Price/Valuation Date (S-8-N) | AL2: ToBeExecuted
A3: 0257 | G3: |NoTag| | H3: |NoTag| | I3: |NoTag| | J3: |NoTag| | L3: |NoTag| | O3: |NoTag| | V3: |NoTag| | W3: |NoTag| | X3: |NoTag| | Y3: |NoTag| | Z3: |NoTag| | AA3: |NoTag| | AB3: |NoTag| | AC3: |NoTag| | AD3: |NoTag| | AE3: |NoTag| | AF3: |NoTag| | AG3: |NoTag| | AH3: |NoTag| | AI3: |NoTag| | AJ3: |NoTag| | AK3: |NoTag| | AL3: No

Sheet Payment Acknowledgement_DD (hidden)
A1: Field Name | B1: Start | C1: End | D1: Length | E1: Type | F1: Opt/Req | G1: Default2Zero
A2: Record Length | B2: 1 | C2: 4 | D2: 4 | E2: N | F2: R | G2: NO
A3: Originator Type | B3: 5 | C3: 5 | D3: 1 | E3: A/N | F3: R
A4: Firm Number | B4: 6 | C4: 13 | D4: 8 | E4: A/N | F4: R
A5: Fund Number | B5: 14 | C5: 21 | D5: 8 | E5: A/N | F5: R
A6: Record Type | B6: 22 | C6: 24 | D6: 3 | E6: A/N | F6: R
A7: NSCC Security Issue Number | B7: 25 | C7: 40 | D7: 16 | E7: A/N | F7: OC
A8: NSCC Sidepocket ID | B8: 41 | C8: 43 | D8: 3 | E8: A/N | F8: O
A9: Share Class | B9: 44 | C9: 51 | D9: 8 | E9: A/N | F9: O
A10: Security Identifier | B10: 52 | C10: 52 | D10: 1 | E10: A/N | F10: O
A11: Security Issue ID | B11: 53 | C11: 64 | D11: 12 | E11: A/N | F11: O
A12: Control Number | B12: 65 | C12: 84 | D12: 20 | E12: A/N | F12: R
A13: Filler | B13: 85 | C13: 85 | D13: 1 | E13: A/N | F13: R
A14: Submission Date | B14: 86 | C14: 93 | D14: 8 | E14: N | F14: R | G14: NO
A15: Trade Date/Dealing Date | B15: 94 | C15: 101 | D15: 8 | E15: N | F15: R | G15: NO
A16: Filler | B16: 102 | C16: 102 | D16: 1 | E16: A/N | F16: R
A17: Series NSCC Security Issue Number | B17: 103 | C17: 118 | D17: 16 | E17: A/N | F17: OC
A18: NSCC Reject Indicator | B18: 119 | C18: 119 | D18: 1 | E18: A/N | F18: R
A19: NSCC Reject Reason Code 1 | B19: 120 | C19: 123 | D19: 4 | E19: A/N | F19: R
A20: NSCC Reject Reason Code 2 | B20: 124 | C20: 127 | D20: 4 | E20: A/N | F20: R
A21: NSCC Reject Reason Code 3 | B21: 128 | C21: 131 | D21: 4 | E21: A/N | F21: R
A22: NSCC Reject Reason Code 4 | B22: 132 | C22: 135 | D22: 4 | E22: A/N | F22: R
A23: Transaction Code | B23: 136 | C23: 137 | D23: 2 | E23: A/N | F23: S
A24: Filler | B24: 138 | C24: 145 | D24: 8 | E24: A/N | F24: R
A25: Settlement Indicator | B25: 146 | C25: 146 | D25: 1 | E25: A/N | F25: S
A26: Filler | B26: 147 | C26: 147 | D26: 1 | E26: A/N | F26: R
A27: Initial Documentation Status Indicator | B27: 148 | C27: 148 | D27: 1 | E27: A/N | F27: S
A28: Money Amount | B28: 149 | C28: 164 | D28: 16 | E28: N | F28: S
A29: Reporting Currency | B29: 165 | C29: 167 | D29: 3 | E29: A/N | F29: S
A30: Settlement Currency | B30: 168 | C30: 170 | D30: 3 | E30: A/N | F30: S
A31: Share Quantity | B31: 171 | C31: 184 | D31: 14 | E31: N | F31: S
A32: Network Control Indicator | B32: 185 | C32: 185 | D32: 1 | E32: A/N | F32: S
A33: Firm Account Number | B33: 186 | C33: 205 | D33: 20 | E33: A/N | F33: S
A34: Fund Account Number | B34: 206 | C34: 225 | D34: 20 | E34: A/N | F34: S
A35: Filler | B35: 226 | C35: 233 | D35: 8 | E35: A/N | F35: R
A36: Payment Date | B36: 234 | C36: 241 | D36: 8 | E36: N | F36: S | G36: NO
A37: Documentation Due Date | B37: 242 | C37: 249 | D37: 8 | E37: N | F37: S | G37: NO
A38: Price/Valuation Date | B38: 250 | C38: 257 | D38: 8 | E38: N | F38: S | G38: NO

Sheet Exchange-Switch
A1: Last Update timestamp : 21-05-17 13:25:03 by Musielak, Victor A. | C1: 015 = Firm Exchange 016 = Fund Exchange 018 = Fund Confirmation of Exchange Note – Red=Required, Blue=Optional, Black=Optional Conditional (see Data Dictionary for condition)
A2: Record Length (R-4-N) | B2: Originator Type (R-1-A/N) | C2: Firm Number (R-8-A/N) | D2: Fund Number (R-8-A/N) | E2: Record Type (R-3-A/N) | F2: NSCC Security Issue Number Exchange From (OC-16-A/N) | G2: NSCC Sidepocket ID From (O-3-A/N) | H2: Share Class From (O-8-A/N) | I2: Security Identifier Exchange From (O-1-A/N) | J2: Security Issue ID Exchange From (O-12-A/N) | K2: Control Number (R-20-A/N) | L2: Filler (R-1-A/N) | M2: Submission Date (R-8-N) | N2: Trade Date (R-8-N) | O2: Filler (R-1-A/N) | P2: NSCC Reject Indicator (R-1-A/N) | Q2: NSCC Reject Reason Code 1 (R-4-A/N) | R2: NSCC Reject Reason Code 2 (R-4-A/N) | S2: NSCC Reject Reason Code 3 (R-4-A/N) | T2: NSCC Reject Reason Code 4 (R-4-A/N) | U2: Transaction Code (R-2-A/N) | V2: Settlement Date (R-8-N) | W2: Settlement Indicator (R-1-A/N) | X2: Filler (R-1-A/N) | Y2: Exchange Type (R-1-A/N) | Z2: Exchange From - Money Amount (R-16-N) | AA2: Filler (R-6-A/N) | AB2: Exchange From - Share Quantity (O-14-N) | AC2: Network Control Indicator (R-1-A/N) | AD2: Exchange From - Firm Account Number (OC-20-A/N) | AE2: Exchange From - Fund Account Number (OC-20-A/N) | AF2: Series NSCC Security Issue Number Exchange From (OC-16-A/N) | AG2: Account Type (O-2-A/N) | AH2: Account Registration Name (O-160-A/N) | AI2: Original Control Number (OC-20-A/N) | AJ2: Filler (R-28-A/N) | AK2: Account Representative/Advisor Name (O-15-A/N) | AL2: Account Representative/Advisor Number (O-9-A/N) | AM2: Filler (R-232-A/N) | AN2: Related Trade Indicator (O-1-A/N) | AO2: Related Account Number (OC-20-A/N) | AP2: Related Account Security Issue ID (OC-12-A/N) | AQ2: Load Type Indicator (O-1-A/N) | AR2: Breakpoint Change Reason Code (O-1-A/N) | AS2: Exchange From - Commission/Placement Fee Amount (OC-16-N) | AT2: Exchange From - Commission/Placement Fee Percentage (OC-6-N) | AU2: Exchange From - Dealer Concession/Manager Paid Placement Fee Amount (O-16-N) | AV2: Exchange From - Price Per Share (O-12-N) | AW2: Custodian Name (O-40-A/N) | AX2: Custodian Tax Identification Number (O-9-A/N) | AY2: Share Lot Identifier 1 From (O-8-N) | AZ2: Share Lot Identifier 2 From (O-8-N) | BA2: Share Lot Identifier 3 From (O-8-N) | BB2: Share Lot Identifier 4 From (O-8-N) | BC2: Share Lot Identifier 5 From (O-8-N) | BD2: NSCC Security Issue Number Exchange To (OC-16-A/N) | BE2: NSCC Sidepocket ID To (O-3-A/N) | BF2: Share Class To (O-8-A/N) | BG2: Security Identifier Exchange To (O-1-A/N) | BH2: Security Issue ID Exchange To (O-12-A/N) | BI2: Exchange To - Money Amount (R-16-N) | BJ2: Exchange To - Share Quantity (O-14-N) | BK2: Exchange To - Firm Account Number (OC-20-A/N) | BL2: Exchange To - Fund Account Number (OC-20-A/N) | BM2: Series NSCC Security Issue Number Exchange To (OC-16-A/N) | BN2: Exchange To - Commission/Placement Fee Amount (OC-16-N) | BO2: Exchange To - Commission/Placement Fee Percentage (OC-6-N) | BP2: Exchange To - Dealer Concession/Manager Paid Placement Fee Amount (O-16-N) | BQ2: Exchange To - Price Per Share (R-12-N) | BR2: Share Lot Identifier 1 To (O-8-N) | BS2: Share Lot Identifier 2 To (O-8-N) | BT2: Share Lot Identifier 3 To (O-8-N) | BU2: Share Lot Identifier 4 To (O-8-N) | BV2: Share Lot Identifier 5 To (O-8-N) | BW2: ToBeExecuted
A3: 1081 | G3: |NoTag| | H3: |NoTag| | I3: |NoTag| | J3: |NoTag| | L3: |NoTag| | O3: |NoTag| | X3: |NoTag| | AA3: |NoTag| | AB3: |NoTag| | AG3: |NoTag| | AH3: |NoTag| | AJ3: |NoTag| | AK3: |NoTag| | AL3: |NoTag| | AM3: |NoTag| | AN3: |NoTag| | AQ3: |NoTag| | AR3: |NoTag| | AU3: |NoTag| | AV3: |NoTag| | AW3: |NoTag| | AX3: |NoTag| | AY3: |NoTag| | AZ3: |NoTag| | BA3: |NoTag| | BB3: |NoTag| | BC3: |NoTag| | BE3: |NoTag| | BF3: |NoTag| | BG3: |NoTag| | BH3: |NoTag| | BJ3: |NoTag| | BP3: |NoTag| | BR3: |NoTag| | BS3: |NoTag| | BT3: |NoTag| | BU3: |NoTag| | BV3: |NoTag| | BW3: No

Sheet Exchange-Switch_DD (hidden)
A1: Field Name | B1: Start | C1: End | D1: Length | E1: Type | F1: Opt/Req | G1: Default2Zero
A2: Record Length | B2: 1 | C2: 4 | D2: 4 | E2: N | F2: R | G2: NO
A3: Originator Type | B3: 5 | C3: 5 | D3: 1 | E3: A/N | F3: R
A4: Firm Number | B4: 6 | C4: 13 | D4: 8 | E4: A/N | F4: R
A5: Fund Number | B5: 14 | C5: 21 | D5: 8 | E5: A/N | F5: R
A6: Record Type | B6: 22 | C6: 24 | D6: 3 | E6: A/N | F6: R
A7: NSCC Security Issue Number Exchange From | B7: 25 | C7: 40 | D7: 16 | E7: A/N | F7: OC
A8: NSCC Sidepocket ID From | B8: 41 | C8: 43 | D8: 3 | E8: A/N | F8: O
A9: Share Class From | B9: 44 | C9: 51 | D9: 8 | E9: A/N | F9: O
A10: Security Identifier Exchange From | B10: 52 | C10: 52 | D10: 1 | E10: A/N | F10: O
A11: Security Issue ID Exchange From | B11: 53 | C11: 64 | D11: 12 | E11: A/N | F11: O
A12: Control Number | B12: 65 | C12: 84 | D12: 20 | E12: A/N | F12: R
A13: Filler | B13: 85 | C13: 85 | D13: 1 | E13: A/N | F13: R
A14: Submission Date | B14: 86 | C14: 93 | D14: 8 | E14: N | F14: R | G14: NO
A15: Trade Date | B15: 94 | C15: 101 | D15: 8 | E15: N | F15: R | G15: NO
A16: Filler | B16: 102 | C16: 102 | D16: 1 | E16: A/N | F16: R
A17: NSCC Reject Indicator | B17: 103 | C17: 103 | D17: 1 | E17: A/N | F17: R
A18: NSCC Reject Reason Code 1 | B18: 104 | C18: 107 | D18: 4 | E18: A/N | F18: R
A19: NSCC Reject Reason Code 2 | B19: 108 | C19: 111 | D19: 4 | E19: A/N | F19: R
A20: NSCC Reject Reason Code 3 | B20: 112 | C20: 115 | D20: 4 | E20: A/N | F20: R
A21: NSCC Reject Reason Code 4 | B21: 116 | C21: 119 | D21: 4 | E21: A/N | F21: R
A22: Transaction Code | B22: 120 | C22: 121 | D22: 2 | E22: A/N | F22: R
A23: Settlement Date | B23: 122 | C23: 129 | D23: 8 | E23: N | F23: R | G23: NO
A24: Settlement Indicator | B24: 130 | C24: 130 | D24: 1 | E24: A/N | F24: R
A25: Filler | B25: 131 | C25: 131 | D25: 1 | E25: A/N | F25: R
A26: Exchange Type | B26: 132 | C26: 132 | D26: 1 | E26: A/N | F26: R
A27: Exchange From - Money Amount | B27: 133 | C27: 148 | D27: 16 | E27: N | F27: R | G27: NO
A28: Filler | B28: 149 | C28: 154 | D28: 6 | E28: A/N | F28: R
A29: Exchange From - Share Quantity | B29: 155 | C29: 168 | D29: 14 | E29: N | F29: O
A30: Network Control Indicator | B30: 169 | C30: 169 | D30: 1 | E30: A/N | F30: R
A31: Exchange From - Firm Account Number | B31: 170 | C31: 189 | D31: 20 | E31: A/N | F31: OC
A32: Exchange From - Fund Account Number | B32: 190 | C32: 209 | D32: 20 | E32: A/N | F32: OC
A33: Series NSCC Security Issue Number Exchange From | B33: 210 | C33: 225 | D33: 16 | E33: A/N | F33: OC
A34: Account Type | B34: 226 | C34: 227 | D34: 2 | E34: A/N | F34: O
A35: Account Registration Name | B35: 228 | C35: 387 | D35: 160 | E35: A/N | F35: O
A36: Original Control Number | B36: 388 | C36: 407 | D36: 20 | E36: A/N | F36: OC
A37: Filler | B37: 408 | C37: 435 | D37: 28 | E37: A/N | F37: R
A38: Account Representative/Advisor Name | B38: 436 | C38: 450 | D38: 15 | E38: A/N | F38: O
A39: Account Representative/Advisor Number | B39: 451 | C39: 459 | D39: 9 | E39: A/N | F39: O
A40: Filler | B40: 460 | C40: 691 | D40: 232 | E40: A/N | F40: R
A41: Related Trade Indicator | B41: 692 | C41: 692 | D41: 1 | E41: A/N | F41: O
A42: Related Account Number | B42: 693 | C42: 712 | D42: 20 | E42: A/N | F42: OC
A43: Related Account Security Issue ID | B43: 713 | C43: 724 | D43: 12 | E43: A/N | F43: OC
A44: Load Type Indicator | B44: 725 | C44: 725 | D44: 1 | E44: A/N | F44: O
A45: Breakpoint Change Reason Code | B45: 726 | C45: 726 | D45: 1 | E45: A/N | F45: O
A46: Exchange From - Commission/Placement Fee Amount | B46: 727 | C46: 742 | D46: 16 | E46: N | F46: OC | G46: NO
A47: Exchange From - Commission/Placement Fee Percentage | B47: 743 | C47: 748 | D47: 6 | E47: N | F47: OC | G47: NO
A48: Exchange From - Dealer Concession/Manager Paid Placement Fee Amount | B48: 749 | C48: 764 | D48: 16 | E48: N | F48: O
A49: Exchange From - Price Per Share | B49: 765 | C49: 776 | D49: 12 | E49: N | F49: O
A50: Custodian Name | B50: 777 | C50: 816 | D50: 40 | E50: A/N | F50: O
A51: Custodian Tax Identification Number | B51: 817 | C51: 825 | D51: 9 | E51: A/N | F51: O
A52: Share Lot Identifier 1 From | B52: 826 | C52: 833 | D52: 8 | E52: N | F52: O | G52: NO
A53: Share Lot Identifier 2 From | B53: 834 | C53: 841 | D53: 8 | E53: N | F53: O | G53: NO
A54: Share Lot Identifier 3 From | B54: 842 | C54: 849 | D54: 8 | E54: N | F54: O | G54: NO
A55: Share Lot Identifier 4 From | B55: 850 | C55: 857 | D55: 8 | E55: N | F55: O | G55: NO
A56: Share Lot Identifier 5 From | B56: 858 | C56: 865 | D56: 8 | E56: N | F56: O | G56: NO
A57: NSCC Security Issue Number Exchange To | B57: 866 | C57: 881 | D57: 16 | E57: A/N | F57: OC
A58: NSCC Sidepocket ID To | B58: 882 | C58: 884 | D58: 3 | E58: A/N | F58: O
A59: Share Class To | B59: 885 | C59: 892 | D59: 8 | E59: A/N | F59: O
A60: Security Identifier Exchange To | B60: 893 | C60: 893 | D60: 1 | E60: A/N | F60: O
A61: Security Issue ID Exchange To | B61: 894 | C61: 905 | D61: 12 | E61: A/N | F61: O
A62: Exchange To - Money Amount | B62: 906 | C62: 921 | D62: 16 | E62: N | F62: R | G62: NO
A63: Exchange To - Share Quantity | B63: 922 | C63: 935 | D63: 14 | E63: N | F63: O
A64: Exchange To - Firm Account Number | B64: 936 | C64: 955 | D64: 20 | E64: A/N | F64: OC
A65: Exchange To - Fund Account Number | B65: 956 | C65: 975 | D65: 20 | E65: A/N | F65: OC
A66: Series NSCC Security Issue Number Exchange To | B66: 976 | C66: 991 | D66: 16 | E66: A/N | F66: OC
A67: Exchange To - Commission/Placement Fee Amount | B67: 992 | C67: 1007 | D67: 16 | E67: N | F67: OC | G67: NO
A68: Exchange To - Commission/Placement Fee Percentage | B68: 1008 | C68: 1013 | D68: 6 | E68: N | F68: OC | G68: NO
A69: Exchange To - Dealer Concession/Manager Paid Placement Fee Amount | B69: 1014 | C69: 1029 | D69: 16 | E69: N | F69: O
A70: Exchange To - Price Per Share | B70: 1030 | C70: 1041 | D70: 12 | E70: N | F70: R | G70: NO
A71: Share Lot Identifier 1 To | B71: 1042 | C71: 1049 | D71: 8 | E71: N | F71: O | G71: NO
A72: Share Lot Identifier 2 To | B72: 1050 | C72: 1057 | D72: 8 | E72: N | F72: O | G72: NO
A73: Share Lot Identifier 3 To | B73: 1058 | C73: 1065 | D73: 8 | E73: N | F73: O | G73: NO
A74: Share Lot Identifier 4 To | B74: 1066 | C74: 1073 | D74: 8 | E74: N | F74: O | G74: NO
A75: Share Lot Identifier 5 To | B75: 1074 | C75: 1081 | D75: 8 | E75: N | F75: O | G75: NO

Sheet Acct. Registration-Maint
A1: Last Update timestamp : 23-04-26 11:36:52 by Musielak, Victor A. | C1: 025 = Registration 053 = Account Maintenance Note – Red=Required, Blue=Optional, Black=Optional Conditional (see Data Dictionary for condition)
A2: Record Length (R-4-N) | B2: Originator Type (R-1-A/N) | C2: Firm Number (R-8-A/N) | D2: Fund Number (R-8-A/N) | E2: Record Type (R-3-A/N) | F2: NSCC Security Issue Number (OC-16-A/N) | G2: NSCC Sidepocket ID (O-3-A/N) | H2: Share Class (O-8-A/N) | I2: Security Indicator (O-1-A/N) | J2: Security Issue ID (O-12-A/N) | K2: Control Number (R-20-A/N) | L2: Initial Documentation Status Indicator (R-1-A/N) | M2: Submission Date (R-8-N) | N2: Filler (R-8-A/N) | O2: Registration Type (OC-1-A/N) | P2: NSCC Reject Indicator (R-1-A/N) | Q2: NSCC Reject Reason Code 1 (R-4-A/N) | R2: NSCC Reject Reason Code 2 (R-4-A/N) | S2: NSCC Reject Reason Code 3 (R-4-A/N) | T2: NSCC Reject Reason Code 4 (R-4-A/N) | U2: Filler (R-2-A/N) | V2: New Firm Account Number (O-20-A/N) | W2: New Fund Account Number (O-20-A/N) | X2: Chapter 4 Status Code (O-2-A/N) | Y2: Account Indicator (R-1-A/N) | Z2: Hybrid Responsibility Indicator (OC-1-A/N) | AA2: Delivery of Fund Notifications (OC-1-A/N) | AB2: Filler (R-2-A/N) | AC2: Network Control Indicator (R-1-A/N) | AD2: Firm Account Number (OC-20-A/N) | AE2: Fund Account Number (OC-20-A/N) | AF2: FATCA Override Special Rate (O-8-N) | AG2: Series Roll Up Date (O-8-N) | AH2: Custodian Account Number (O-20-A/N) | AI2: Account Type (OC-2-A/N) | AJ2: Account Registration Name (R-160-A/N) | AK2: Filler (R-15-A/N) | AL2: RIA/RR Indicator (OC-1-A/N) | AM2: Introducing Broker Dealer Firm Name / Registered Investment Advisor Firm Name (OC-35-A/N) | AN2: Account Representative/Advisor Name (OC-15-A/N) | AO2: Account Representative/Advisor Number (OC-9-A/N) | AP2: Branch ID Number (OC-9-A/N) | AQ2: Branch Address 1 (O-35-A/N) | AR2: Branch Address 2 (O-35-A/N) | AS2: Branch Address 3 (O-35-A/N) | AT2: Branch Address 4 (O-35-A/N) | AU2: Branch Address 5 (O-35-A/N) | AV2: Branch Postal Code/Zip Code (O-11-A/N) | AW2: Branch Country (O-3-A/N) | AX2: Firm CRD Number (OC-10-N) | AY2: Dividend Option (O-1-A/N) | AZ2: Filler (R-4-A/N) | BA2: SSN/TIN/EIN Indicator (O-1-A/N) | BB2: SSN/TIN/EIN Number (O-9-A/N) | BC2: Owner DOB (O-8-N) | BD2: Custodian Name (OC-40-A/N) | BE2: Custodian Tax Identification Number (O-9-A/N) | BF2: Joint Owner Name 1 (O-35-A/N) | BG2: Joint Owner SSN Number 1 (O-9-A/N) | BH2: Joint Owner DOB 1 (O-8-N) | BI2: Backup Withholding Indicator (OC-1-A/N) | BJ2: W8 Certification Date (OC-8-N) | BK2: W8 Expiration Date (OC-8-N) | BL2: W8 Qualified Intermediary Indicator (OC-1-A/N) | BM2: W8 Override Country Code (O-3-A/N) | BN2: W8 Override NRA Special Rate (O-8-N) | BO2: LOI/ROA/Side Letter Indicator (O-1-A/N) | BP2: Side Letter Reference Number (O-20-A/N) | BQ2: Individual CRD/IARD Number (OC-10-N) | BR2: Trading Model (R-1-A/N) | BS2: AIP Firm Role (OC-1-A/N) | BT2: Filler (R-4-A/N) | BU2: LOI Number (O-20-A/N) | BV2: LOI/ROA/Side Letter Value (O-16-N) | BW2: NAV Account Indicator (O-1-A/N) | BX2: ABA Routing Number (O-9-A/N) | BY2: ACH Account Number (O-20-A/N) | BZ2: ACH Account Name (O-35-A/N) | CA2: Beneficiary Designation (O-1-A/N) | CB2: Beneficiary Asset Percent (O-6-N) | CC2: Beneficiary Name (O-35-A/N) | CD2: Beneficiary SSN (O-9-A/N) | CE2: Beneficiary Relationship (O-2-A/N) | CF2: Beneficiary DOB (O-8-N) | CG2: Address Type of Record 1 (R-2-A/N) | CH2: Address of Record 1 Line 1 (R-35-A/N) | CI2: Address of Record 1 Line 2 (O-35-A/N) | CJ2: Address of Record 1 Line 3 (O-35-A/N) | CK2: Address of Record 1 Line 4 (O-35-A/N) | CL2: Address of Record 1 Line 5 (O-35-A/N) | CM2: Zip/Postal Code of Record 1 (R-11-A/N) | CN2: Country of Record 1 (R-3-A/N) | CO2: Phone Number of Record 1 (O-16-A/N) | CP2: Email Address of Record 1 (O-100-A/N) | CQ2: Address Type of Record 2 (OC-2-A/N) | CR2: Address of Record 2 Line 1 (OC-35-A/N) | CS2: Address of Record 2 Line 2 (O-35-A/N) | CT2: Address of Record 2 Line 3 (O-35-A/N) | CU2: Address of Record 2 Line 4 (O-35-A/N) | CV2: Address of Record 2 Line 5 (O-35-A/N) | CW2: Zip/Postal Code of Record 2 (OC-11-A/N) | CX2: Country of Record 2 (OC-3-A/N) | CY2: Phone Number of Record 2 (O-16-A/N) | CZ2: Email Address of Record 2 (O-100-A/N) | DA2: Address Type of Record 3 (OC-2-A/N) | DB2: Address of Record 3 Line 1 (OC-35-A/N) | DC2: Address of Record 3 Line 2 (O-35-A/N) | DD2: Address of Record 3 Line 3 (O-35-A/N) | DE2: Address of Record 3 Line 4 (O-35-A/N) | DF2: Address of Record 3 Line 5 (O-35-A/N) | DG2: Zip/Postal Code of Record 3 (OC-11-A/N) | DH2: Country of Record 3 (OC-3-A/N) | DI2: Phone Number of Record 3 (OC-16-A/N) | DJ2: Email Address of Record 3 (O-100-A/N) | DK2: Address Type of Record 4 (OC-2-A/N) | DL2: Address of Record 4 Line 1 (OC-35-A/N) | DM2: Address of Record 4 Line 2 (O-35-A/N) | DN2: Address of Record 4 Line 3 (O-35-A/N) | DO2: Address of Record 4 Line 4 (O-35-A/N) | DP2: Address of Record 4 Line 5 (O-35-A/N) | DQ2: Zip/Postal Code of Record 4 (OC-11-A/N) | DR2: Country of Record 4 (OC-3-A/N) | DS2: Phone Number of Record 4 (O-16-A/N) | DT2: Email Address of Record 4 (O-100-A/N) | DU2: Address Type of Record 5 (OC-2-A/N) | DV2: Address of Record 5 Line 1 (OC-35-A/N) | DW2: Address of Record 5 Line 2 (O-35-A/N) | DX2: Address of Record 5 Line 3 (O-35-A/N) | DY2: Address of Record 5 Line 4 (O-35-A/N) | DZ2: Address of Record 5 Line 5 (O-35-A/N) | EA2: Zip/Postal Code of Record 5 (OC-11-A/N) | EB2: Country of Record 5 (OC-3-A/N) | EC2: Phone Number of Record 5 (O-16-A/N) | ED2: Email Address of Record 5 (O-100-A/N) | EE2: Erisa Eligible Indicator (OC-1-A/N) | EF2: Erisa Percentage (OC-6-N) | EG2: Erisa Pre-Certified Indicator (OC-1-A/N) | EH2: Joint Owner Name 2 (O-35-A/N) | EI2: Joint Owner SSN Number 2 (O-9-A/N) | EJ2: Joint Owner DOB 2 (O-8-N) | EK2: Joint Owner Name 3 (O-35-A/N) | EL2: Joint Owner SSN Number 3 (O-9-A/N) | EM2: Joint Owner DOB 3 (O-8-N) | EN2: Joint Owner Name 4 (O-35-A/N) | EO2: Joint Owner SSN Number 4 (O-9-A/N) | EP2: Joint Owner DOB 4 (O-8-N) | EQ2: Joint Owner Name 5 (O-35-A/N) | ER2: Joint Owner SSN Number 5 (O-9-A/N) | ES2: Joint Owner DOB 5 (O-8-N) | ET2: Joint Owner Name 6 (O-35-A/N) | EU2: Joint Owner SSN Number 6 (O-9-A/N) | EV2: Joint Owner DOB 6 (O-8-N) | EW2: Series NSCC Security Issue Number (OC-16-A/N) | EX2: Global Intermediary Identification Number (O-25-A/N) | EY2: Underlying Client’s Foreign Tax ID (O-25-A/N) | EZ2: Cost Basis Option (O-2-A/N) | FA2: TPA Investor ID (O-20-A/N) | FB2: TPA Company (OC-2-A/N) | FC2: ToBeExecuted
A3: 2935 | G3: |NoTag| | H3: |NoTag| | I3: |NoTag| | J3: |NoTag| | N3: |NoTag| | U3: |NoTag| | V3: |NoTag| | W3: |NoTag| | X3: |NoTag| | AB3: |NoTag| | AF3: |NoTag| | AG3: |NoTag| | AH3: |NoTag| | AK3: |NoTag| | AQ3: |NoTag| | AR3: |NoTag| | AS3: |NoTag| | AT3: |NoTag| | AU3: |NoTag| | AV3: |NoTag| | AW3: |NoTag| | AY3: |NoTag| | AZ3: |NoTag| | BA3: |NoTag| | BB3: |NoTag| | BC3: |NoTag| | BE3: |NoTag| | BF3: |NoTag| | BG3: |NoTag| | BH3: |NoTag| | BM3: |NoTag| | BN3: |NoTag| | BO3: |NoTag| | BP3: |NoTag| | BT3: |NoTag| | BU3: |NoTag| | BV3: |NoTag| | BW3: |NoTag| | BX3: |NoTag| | BY3: |NoTag| | BZ3: |NoTag| | CA3: |NoTag| | CB3: |NoTag| | CC3: |NoTag| | CD3: |NoTag| | CE3: |NoTag| | CF3: |NoTag| | CI3: |NoTag| | CJ3: |NoTag| | CK3: |NoTag| | CL3: |NoTag| | CO3: |NoTag| | CP3: |NoTag| | CS3: |NoTag| | CT3: |NoTag| | CU3: |NoTag| | CV3: |NoTag| | CY3: |NoTag| | CZ3: |NoTag| | DC3: |NoTag| | DD3: |NoTag| | DE3: |NoTag| | DF3: |NoTag| | DJ3: |NoTag| | DM3: |NoTag| | DN3: |NoTag| | DO3: |NoTag| | DP3: |NoTag| | DS3: |NoTag| | DT3: |NoTag| | DW3: |NoTag| | DX3: |NoTag| | DY3: |NoTag| | DZ3: |NoTag| | EC3: |NoTag| | ED3: |NoTag| | EH3: |NoTag| | EI3: |NoTag| | EJ3: |NoTag| | EK3: |NoTag| | EL3: |NoTag| | EM3: |NoTag| | EN3: |NoTag| | EO3: |NoTag| | EP3: |NoTag| | EQ3: |NoTag| | ER3: |NoTag| | ES3: |NoTag| | ET3: |NoTag| | EU3: |NoTag| | EV3: |NoTag| | EX3: |NoTag| | EY3: |NoTag| | EZ3: |NoTag| | FA3: |NoTag| | FC3: No

Sheet Acct. Registration-Maint_DD (hidden)
A1: Field Name | B1: Start | C1: End | D1: Length | E1: Type | F1: Opt/Req | G1: Default2Zero
A2: Record Length | B2: 1 | C2: 4 | D2: 4 | E2: N | F2: R | G2: NO
A3: Originator Type | B3: 5 | C3: 5 | D3: 1 | E3: A/N | F3: R
A4: Firm Number | B4: 6 | C4: 13 | D4: 8 | E4: A/N | F4: R
A5: Fund Number | B5: 14 | C5: 21 | D5: 8 | E5: A/N | F5: R
A6: Record Type | B6: 22 | C6: 24 | D6: 3 | E6: A/N | F6: R
A7: NSCC Security Issue Number | B7: 25 | C7: 40 | D7: 16 | E7: A/N | F7: OC
A8: NSCC Sidepocket ID | B8: 41 | C8: 43 | D8: 3 | E8: A/N | F8: O
A9: Share Class | B9: 44 | C9: 51 | D9: 8 | E9: A/N | F9: O
A10: Security Indicator | B10: 52 | C10: 52 | D10: 1 | E10: A/N | F10: O
A11: Security Issue ID | B11: 53 | C11: 64 | D11: 12 | E11: A/N | F11: O
A12: Control Number | B12: 65 | C12: 84 | D12: 20 | E12: A/N | F12: R
A13: Initial Documentation Status Indicator | B13: 85 | C13: 85 | D13: 1 | E13: A/N | F13: R
A14: Submission Date | B14: 86 | C14: 93 | D14: 8 | E14: N | F14: R | G14: NO
A15: Filler | B15: 94 | C15: 101 | D15: 8 | E15: A/N | F15: R
A16: Registration Type | B16: 102 | C16: 102 | D16: 1 | E16: A/N | F16: OC
A17: NSCC Reject Indicator | B17: 103 | C17: 103 | D17: 1 | E17: A/N | F17: R
A18: NSCC Reject Reason Code 1 | B18: 104 | C18: 107 | D18: 4 | E18: A/N | F18: R
A19: NSCC Reject Reason Code 2 | B19: 108 | C19: 111 | D19: 4 | E19: A/N | F19: R
A20: NSCC Reject Reason Code 3 | B20: 112 | C20: 115 | D20: 4 | E20: A/N | F20: R
A21: NSCC Reject Reason Code 4 | B21: 116 | C21: 119 | D21: 4 | E21: A/N | F21: R
A22: Filler | B22: 120 | C22: 121 | D22: 2 | E22: A/N | F22: R
A23: New Firm Account Number | B23: 122 | C23: 141 | D23: 20 | E23: A/N | F23: O
A24: New Fund Account Number | B24: 142 | C24: 161 | D24: 20 | E24: A/N | F24: O
A25: Chapter 4 Status Code | B25: 162 | C25: 163 | D25: 2 | E25: A/N | F25: O
A26: Account Indicator | B26: 164 | C26: 164 | D26: 1 | E26: A/N | F26: R
A27: Hybrid Responsibility Indicator | B27: 165 | C27: 165 | D27: 1 | E27: A/N | F27: OC
A28: Delivery of Fund Notifications | B28: 166 | C28: 166 | D28: 1 | E28: A/N | F28: OC
A29: Filler | B29: 167 | C29: 168 | D29: 2 | E29: A/N | F29: R
A30: Network Control Indicator | B30: 169 | C30: 169 | D30: 1 | E30: A/N | F30: R
A31: Firm Account Number | B31: 170 | C31: 189 | D31: 20 | E31: A/N | F31: OC
A32: Fund Account Number | B32: 190 | C32: 209 | D32: 20 | E32: A/N | F32: OC
A33: FATCA Override Special Rate | B33: 210 | C33: 217 | D33: 8 | E33: N | F33: O
A34: Series Roll Up Date | B34: 218 | C34: 225 | D34: 8 | E34: N | F34: O | G34: NO
A35: Custodian Account Number | B35: 226 | C35: 245 | D35: 20 | E35: A/N | F35: O
A36: Account Type | B36: 246 | C36: 247 | D36: 2 | E36: A/N | F36: OC
A37: Account Registration Name | B37: 248 | C37: 407 | D37: 160 | E37: A/N | F37: R
A38: Filler | B38: 408 | C38: 422 | D38: 15 | E38: A/N | F38: R
A39: RIA/RR Indicator | B39: 423 | C39: 423 | D39: 1 | E39: A/N | F39: OC
A40: Introducing Broker Dealer Firm Name / Registered Investment Advisor Firm Name | B40: 424 | C40: 458 | D40: 35 | E40: A/N | F40: OC
A41: Account Representative/Advisor Name | B41: 459 | C41: 473 | D41: 15 | E41: A/N | F41: OC
A42: Account Representative/Advisor Number | B42: 474 | C42: 482 | D42: 9 | E42: A/N | F42: OC
A43: Branch ID Number | B43: 483 | C43: 491 | D43: 9 | E43: A/N | F43: OC
A44: Branch Address 1 | B44: 492 | C44: 526 | D44: 35 | E44: A/N | F44: O
A45: Branch Address 2 | B45: 527 | C45: 561 | D45: 35 | E45: A/N | F45: O
A46: Branch Address 3 | B46: 562 | C46: 596 | D46: 35 | E46: A/N | F46: O
A47: Branch Address 4 | B47: 597 | C47: 631 | D47: 35 | E47: A/N | F47: O
A48: Branch Address 5 | B48: 632 | C48: 666 | D48: 35 | E48: A/N | F48: O
A49: Branch Postal Code/Zip Code | B49: 667 | C49: 677 | D49: 11 | E49: A/N | F49: O
A50: Branch Country | B50: 678 | C50: 680 | D50: 3 | E50: A/N | F50: O
A51: Firm CRD Number | B51: 681 | C51: 690 | D51: 10 | E51: N | F51: OC | G51: NO
A52: Dividend Option | B52: 691 | C52: 691 | D52: 1 | E52: A/N | F52: O
A53: Filler | B53: 692 | C53: 695 | D53: 4 | E53: A/N | F53: R
A54: SSN/TIN/EIN Indicator | B54: 696 | C54: 696 | D54: 1 | E54: A/N | F54: O
A55: SSN/TIN/EIN Number | B55: 697 | C55: 705 | D55: 9 | E55: A/N | F55: O
A56: Owner DOB | B56: 706 | C56: 713 | D56: 8 | E56: N | F56: O | G56: NO
A57: Custodian Name | B57: 714 | C57: 753 | D57: 40 | E57: A/N | F57: OC
A58: Custodian Tax Identification Number | B58: 754 | C58: 762 | D58: 9 | E58: A/N | F58: O
A59: Joint Owner Name 1 | B59: 763 | C59: 797 | D59: 35 | E59: A/N | F59: O
A60: Joint Owner SSN Number 1 | B60: 798 | C60: 806 | D60: 9 | E60: A/N | F60: O
A61: Joint Owner DOB 1 | B61: 807 | C61: 814 | D61: 8 | E61: N | F61: O | G61: NO
A62: Backup Withholding Indicator | B62: 815 | C62: 815 | D62: 1 | E62: A/N | F62: OC
A63: W8 Certification Date | B63: 816 | C63: 823 | D63: 8 | E63: N | F63: OC | G63: NO
A64: W8 Expiration Date | B64: 824 | C64: 831 | D64: 8 | E64: N | F64: OC | G64: NO
A65: W8 Qualified Intermediary Indicator | B65: 832 | C65: 832 | D65: 1 | E65: A/N | F65: OC
A66: W8 Override Country Code | B66: 833 | C66: 835 | D66: 3 | E66: A/N | F66: O
A67: W8 Override NRA Special Rate | B67: 836 | C67: 843 | D67: 8 | E67: N | F67: O
A68: LOI/ROA/Side Letter Indicator | B68: 844 | C68: 844 | D68: 1 | E68: A/N | F68: O
A69: Side Letter Reference Number | B69: 845 | C69: 864 | D69: 20 | E69: A/N | F69: O
A70: Individual CRD/IARD Number | B70: 865 | C70: 874 | D70: 10 | E70: N | F70: OC | G70: NO
A71: Trading Model | B71: 875 | C71: 875 | D71: 1 | E71: A/N | F71: R
A72: AIP Firm Role | B72: 876 | C72: 876 | D72: 1 | E72: A/N | F72: OC
A73: Filler | B73: 877 | C73: 880 | D73: 4 | E73: A/N | F73: R
A74: LOI Number | B74: 881 | C74: 900 | D74: 20 | E74: A/N | F74: O
A75: LOI/ROA/Side Letter Value | B75: 901 | C75: 916 | D75: 16 | E75: N | F75: O
A76: NAV Account Indicator | B76: 917 | C76: 917 | D76: 1 | E76: A/N | F76: O
A77: ABA Routing Number | B77: 918 | C77: 926 | D77: 9 | E77: A/N | F77: O
A78: ACH Account Number | B78: 927 | C78: 946 | D78: 20 | E78: A/N | F78: O
A79: ACH Account Name | B79: 947 | C79: 981 | D79: 35 | E79: A/N | F79: O
A80: Beneficiary Designation | B80: 982 | C80: 982 | D80: 1 | E80: A/N | F80: O
A81: Beneficiary Asset Percent | B81: 983 | C81: 988 | D81: 6 | E81: N | F81: O
A82: Beneficiary Name | B82: 989 | C82: 1023 | D82: 35 | E82: A/N | F82: O
A83: Beneficiary SSN | B83: 1024 | C83: 1032 | D83: 9 | E83: A/N | F83: O
A84: Beneficiary Relationship | B84: 1033 | C84: 1034 | D84: 2 | E84: A/N | F84: O
A85: Beneficiary DOB | B85: 1035 | C85: 1042 | D85: 8 | E85: N | F85: O | G85: NO
A86: Address Type of Record 1 | B86: 1043 | C86: 1044 | D86: 2 | E86: A/N | F86: R
A87: Address of Record 1 Line 1 | B87: 1045 | C87: 1079 | D87: 35 | E87: A/N | F87: R
A88: Address of Record 1 Line 2 | B88: 1080 | C88: 1114 | D88: 35 | E88: A/N | F88: O
A89: Address of Record 1 Line 3 | B89: 1115 | C89: 1149 | D89: 35 | E89: A/N | F89: O
A90: Address of Record 1 Line 4 | B90: 1150 | C90: 1184 | D90: 35 | E90: A/N | F90: O
A91: Address of Record 1 Line 5 | B91: 1185 | C91: 1219 | D91: 35 | E91: A/N | F91: O
A92: Zip/Postal Code of Record 1 | B92: 1220 | C92: 1230 | D92: 11 | E92: A/N | F92: R
A93: Country of Record 1 | B93: 1231 | C93: 1233 | D93: 3 | E93: A/N | F93: R
A94: Phone Number of Record 1 | B94: 1234 | C94: 1249 | D94: 16 | E94: A/N | F94: O
A95: Email Address of Record 1 | B95: 1250 | C95: 1349 | D95: 100 | E95: A/N | F95: O
A96: Address Type of Record 2 | B96: 1350 | C96: 1351 | D96: 2 | E96: A/N | F96: OC
A97: Address of Record 2 Line 1 | B97: 1352 | C97: 1386 | D97: 35 | E97: A/N | F97: OC
A98: Address of Record 2 Line 2 | B98: 1387 | C98: 1421 | D98: 35 | E98: A/N | F98: O
A99: Address of Record 2 Line 3 | B99: 1422 | C99: 1456 | D99: 35 | E99: A/N | F99: O
A100: Address of Record 2 Line 4 | B100: 1457 | C100: 1491 | D100: 35 | E100: A/N | F100: O
A101: Address of Record 2 Line 5 | B101: 1492 | C101: 1526 | D101: 35 | E101: A/N | F101: O
A102: Zip/Postal Code of Record 2 | B102: 1527 | C102: 1537 | D102: 11 | E102: A/N | F102: OC
A103: Country of Record 2 | B103: 1538 | C103: 1540 | D103: 3 | E103: A/N | F103: OC
A104: Phone Number of Record 2 | B104: 1541 | C104: 1556 | D104: 16 | E104: A/N | F104: O
A105: Email Address of Record 2 | B105: 1557 | C105: 1656 | D105: 100 | E105: A/N | F105: O
A106: Address Type of Record 3 | B106: 1657 | C106: 1658 | D106: 2 | E106: A/N | F106: OC
A107: Address of Record 3 Line 1 | B107: 1659 | C107: 1693 | D107: 35 | E107: A/N | F107: OC
A108: Address of Record 3 Line 2 | B108: 1694 | C108: 1728 | D108: 35 | E108: A/N | F108: O
A109: Address of Record 3 Line 3 | B109: 1729 | C109: 1763 | D109: 35 | E109: A/N | F109: O
A110: Address of Record 3 Line 4 | B110: 1764 | C110: 1798 | D110: 35 | E110: A/N | F110: O
A111: Address of Record 3 Line 5 | B111: 1799 | C111: 1833 | D111: 35 | E111: A/N | F111: O
A112: Zip/Postal Code of Record 3 | B112: 1834 | C112: 1844 | D112: 11 | E112: A/N | F112: OC
A113: Country of Record 3 | B113: 1845 | C113: 1847 | D113: 3 | E113: A/N | F113: OC
A114: Phone Number of Record 3 | B114: 1848 | C114: 1863 | D114: 16 | E114: A/N | F114: OC
A115: Email Address of Record 3 | B115: 1864 | C115: 1963 | D115: 100 | E115: A/N | F115: O
A116: Address Type of Record 4 | B116: 1964 | C116: 1965 | D116: 2 | E116: A/N | F116: OC
A117: Address of Record 4 Line 1 | B117: 1966 | C117: 2000 | D117: 35 | E117: A/N | F117: OC
A118: Address of Record 4 Line 2 | B118: 2001 | C118: 2035 | D118: 35 | E118: A/N | F118: O
A119: Address of Record 4 Line 3 | B119: 2036 | C119: 2070 | D119: 35 | E119: A/N | F119: O
A120: Address of Record 4 Line 4 | B120: 2071 | C120: 2105 | D120: 35 | E120: A/N | F120: O
A121: Address of Record 4 Line 5 | B121: 2106 | C121: 2140 | D121: 35 | E121: A/N | F121: O
A122: Zip/Postal Code of Record 4 | B122: 2141 | C122: 2151 | D122: 11 | E122: A/N | F122: OC
A123: Country of Record 4 | B123: 2152 | C123: 2154 | D123: 3 | E123: A/N | F123: OC
A124: Phone Number of Record 4 | B124: 2155 | C124: 2170 | D124: 16 | E124: A/N | F124: O
A125: Email Address of Record 4 | B125: 2171 | C125: 2270 | D125: 100 | E125: A/N | F125: O
A126: Address Type of Record 5 | B126: 2271 | C126: 2272 | D126: 2 | E126: A/N | F126: OC
A127: Address of Record 5 Line 1 | B127: 2273 | C127: 2307 | D127: 35 | E127: A/N | F127: OC
A128: Address of Record 5 Line 2 | B128: 2308 | C128: 2342 | D128: 35 | E128: A/N | F128: O
A129: Address of Record 5 Line 3 | B129: 2343 | C129: 2377 | D129: 35 | E129: A/N | F129: O
A130: Address of Record 5 Line 4 | B130: 2378 | C130: 2412 | D130: 35 | E130: A/N | F130: O
A131: Address of Record 5 Line 5 | B131: 2413 | C131: 2447 | D131: 35 | E131: A/N | F131: O
A132: Zip/Postal Code of Record 5 | B132: 2448 | C132: 2458 | D132: 11 | E132: A/N | F132: OC
A133: Country of Record 5 | B133: 2459 | C133: 2461 | D133: 3 | E133: A/N | F133: OC
A134: Phone Number of Record 5 | B134: 2462 | C134: 2477 | D134: 16 | E134: A/N | F134: O
A135: Email Address of Record 5 | B135: 2478 | C135: 2577 | D135: 100 | E135: A/N | F135: O
A136: Erisa Eligible Indicator | B136: 2578 | C136: 2578 | D136: 1 | E136: A/N | F136: OC
A137: Erisa Percentage | B137: 2579 | C137: 2584 | D137: 6 | E137: N | F137: OC | G137: NO
A138: Erisa Pre-Certified Indicator | B138: 2585 | C138: 2585 | D138: 1 | E138: A/N | F138: OC
A139: Joint Owner Name 2 | B139: 2586 | C139: 2620 | D139: 35 | E139: A/N | F139: O
A140: Joint Owner SSN Number 2 | B140: 2621 | C140: 2629 | D140: 9 | E140: A/N | F140: O
A141: Joint Owner DOB 2 | B141: 2630 | C141: 2637 | D141: 8 | E141: N | F141: O | G141: NO
A142: Joint Owner Name 3 | B142: 2638 | C142: 2672 | D142: 35 | E142: A/N | F142: O
A143: Joint Owner SSN Number 3 | B143: 2673 | C143: 2681 | D143: 9 | E143: A/N | F143: O
A144: Joint Owner DOB 3 | B144: 2682 | C144: 2689 | D144: 8 | E144: N | F144: O | G144: NO
A145: Joint Owner Name 4 | B145: 2690 | C145: 2724 | D145: 35 | E145: A/N | F145: O
A146: Joint Owner SSN Number 4 | B146: 2725 | C146: 2733 | D146: 9 | E146: A/N | F146: O
A147: Joint Owner DOB 4 | B147: 2734 | C147: 2741 | D147: 8 | E147: N | F147: O | G147: NO
A148: Joint Owner Name 5 | B148: 2742 | C148: 2776 | D148: 35 | E148: A/N | F148: O
A149: Joint Owner SSN Number 5 | B149: 2777 | C149: 2785 | D149: 9 | E149: A/N | F149: O
A150: Joint Owner DOB 5 | B150: 2786 | C150: 2793 | D150: 8 | E150: N | F150: O | G150: NO
A151: Joint Owner Name 6 | B151: 2794 | C151: 2828 | D151: 35 | E151: A/N | F151: O
A152: Joint Owner SSN Number 6 | B152: 2829 | C152: 2837 | D152: 9 | E152: A/N | F152: O
A153: Joint Owner DOB 6 | B153: 2838 | C153: 2845 | D153: 8 | E153: N | F153: O | G153: NO
A154: Series NSCC Security Issue Number | B154: 2846 | C154: 2861 | D154: 16 | E154: A/N | F154: OC
A155: Global Intermediary Identification Number | B155: 2862 | C155: 2886 | D155: 25 | E155: A/N | F155: O
A156: Underlying Client’s Foreign Tax ID | B156: 2887 | C156: 2911 | D156: 25 | E156: A/N | F156: O
A157: Cost Basis Option | B157: 2912 | C157: 2913 | D157: 2 | E157: A/N | F157: O
A158: TPA Investor ID | B158: 2914 | C158: 2933 | D158: 20 | E158: A/N | F158: O
A159: TPA Company | B159: 2934 | C159: 2935 | D159: 2 | E159: A/N | F159: OC

Sheet Reg-Activity Ackn Rej
A1: Last Update timestamp : 20-04-20 12:28:37 by Musielak, Victor A. | C1: 026 = Registration Acknowledgement 027 = Registration Reject 057 = Maintenance Acknowledgement 058 = Maintenance Reject 054 = Activity Acknowledgement 055 = Activity Reject Note – Red=Required, Blue=Optional, Black=Optional Conditional (see Data Dictionary for condition)
A2: Record Length (R-4-N) | B2: Originator Type (R-1-A/N) | C2: Firm Number (R-8-A/N) | D2: Fund Number (R-8-A/N) | E2: Record Type (R-3-A/N) | F2: NSCC Security Issue Number (OC-16-A/N) | G2: NSCC Sidepocket ID (O-3-A/N) | H2: Share Class (O-8-A/N) | I2: Security Identifier (O-1-A/N) | J2: Security Issue ID (O-12-A/N) | K2: Control Number (R-20-A/N) | L2: Filler (R-1-A/N) | M2: Submission Date (OC-8-N) | N2: Filler (R-9-A/N) | O2: NSCC Reject Indicator (R-1-A/N) | P2: NSCC Reject Reason Code 1 (R-4-A/N) | Q2: NSCC Reject Reason Code 2 (R-4-A/N) | R2: NSCC Reject Reason Code 3 (R-4-A/N) | S2: NSCC Reject Reason Code 4 (R-4-A/N) | T2: Filler (R-2-A/N) | U2: Settlement Date (S-8-N) | V2: Series NSCC Security Issue Number (OC-16-A/N) | W2: Contract Note Date (S-8-N) | X2: Filler (R-16-A/N) | Y2: Firm Account Number (S-20-A/N) | Z2: Fund Account Number (OC-20-A/N) | AA2: Filler (R-347-A/N) | AB2: Fund/Firm Reject Indicator (OC-1-A/N) | AC2: Fund/Firm Reject Reason Code 1 (OC-4-A/N) | AD2: Fund/Firm Reject Reason Code 2 (O-4-A/N) | AE2: Fund/Firm Reject Reason Code 3 (O-4-A/N) | AF2: Fund/Firm Reject Reason Code 4 (O-4-A/N) | AG2: ToBeExecuted | AH2: ToBeExecuted
A3: 0573 | G3: |NoTag| | H3: |NoTag| | I3: |NoTag| | J3: |NoTag| | L3: |NoTag| | N3: |NoTag| | T3: |NoTag| | U3: |NoTag| | W3: |NoTag| | X3: |NoTag| | Y3: |NoTag| | AA3: |NoTag| | AD3: |NoTag| | AE3: |NoTag| | AF3: |NoTag| | AG3: No | AH3: No

Sheet Reg-Activity Ackn Rej_DD (hidden)
A1: Field Name | B1: Start | C1: End | D1: Length | E1: Type | F1: Opt/Req | G1: Default2Zero
A2: Record Length | B2: 1 | C2: 4 | D2: 4 | E2: N | F2: R | G2: NO
A3: Originator Type | B3: 5 | C3: 5 | D3: 1 | E3: A/N | F3: R
A4: Firm Number | B4: 6 | C4: 13 | D4: 8 | E4: A/N | F4: R
A5: Fund Number | B5: 14 | C5: 21 | D5: 8 | E5: A/N | F5: R
A6: Record Type | B6: 22 | C6: 24 | D6: 3 | E6: A/N | F6: R
A7: NSCC Security Issue Number | B7: 25 | C7: 40 | D7: 16 | E7: A/N | F7: OC
A8: NSCC Sidepocket ID | B8: 41 | C8: 43 | D8: 3 | E8: A/N | F8: O
A9: Share Class | B9: 44 | C9: 51 | D9: 8 | E9: A/N | F9: O
A10: Security Identifier | B10: 52 | C10: 52 | D10: 1 | E10: A/N | F10: O
A11: Security Issue ID | B11: 53 | C11: 64 | D11: 12 | E11: A/N | F11: O
A12: Control Number | B12: 65 | C12: 84 | D12: 20 | E12: A/N | F12: R
A13: Filler | B13: 85 | C13: 85 | D13: 1 | E13: A/N | F13: R
A14: Submission Date | B14: 86 | C14: 93 | D14: 8 | E14: N | F14: OC | G14: NO
A15: Filler | B15: 94 | C15: 102 | D15: 9 | E15: A/N | F15: R
A16: NSCC Reject Indicator | B16: 103 | C16: 103 | D16: 1 | E16: A/N | F16: R
A17: NSCC Reject Reason Code 1 | B17: 104 | C17: 107 | D17: 4 | E17: A/N | F17: R
A18: NSCC Reject Reason Code 2 | B18: 108 | C18: 111 | D18: 4 | E18: A/N | F18: R
A19: NSCC Reject Reason Code 3 | B19: 112 | C19: 115 | D19: 4 | E19: A/N | F19: R
A20: NSCC Reject Reason Code 4 | B20: 116 | C20: 119 | D20: 4 | E20: A/N | F20: R
A21: Filler | B21: 120 | C21: 121 | D21: 2 | E21: A/N | F21: R
A22: Settlement Date | B22: 122 | C22: 129 | D22: 8 | E22: N | F22: S | G22: NO
A23: Series NSCC Security Issue Number | B23: 130 | C23: 145 | D23: 16 | E23: A/N | F23: OC
A24: Contract Note Date | B24: 146 | C24: 153 | D24: 8 | E24: N | F24: S | G24: NO
A25: Filler | B25: 154 | C25: 169 | D25: 16 | E25: A/N | F25: R
A26: Firm Account Number | B26: 170 | C26: 189 | D26: 20 | E26: A/N | F26: S
A27: Fund Account Number | B27: 190 | C27: 209 | D27: 20 | E27: A/N | F27: OC
A28: Filler | B28: 210 | C28: 556 | D28: 347 | E28: A/N | F28: R
A29: Fund/Firm Reject Indicator | B29: 557 | C29: 557 | D29: 1 | E29: A/N | F29: OC
A30: Fund/Firm Reject Reason Code 1 | B30: 558 | C30: 561 | D30: 4 | E30: A/N | F30: OC
A31: Fund/Firm Reject Reason Code 2 | B31: 562 | C31: 565 | D31: 4 | E31: A/N | F31: O
A32: Fund/Firm Reject Reason Code 3 | B32: 566 | C32: 569 | D32: 4 | E32: A/N | F32: O
A33: Fund/Firm Reject Reason Code 4 | B33: 570 | C33: 573 | D33: 4 | E33: A/N | F33: O

Sheet Activity&Distribution
A1: Last Update timestamp : 23-04-26 11:20:24 by Musielak, Victor A. | C1: 050 = Activity and Distribution 056 = Activity Confirmation Note – Red=Required, Blue=Optional, Black=Optional Conditional (see Data Dictionary for condition)
A2: Record Length (R-4-N) | B2: Originator Type (R-1-A/N) | C2: Firm Number (R-8-A/N) | D2: Fund Number (R-8-A/N) | E2: Record Type (R-3-A/N) | F2: NSCC Security Issue Number (OC-16-A/N) | G2: NSCC Sidepocket ID (O-3-A/N) | H2: Share Class (O-8-A/N) | I2: Security Identifier (O-1-A/N) | J2: Security Issue ID (O-12-A/N) | K2: Control Number (R-20-A/N) | L2: FATCA Withholding Indicator (O-1-A/N) | M2: FATCA Withholding Amount (OC-16-N) | N2: Filler (R-1-A/N) | O2: NSCC Reject Indicator (R-1-A/N) | P2: NSCC Reject Reason Code 1 (R-4-A/N) | Q2: NSCC Reject Reason Code 2 (R-4-A/N) | R2: NSCC Reject Reason Code 3 (R-4-A/N) | S2: NSCC Reject Reason Code 4 (R-4-A/N) | T2: Transaction Type (R-2-A/N) | U2: Settlement Date (OC-8-N) | V2: Settlement Indicator (R-1-A/N) | W2: Network Control Indicator (R-1-A/N) | X2: Firm Account Number (OC-20-A/N) | Y2: Fund Account Number (OC-20-A/N) | Z2: Payable Date (O-8-N) | AA2: Currency Indicator (R-3-A/N) | AB2: Share Quantity (OC-14-N) | AC2: Share Debit/Credit Indicator (OC-1-A/N) | AD2: Effective Date – (Business Date) (OC-8-N) | AE2: Money Amount (OC-16-N) | AF2: Backup Withholding Indicator (OC-1-A/N) | AG2: Backup Withholding Amount (OC-16-N) | AH2: Sales Charge Rate (OC-4-N) | AI2: Original Trade Date/ Payable Date for Adjustment (OC-8-N) | AJ2: Price Per Share (OC-12-N) | AK2: Dividend Rate (OC-8-N) | AL2: Capital Gain Rate (OC-8-N) | AM2: Cash Disbursement Indicator (O-1-A/N) | AN2: Money Debit/Credit Indicator (OC-1-A/N) | AO2: Load Type Indicator (O-1-A/N) | AP2: Cross Security NSCC ID (OC-16-A/N) | AQ2: Commission/CDSC Amount (O-16-N) | AR2: Valuation Date (O-8-N) | AS2: Valuation Price (O-12-N) | AT2: Confirm Share Quantity (O-14-N) | AU2: Estimated or Actual Value Confirm (O-1-A/N) | AV2: Custodian Name (O-35-A/N) | AW2: Custodian Tax Identification Number (O-9-N) | AX2: Account Registration Name (OC-35-A/N) | AY2: Related Control Number (OC-20-A/N) | AZ2: Transfer To/From Account Number (OC-20-A/N) | BA2: Upfront Commission Percentage (O-6-N) | BB2: Reinvest Date (O-8-N) | BC2: Account Registration Name - Extended (O-160-A/N) | BD2: Custodian Name - Extended (O-40-A/N) | BE2: SSN/TIN/EIN Indicator (O-1-A/N) | BF2: SSN/TIN/EIN Number (O-9-A/N) | BG2: Adjustment Indicator (O-1-A/N) | BH2: Series NSCC Security Issue Number (OC-16-A/N) | BI2: Record Date (O-8-N) | BJ2: FATCA Withholding Rate (O-8-N) | BK2: Total Distribution Amount (O-16-N) | BL2: Effective Date – (Calendar Date) (OC-8-N) | BM2: Account Representative/Advisor Number (O-9-A/N) | BN2: Account Representative/Advisor Name (O-15-A/N) | BO2: Branch ID Number (O-9-A/N) | BP2: Direct Purchase/Capital Call Type (OC-1-N) | BQ2: Account Open Date (O-8-N) | BR2: Account Type (O-2-A/N) | BS2: Split/Reverse Split Ratio (OC-5-A/N) | BT2: Taxable Indicator (OC-1-A/N) | BU2: Closing Balance Date (R-8-N) | BV2: Closing Money Value (OC-16-N) | BW2: Closing Share Balance (OC-14-N) | BX2: Total Commitment Amount (OC-16-N) | BY2: Fulfilled Commitment Amount (O-16-N) | BZ2: Remaining Commitment Amount (O-16-N) | CA2: Fund Assessed Fee Amount (O-16-N) | CB2: ToBeExecuted
A3: 0900 | G3: |NoTag| | H3: |NoTag| | I3: |NoTag| | J3: |NoTag| | L3: |NoTag| | N3: |NoTag| | Z3: |NoTag| | AM3: |NoTag| | AO3: |NoTag| | AQ3: |NoTag| | AR3: |NoTag| | AS3: |NoTag| | AT3: |NoTag| | AU3: |NoTag| | AV3: |NoTag| | AW3: |NoTag| | BA3: |NoTag| | BB3: |NoTag| | BC3: |NoTag| | BD3: |NoTag| | BE3: |NoTag| | BF3: |NoTag| | BG3: |NoTag| | BI3: |NoTag| | BJ3: |NoTag| | BK3: |NoTag| | BM3: |NoTag| | BN3: |NoTag| | BO3: |NoTag| | BQ3: |NoTag| | BR3: |NoTag| | BY3: |NoTag| | BZ3: |NoTag| | CA3: |NoTag| | CB3: No

Sheet Activity&Distribution_DD (hidden)
A1: Field Name | B1: Start | C1: End | D1: Length | E1: Type | F1: Opt/Req | G1: Default2Zero
A2: Record Length | B2: 1 | C2: 4 | D2: 4 | E2: N | F2: R | G2: NO
A3: Originator Type | B3: 5 | C3: 5 | D3: 1 | E3: A/N | F3: R
A4: Firm Number | B4: 6 | C4: 13 | D4: 8 | E4: A/N | F4: R
A5: Fund Number | B5: 14 | C5: 21 | D5: 8 | E5: A/N | F5: R
A6: Record Type | B6: 22 | C6: 24 | D6: 3 | E6: A/N | F6: R
A7: NSCC Security Issue Number | B7: 25 | C7: 40 | D7: 16 | E7: A/N | F7: OC
A8: NSCC Sidepocket ID | B8: 41 | C8: 43 | D8: 3 | E8: A/N | F8: O
A9: Share Class | B9: 44 | C9: 51 | D9: 8 | E9: A/N | F9: O
A10: Security Identifier | B10: 52 | C10: 52 | D10: 1 | E10: A/N | F10: O
A11: Security Issue ID | B11: 53 | C11: 64 | D11: 12 | E11: A/N | F11: O
A12: Control Number | B12: 65 | C12: 84 | D12: 20 | E12: A/N | F12: R
A13: FATCA Withholding Indicator | B13: 85 | C13: 85 | D13: 1 | E13: A/N | F13: O
A14: FATCA Withholding Amount | B14: 86 | C14: 101 | D14: 16 | E14: N | F14: OC | G14: NO
A15: Filler | B15: 102 | C15: 102 | D15: 1 | E15: A/N | F15: R
A16: NSCC Reject Indicator | B16: 103 | C16: 103 | D16: 1 | E16: A/N | F16: R
A17: NSCC Reject Reason Code 1 | B17: 104 | C17: 107 | D17: 4 | E17: A/N | F17: R
A18: NSCC Reject Reason Code 2 | B18: 108 | C18: 111 | D18: 4 | E18: A/N | F18: R
A19: NSCC Reject Reason Code 3 | B19: 112 | C19: 115 | D19: 4 | E19: A/N | F19: R
A20: NSCC Reject Reason Code 4 | B20: 116 | C20: 119 | D20: 4 | E20: A/N | F20: R
A21: Transaction Type | B21: 120 | C21: 121 | D21: 2 | E21: A/N | F21: R
A22: Settlement Date | B22: 122 | C22: 129 | D22: 8 | E22: N | F22: OC | G22: NO
A23: Settlement Indicator | B23: 130 | C23: 130 | D23: 1 | E23: A/N | F23: R
A24: Network Control Indicator | B24: 131 | C24: 131 | D24: 1 | E24: A/N | F24: R
A25: Firm Account Number | B25: 132 | C25: 151 | D25: 20 | E25: A/N | F25: OC
A26: Fund Account Number | B26: 152 | C26: 171 | D26: 20 | E26: A/N | F26: OC
A27: Payable Date | B27: 172 | C27: 179 | D27: 8 | E27: N | F27: O | G27: NO
A28: Currency Indicator | B28: 180 | C28: 182 | D28: 3 | E28: A/N | F28: R
A29: Share Quantity | B29: 183 | C29: 196 | D29: 14 | E29: N | F29: OC | G29: NO
A30: Share Debit/Credit Indicator | B30: 197 | C30: 197 | D30: 1 | E30: A/N | F30: OC
A31: Effective Date – (Business Date) | B31: 198 | C31: 205 | D31: 8 | E31: N | F31: OC | G31: NO
A32: Money Amount | B32: 206 | C32: 221 | D32: 16 | E32: N | F32: OC | G32: NO
A33: Backup Withholding Indicator | B33: 222 | C33: 222 | D33: 1 | E33: A/N | F33: OC
A34: Backup Withholding Amount | B34: 223 | C34: 238 | D34: 16 | E34: N | F34: OC | G34: NO
A35: Sales Charge Rate | B35: 239 | C35: 242 | D35: 4 | E35: N | F35: OC | G35: NO
A36: Original Trade Date/ Payable Date for Adjustment | B36: 243 | C36: 250 | D36: 8 | E36: N | F36: OC | G36: NO
A37: Price Per Share | B37: 251 | C37: 262 | D37: 12 | E37: N | F37: OC | G37: NO
A38: Dividend Rate | B38: 263 | C38: 270 | D38: 8 | E38: N | F38: OC | G38: NO
A39: Capital Gain Rate | B39: 271 | C39: 278 | D39: 8 | E39: N | F39: OC | G39: NO
A40: Cash Disbursement Indicator | B40: 279 | C40: 279 | D40: 1 | E40: A/N | F40: O
A41: Money Debit/Credit Indicator | B41: 280 | C41: 280 | D41: 1 | E41: A/N | F41: OC
A42: Load Type Indicator | B42: 281 | C42: 281 | D42: 1 | E42: A/N | F42: O
A43: Cross Security NSCC ID | B43: 282 | C43: 297 | D43: 16 | E43: A/N | F43: OC
A44: Commission/CDSC Amount | B44: 298 | C44: 313 | D44: 16 | E44: N | F44: O
A45: Valuation Date | B45: 314 | C45: 321 | D45: 8 | E45: N | F45: O | G45: NO
A46: Valuation Price | B46: 322 | C46: 333 | D46: 12 | E46: N | F46: O
A47: Confirm Share Quantity | B47: 334 | C47: 347 | D47: 14 | E47: N | F47: O
A48: Estimated or Actual Value Confirm | B48: 348 | C48: 348 | D48: 1 | E48: A/N | F48: O
A49: Custodian Name | B49: 349 | C49: 383 | D49: 35 | E49: A/N | F49: O
A50: Custodian Tax Identification Number | B50: 384 | C50: 392 | D50: 9 | E50: N | F50: O | G50: NO
A51: Account Registration Name | B51: 393 | C51: 427 | D51: 35 | E51: A/N | F51: OC
A52: Related Control Number | B52: 428 | C52: 447 | D52: 20 | E52: A/N | F52: OC
A53: Transfer To/From Account Number | B53: 448 | C53: 467 | D53: 20 | E53: A/N | F53: OC
A54: Upfront Commission Percentage | B54: 468 | C54: 473 | D54: 6 | E54: N | F54: O
A55: Reinvest Date | B55: 474 | C55: 481 | D55: 8 | E55: N | F55: O | G55: NO
A56: Account Registration Name - Extended | B56: 482 | C56: 641 | D56: 160 | E56: A/N | F56: O
A57: Custodian Name - Extended | B57: 642 | C57: 681 | D57: 40 | E57: A/N | F57: O
A58: SSN/TIN/EIN Indicator | B58: 682 | C58: 682 | D58: 1 | E58: A/N | F58: O
A59: SSN/TIN/EIN Number | B59: 683 | C59: 691 | D59: 9 | E59: A/N | F59: O
A60: Adjustment Indicator | B60: 692 | C60: 692 | D60: 1 | E60: A/N | F60: O
A61: Series NSCC Security Issue Number | B61: 693 | C61: 708 | D61: 16 | E61: A/N | F61: OC
A62: Record Date | B62: 709 | C62: 716 | D62: 8 | E62: N | F62: O | G62: NO
A63: FATCA Withholding Rate | B63: 717 | C63: 724 | D63: 8 | E63: N | F63: O
A64: Total Distribution Amount | B64: 725 | C64: 740 | D64: 16 | E64: N | F64: O | G64: NO
A65: Effective Date – (Calendar Date) | B65: 741 | C65: 748 | D65: 8 | E65: N | F65: OC | G65: NO
A66: Account Representative/Advisor Number | B66: 749 | C66: 757 | D66: 9 | E66: A/N | F66: O
A67: Account Representative/Advisor Name | B67: 758 | C67: 772 | D67: 15 | E67: A/N | F67: O
A68: Branch ID Number | B68: 773 | C68: 781 | D68: 9 | E68: A/N | F68: O
A69: Direct Purchase/Capital Call Type | B69: 782 | C69: 782 | D69: 1 | E69: N | F69: OC | G69: NO
A70: Account Open Date | B70: 783 | C70: 790 | D70: 8 | E70: N | F70: O | G70: NO
A71: Account Type | B71: 791 | C71: 792 | D71: 2 | E71: A/N | F71: O
A72: Split/Reverse Split Ratio | B72: 793 | C72: 797 | D72: 5 | E72: A/N | F72: OC
A73: Taxable Indicator | B73: 798 | C73: 798 | D73: 1 | E73: A/N | F73: OC
A74: Closing Balance Date | B74: 799 | C74: 806 | D74: 8 | E74: N | F74: R
A75: Closing Money Value | B75: 807 | C75: 822 | D75: 16 | E75: N | F75: OC | G75: NO
A76: Closing Share Balance | B76: 823 | C76: 836 | D76: 14 | E76: N | F76: OC | G76: NO
A77: Total Commitment Amount | B77: 837 | C77: 852 | D77: 16 | E77: N | F77: OC | G77: NO
A78: Fulfilled Commitment Amount | B78: 853 | C78: 868 | D78: 16 | E78: N | F78: O | G78: NO
A79: Remaining Commitment Amount | B79: 869 | C79: 884 | D79: 16 | E79: N | F79: O | G79: NO
A80: Fund Assessed Fee Amount | B80: 885 | C80: 900 | D80: 16 | E80: N | F80: O | G80: NO

Sheet Commission
A1: Last Update timestamp : 20-04-20 12:31:02 by Musielak, Victor A. | C1: 051 = Commission Note – Red=Required, Blue=Optional, Black=Optional Conditional (see Data Dictionary for condition) | AZ1: `
A2: Record Length (R-4-N) | B2: Originator Type (R-1-A/N) | C2: Firm Number (R-8-A/N) | D2: Fund Number (R-8-A/N) | E2: Record Type (R-3-A/N) | F2: NSCC Security Issue Number (OC-16-A/N) | G2: NSCC Sidepocket ID (O-3-A/N) | H2: Share Class (O-8-A/N) | I2: Security Identifier (O-1-A/N) | J2: Security Issue ID (O-12-A/N) | K2: Control Number (R-20-A/N) | L2: Filler (R-18-A/N) | M2: NSCC Reject Indicator (R-1-A/N) | N2: NSCC Reject Reason Code 1 (R-4-A/N) | O2: NSCC Reject Reason Code 2 (R-4-A/N) | P2: NSCC Reject Reason Code 3 (R-4-A/N) | Q2: NSCC Reject Reason Code 4 (R-4-A/N) | R2: Filler (R-2-A/N) | S2: Settlement Date (R-8-N) | T2: Settlement Indicator (R-1-A/N) | U2: Network Control Indicator (R-1-A/N) | V2: Firm Account Number (OC-20-A/N) | W2: Fund Account Number (OC-20-A/N) | X2: Account Type (O-2-A/N) | Y2: Filler (R-6-A/N) | Z2: Currency Indicator (R-3-A/N) | AA2: Share Quantity (O-14-N) | AB2: Trade Date (O-8-N) | AC2: Price Per Share (O-12-N) | AD2: Debit/Credit Indicator (R-1-A/N) | AE2: Debit Reason Code (OC-1-A/N) | AF2: Fund Processing Date (R-8-N) | AG2: Commission Type (R-2-A/N) | AH2: Filler (R-8-A/N) | AI2: Commission Amount (R-16-N) | AJ2: SSN/TIN Number Indicator (O-1-A/N) | AK2: SSN/TIN Number (O-9-A/N) | AL2: Branch ID Number (R-9-A/N) | AM2: Account Representative/Advisor Number (O-9-A/N) | AN2: Name Indicator 1 (OC-1-A/N) | AO2: Name 1 (O-35-A/N) | AP2: Name Indicator 2 (OC-1-A/N) | AQ2: Name 2 (O-35-A/N) | AR2: Commission Rate (O-8-N) | AS2: Gross Amount of Trade (O-16-N) | AT2: Custodian Name (O-35-A/N) | AU2: Custodian Tax Identification Number (O-9-A/N) | AV2: Account Registration Name (O-35-A/N) | AW2: Share Lot Identifier (O-8-N) | AX2: Custodian Name - Extended (O-40-A/N) | AY2: Account Registration Name - Extended (O-160-A/N) | AZ2: Series NSCC Security Issue Number (OC-16-A/N) | BA2: Related Control Number (OC-20-A/N) | BB2: ToBeExecuted
A3: 0699 | G3: |NoTag| | H3: |NoTag| | I3: |NoTag| | J3: |NoTag| | L3: |NoTag| | R3: |NoTag| | X3: |NoTag| | Y3: |NoTag| | AA3: |NoTag| | AB3: |NoTag| | AC3: |NoTag| | AH3: |NoTag| | AJ3: |NoTag| | AK3: |NoTag| | AM3: |NoTag| | AO3: |NoTag| | AQ3: |NoTag| | AR3: |NoTag| | AS3: |NoTag| | AT3: |NoTag| | AU3: |NoTag| | AV3: |NoTag| | AW3: |NoTag| | AX3: |NoTag| | AY3: |NoTag| | BB3: No

Sheet Commission_DD (hidden)
A1: Field Name | B1: Start | C1: End | D1: Length | E1: Type | F1: Opt/Req | G1: Default2Zero
A2: Record Length | B2: 1 | C2: 4 | D2: 4 | E2: N | F2: R | G2: NO
A3: Originator Type | B3: 5 | C3: 5 | D3: 1 | E3: A/N | F3: R
A4: Firm Number | B4: 6 | C4: 13 | D4: 8 | E4: A/N | F4: R
A5: Fund Number | B5: 14 | C5: 21 | D5: 8 | E5: A/N | F5: R
A6: Record Type | B6: 22 | C6: 24 | D6: 3 | E6: A/N | F6: R
A7: NSCC Security Issue Number | B7: 25 | C7: 40 | D7: 16 | E7: A/N | F7: OC
A8: NSCC Sidepocket ID | B8: 41 | C8: 43 | D8: 3 | E8: A/N | F8: O
A9: Share Class | B9: 44 | C9: 51 | D9: 8 | E9: A/N | F9: O
A10: Security Identifier | B10: 52 | C10: 52 | D10: 1 | E10: A/N | F10: O
A11: Security Issue ID | B11: 53 | C11: 64 | D11: 12 | E11: A/N | F11: O
A12: Control Number | B12: 65 | C12: 84 | D12: 20 | E12: A/N | F12: R
A13: Filler | B13: 85 | C13: 102 | D13: 18 | E13: A/N | F13: R
A14: NSCC Reject Indicator | B14: 103 | C14: 103 | D14: 1 | E14: A/N | F14: R
A15: NSCC Reject Reason Code 1 | B15: 104 | C15: 107 | D15: 4 | E15: A/N | F15: R
A16: NSCC Reject Reason Code 2 | B16: 108 | C16: 111 | D16: 4 | E16: A/N | F16: R
A17: NSCC Reject Reason Code 3 | B17: 112 | C17: 115 | D17: 4 | E17: A/N | F17: R
A18: NSCC Reject Reason Code 4 | B18: 116 | C18: 119 | D18: 4 | E18: A/N | F18: R
A19: Filler | B19: 120 | C19: 121 | D19: 2 | E19: A/N | F19: R
A20: Settlement Date | B20: 122 | C20: 129 | D20: 8 | E20: N | F20: R | G20: NO
A21: Settlement Indicator | B21: 130 | C21: 130 | D21: 1 | E21: A/N | F21: R
A22: Network Control Indicator | B22: 131 | C22: 131 | D22: 1 | E22: A/N | F22: R
A23: Firm Account Number | B23: 132 | C23: 151 | D23: 20 | E23: A/N | F23: OC
A24: Fund Account Number | B24: 152 | C24: 171 | D24: 20 | E24: A/N | F24: OC
A25: Account Type | B25: 172 | C25: 173 | D25: 2 | E25: A/N | F25: O
A26: Filler | B26: 174 | C26: 179 | D26: 6 | E26: A/N | F26: R
A27: Currency Indicator | B27: 180 | C27: 182 | D27: 3 | E27: A/N | F27: R
A28: Share Quantity | B28: 183 | C28: 196 | D28: 14 | E28: N | F28: O
A29: Trade Date | B29: 197 | C29: 204 | D29: 8 | E29: N | F29: O | G29: NO
A30: Price Per Share | B30: 205 | C30: 216 | D30: 12 | E30: N | F30: O
A31: Debit/Credit Indicator | B31: 217 | C31: 217 | D31: 1 | E31: A/N | F31: R
A32: Debit Reason Code | B32: 218 | C32: 218 | D32: 1 | E32: A/N | F32: OC
A33: Fund Processing Date | B33: 219 | C33: 226 | D33: 8 | E33: N | F33: R | G33: NO
A34: Commission Type | B34: 227 | C34: 228 | D34: 2 | E34: A/N | F34: R
A35: Filler | B35: 229 | C35: 236 | D35: 8 | E35: A/N | F35: R
A36: Commission Amount | B36: 237 | C36: 252 | D36: 16 | E36: N | F36: R | G36: NO
A37: SSN/TIN Number Indicator | B37: 253 | C37: 253 | D37: 1 | E37: A/N | F37: O
A38: SSN/TIN Number | B38: 254 | C38: 262 | D38: 9 | E38: A/N | F38: O
A39: Branch ID Number | B39: 263 | C39: 271 | D39: 9 | E39: A/N | F39: R
A40: Account Representative/Advisor Number | B40: 272 | C40: 280 | D40: 9 | E40: A/N | F40: O
A41: Name Indicator 1 | B41: 281 | C41: 281 | D41: 1 | E41: A/N | F41: OC
A42: Name 1 | B42: 282 | C42: 316 | D42: 35 | E42: A/N | F42: O
A43: Name Indicator 2 | B43: 317 | C43: 317 | D43: 1 | E43: A/N | F43: OC
A44: Name 2 | B44: 318 | C44: 352 | D44: 35 | E44: A/N | F44: O
A45: Commission Rate | B45: 353 | C45: 360 | D45: 8 | E45: N | F45: O
A46: Gross Amount of Trade | B46: 361 | C46: 376 | D46: 16 | E46: N | F46: O
A47: Custodian Name | B47: 377 | C47: 411 | D47: 35 | E47: A/N | F47: O
A48: Custodian Tax Identification Number | B48: 412 | C48: 420 | D48: 9 | E48: A/N | F48: O
A49: Account Registration Name | B49: 421 | C49: 455 | D49: 35 | E49: A/N | F49: O
A50: Share Lot Identifier | B50: 456 | C50: 463 | D50: 8 | E50: N | F50: O | G50: NO
A51: Custodian Name - Extended | B51: 464 | C51: 503 | D51: 40 | E51: A/N | F51: O
A52: Account Registration Name - Extended | B52: 504 | C52: 663 | D52: 160 | E52: A/N | F52: O
A53: Series NSCC Security Issue Number | B53: 664 | C53: 679 | D53: 16 | E53: A/N | F53: OC
A54: Related Control Number | B54: 680 | C54: 699 | D54: 20 | E54: A/N | F54: OC

Sheet Position
A1: Last Update timestamp : 21-05-17 11:37:14 by Musielak, Victor A. | C1: 052 = Position Note – Red=Required, Blue=Optional, Black=Optional Conditional (see Data Dictionary for condition)
A2: Record Length (R-4-N) | B2: Originator Type (R-1-A/N) | C2: Firm Number (R-8-A/N) | D2: Fund Number (R-8-A/N) | E2: Record Type (R-3-A/N) | F2: NSCC Security Issue Number (OC-16-A/N) | G2: NSCC Sidepocket ID (O-3-A/N) | H2: Share Class (O-8-A/N) | I2: Security Identifier (O-1-A/N) | J2: Security Issue ID (O-12-A/N) | K2: Filler (R-38-A/N) | L2: NSCC Reject Indicator (R-1-A/N) | M2: NSCC Reject Reason Code 1 (R-4-A/N) | N2: NSCC Reject Reason Code 2 (R-4-A/N) | O2: NSCC Reject Reason Code 3 (R-4-A/N) | P2: NSCC Reject Reason Code 4 (R-4-A/N) | Q2: Hybrid Responsibility Indicator (OC-1-A/N) | R2: Account Open Date (O-8-N) | S2: Account Type (O-2-A/N) | T2: Network Control Indicator (R-1-A/N) | U2: Firm Account Number (OC-20-A/N) | V2: Fund Account Number (OC-20-A/N) | W2: NAV Effective Date (O-8-N) | X2: Balance Currency (R-3-A/N) | Y2: Reporting Currency (O-3-A/N) | Z2: Base Currency (O-3-A/N) | AA2: Previous Money Value (O-16-N) | AB2: Previous Share Balance (O-14-N) | AC2: Previous Value Date (O-8-N) | AD2: Closing Money Value (OC-16-N) | AE2: Closing Share Balance (OC-14-N) | AF2: Closing Balance Date (R-8-N) | AG2: Lock Up Start Date (O-8-N) | AH2: Lock Up End Date (O-8-N) | AI2: Series Roll Up Date (O-8-N) | AJ2: Highwater Mark (O-16-N) | AK2: Hurdle Rate (O-6-N) | AL2: NAV (R-16-N) | AM2: Custodian Name (O-35-A/N) | AN2: Custodian Tax Identification Number (O-9-A/N) | AO2: Account Registration Name (O-35-A/N) | AP2: YTD Performance (O-4-N) | AQ2: YTD Performance Positive/Negative Indicator (O-1-A/N) | AR2: Invested Value (O-16-N) | AS2: GAV (O-16-N) | AT2: Inception Date (O-8-N) | AU2: YTD Return (O-4-N) | AV2: YTD Positive/Negative Indicator (O-1-A/N) | AW2: VAR(95%) (O-4-N) | AX2: VAR Positive/Negative Indicator (O-1-A/N) | AY2: Sharpe Ratio (O-4-N) | AZ2: Sharpe Ratio Positive/Negative Indicator (O-1-A/N) | BA2: Sortino Ratio (O-4-N) | BB2: Sortino Ratio Positive/Negative Indicator (O-1-A/N) | BC2: Total Commitment Amount (O-16-N) | BD2: Fulfilled Commitment Amount (O-16-N) | BE2: Remaining Commitment Amount (O-16-N) | BF2: Month to Date Return (O-4-N) | BG2: Month to Date Return Indicator (O-1-A/N) | BH2: Quarter to Date Return (O-4-N) | BI2: Quarter to Date Return Indicator (O-1-A/N) | BJ2: Return since Inception (O-4-N) | BK2: Return Since Inception Indicator (O-1-A/N) | BL2: Number of Shares in Lock Up (O-14-N) | BM2: Value of Lock Up Assets (O-16-N) | BN2: Number of Unaged Shares for Redemption Fee (O-14-N) | BO2: Holdback Position Number of Shares (O-14-N) | BP2: Value of Holdback Position (O-16-N) | BQ2: Interest Included Indicator (O-1-A/N) | BR2: Account Registration Name - Extended (O-160-A/N) | BS2: Custodian Name - Extended (O-40-A/N) | BT2: SSN/TIN/EIN Indicator (O-1-A/N) | BU2: SSN/TIN/EIN Number (O-9-A/N) | BV2: Series NSCC Security Issue Number (OC-16-A/N) | BW2: Account Representative/Advisor Number (O-9-A/N) | BX2: Account Representative/Advisor Name (O-15-A/N) | BY2: Branch ID Number (O-9-A/N) | BZ2: Dividend Option (O-1-A/N) | CA2: Pending Money Value (O-16-N) | CB2: ITD Outside Commitment Contributions (O-16-N) | CC2: ITD Fees and Expenses (O-16-N) | CD2: ITD Contributions (O-16-N) | CE2: ITD Non Recallable Distributions to Date (O-16-N) | CF2: ITD Recallable Distributions to Date (O-16-N) | CG2: ITD Distributions to Date (O-16-N) | CH2: ToBeExecuted
A3: 0980 | G3: |NoTag| | H3: |NoTag| | I3: |NoTag| | J3: |NoTag| | K3: |NoTag| | R3: |NoTag| | S3: |NoTag| | W3: |NoTag| | Y3: |NoTag| | Z3: |NoTag| | AA3: |NoTag| | AB3: |NoTag| | AC3: |NoTag| | AG3: |NoTag| | AH3: |NoTag| | AI3: |NoTag| | AJ3: |NoTag| | AK3: |NoTag| | AM3: |NoTag| | AN3: |NoTag| | AO3: |NoTag| | AP3: |NoTag| | AQ3: |NoTag| | AR3: |NoTag| | AS3: |NoTag| | AT3: |NoTag| | AU3: |NoTag| | AV3: |NoTag| | AW3: |NoTag| | AX3: |NoTag| | AY3: |NoTag| | AZ3: |NoTag| | BA3: |NoTag| | BB3: |NoTag| | BC3: |NoTag| | BD3: |NoTag| | BE3: |NoTag| | BF3: |NoTag| | BG3: |NoTag| | BH3: |NoTag| | BI3: |NoTag| | BJ3: |NoTag| | BK3: |NoTag| | BL3: |NoTag| | BM3: |NoTag| | BN3: |NoTag| | BO3: |NoTag| | BP3: |NoTag| | BQ3: |NoTag| | BR3: |NoTag| | BS3: |NoTag| | BT3: |NoTag| | BU3: |NoTag| | BW3: |NoTag| | BX3: |NoTag| | BY3: |NoTag| | BZ3: |NoTag| | CA3: |NoTag| | CB3: |NoTag| | CC3: |NoTag| | CD3: |NoTag| | CE3: |NoTag| | CF3: |NoTag| | CG3: |NoTag| | CH3: No

Sheet Position_DD (hidden)
A1: Field Name | B1: Start | C1: End | D1: Length | E1: Type | F1: Opt/Req | G1: Default2Zero
A2: Record Length | B2: 1 | C2: 4 | D2: 4 | E2: N | F2: R | G2: NO
A3: Originator Type | B3: 5 | C3: 5 | D3: 1 | E3: A/N | F3: R
A4: Firm Number | B4: 6 | C4: 13 | D4: 8 | E4: A/N | F4: R
A5: Fund Number | B5: 14 | C5: 21 | D5: 8 | E5: A/N | F5: R
A6: Record Type | B6: 22 | C6: 24 | D6: 3 | E6: A/N | F6: R
A7: NSCC Security Issue Number | B7: 25 | C7: 40 | D7: 16 | E7: A/N | F7: OC
A8: NSCC Sidepocket ID | B8: 41 | C8: 43 | D8: 3 | E8: A/N | F8: O
A9: Share Class | B9: 44 | C9: 51 | D9: 8 | E9: A/N | F9: O
A10: Security Identifier | B10: 52 | C10: 52 | D10: 1 | E10: A/N | F10: O
A11: Security Issue ID | B11: 53 | C11: 64 | D11: 12 | E11: A/N | F11: O
A12: Filler | B12: 65 | C12: 102 | D12: 38 | E12: A/N | F12: R
A13: NSCC Reject Indicator | B13: 103 | C13: 103 | D13: 1 | E13: A/N | F13: R
A14: NSCC Reject Reason Code 1 | B14: 104 | C14: 107 | D14: 4 | E14: A/N | F14: R
A15: NSCC Reject Reason Code 2 | B15: 108 | C15: 111 | D15: 4 | E15: A/N | F15: R
A16: NSCC Reject Reason Code 3 | B16: 112 | C16: 115 | D16: 4 | E16: A/N | F16: R
A17: NSCC Reject Reason Code 4 | B17: 116 | C17: 119 | D17: 4 | E17: A/N | F17: R
A18: Hybrid Responsibility Indicator | B18: 120 | C18: 120 | D18: 1 | E18: A/N | F18: OC
A19: Account Open Date | B19: 121 | C19: 128 | D19: 8 | E19: N | F19: O | G19: NO
A20: Account Type | B20: 129 | C20: 130 | D20: 2 | E20: A/N | F20: O
A21: Network Control Indicator | B21: 131 | C21: 131 | D21: 1 | E21: A/N | F21: R
A22: Firm Account Number | B22: 132 | C22: 151 | D22: 20 | E22: A/N | F22: OC
A23: Fund Account Number | B23: 152 | C23: 171 | D23: 20 | E23: A/N | F23: OC
A24: NAV Effective Date | B24: 172 | C24: 179 | D24: 8 | E24: N | F24: O | G24: NO
A25: Balance Currency | B25: 180 | C25: 182 | D25: 3 | E25: A/N | F25: R
A26: Reporting Currency | B26: 183 | C26: 185 | D26: 3 | E26: A/N | F26: O
A27: Base Currency | B27: 186 | C27: 188 | D27: 3 | E27: A/N | F27: O
A28: Previous Money Value | B28: 189 | C28: 204 | D28: 16 | E28: N | F28: O
A29: Previous Share Balance | B29: 205 | C29: 218 | D29: 14 | E29: N | F29: O
A30: Previous Value Date | B30: 219 | C30: 226 | D30: 8 | E30: N | F30: O | G30: NO
A31: Closing Money Value | B31: 227 | C31: 242 | D31: 16 | E31: N | F31: OC
A32: Closing Share Balance | B32: 243 | C32: 256 | D32: 14 | E32: N | F32: OC
A33: Closing Balance Date | B33: 257 | C33: 264 | D33: 8 | E33: N | F33: R | G33: NO
A34: Lock Up Start Date | B34: 265 | C34: 272 | D34: 8 | E34: N | F34: O | G34: NO
A35: Lock Up End Date | B35: 273 | C35: 280 | D35: 8 | E35: N | F35: O | G35: NO
A36: Series Roll Up Date | B36: 281 | C36: 288 | D36: 8 | E36: N | F36: O | G36: NO
A37: Highwater Mark | B37: 289 | C37: 304 | D37: 16 | E37: N | F37: O
A38: Hurdle Rate | B38: 305 | C38: 310 | D38: 6 | E38: N | F38: O
A39: NAV | B39: 311 | C39: 326 | D39: 16 | E39: N | F39: R | G39: NO
A40: Custodian Name | B40: 327 | C40: 361 | D40: 35 | E40: A/N | F40: O
A41: Custodian Tax Identification Number | B41: 362 | C41: 370 | D41: 9 | E41: A/N | F41: O
A42: Account Registration Name | B42: 371 | C42: 405 | D42: 35 | E42: A/N | F42: O
A43: YTD Performance | B43: 406 | C43: 409 | D43: 4 | E43: N | F43: O
A44: YTD Performance Positive/Negative Indicator | B44: 410 | C44: 410 | D44: 1 | E44: A/N | F44: O
A45: Invested Value | B45: 411 | C45: 426 | D45: 16 | E45: N | F45: O
A46: GAV | B46: 427 | C46: 442 | D46: 16 | E46: N | F46: O
A47: Inception Date | B47: 443 | C47: 450 | D47: 8 | E47: N | F47: O | G47: NO
A48: YTD Return | B48: 451 | C48: 454 | D48: 4 | E48: N | F48: O
A49: YTD Positive/Negative Indicator | B49: 455 | C49: 455 | D49: 1 | E49: A/N | F49: O
A50: VAR(95%) | B50: 456 | C50: 459 | D50: 4 | E50: N | F50: O
A51: VAR Positive/Negative Indicator | B51: 460 | C51: 460 | D51: 1 | E51: A/N | F51: O
A52: Sharpe Ratio | B52: 461 | C52: 464 | D52: 4 | E52: N | F52: O
A53: Sharpe Ratio Positive/Negative Indicator | B53: 465 | C53: 465 | D53: 1 | E53: A/N | F53: O
A54: Sortino Ratio | B54: 466 | C54: 469 | D54: 4 | E54: N | F54: O
A55: Sortino Ratio Positive/Negative Indicator | B55: 470 | C55: 470 | D55: 1 | E55: A/N | F55: O
A56: Total Commitment Amount | B56: 471 | C56: 486 | D56: 16 | E56: N | F56: O
A57: Fulfilled Commitment Amount | B57: 487 | C57: 502 | D57: 16 | E57: N | F57: O
A58: Remaining Commitment Amount | B58: 503 | C58: 518 | D58: 16 | E58: N | F58: O
A59: Month to Date Return | B59: 519 | C59: 522 | D59: 4 | E59: N | F59: O
A60: Month to Date Return Indicator | B60: 523 | C60: 523 | D60: 1 | E60: A/N | F60: O
A61: Quarter to Date Return | B61: 524 | C61: 527 | D61: 4 | E61: N | F61: O
A62: Quarter to Date Return Indicator | B62: 528 | C62: 528 | D62: 1 | E62: A/N | F62: O
A63: Return since Inception | B63: 529 | C63: 532 | D63: 4 | E63: N | F63: O
A64: Return Since Inception Indicator | B64: 533 | C64: 533 | D64: 1 | E64: A/N | F64: O
A65: Number of Shares in Lock Up | B65: 534 | C65: 547 | D65: 14 | E65: N | F65: O
A66: Value of Lock Up Assets | B66: 548 | C66: 563 | D66: 16 | E66: N | F66: O
A67: Number of Unaged Shares for Redemption Fee | B67: 564 | C67: 577 | D67: 14 | E67: N | F67: O
A68: Holdback Position Number of Shares | B68: 578 | C68: 591 | D68: 14 | E68: N | F68: O
A69: Value of Holdback Position | B69: 592 | C69: 607 | D69: 16 | E69: N | F69: O
A70: Interest Included Indicator | B70: 608 | C70: 608 | D70: 1 | E70: A/N | F70: O
A71: Account Registration Name - Extended | B71: 609 | C71: 768 | D71: 160 | E71: A/N | F71: O
A72: Custodian Name - Extended | B72: 769 | C72: 808 | D72: 40 | E72: A/N | F72: O
A73: SSN/TIN/EIN Indicator | B73: 809 | C73: 809 | D73: 1 | E73: A/N | F73: O
A74: SSN/TIN/EIN Number | B74: 810 | C74: 818 | D74: 9 | E74: A/N | F74: O
A75: Series NSCC Security Issue Number | B75: 819 | C75: 834 | D75: 16 | E75: A/N | F75: OC
A76: Account Representative/Advisor Number | B76: 835 | C76: 843 | D76: 9 | E76: A/N | F76: O
A77: Account Representative/Advisor Name | B77: 844 | C77: 858 | D77: 15 | E77: A/N | F77: O
A78: Branch ID Number | B78: 859 | C78: 867 | D78: 9 | E78: A/N | F78: O
A79: Dividend Option | B79: =$C78+1 -> 868 | C79: =$B79+$D79-1 -> 868 | D79: 1 | E79: A/N | F79: O
A80: Pending Money Value | B80: 869 | C80: 884 | D80: 16 | E80: N | F80: O
A81: ITD Outside Commitment Contributions | B81: 885 | C81: 900 | D81: 16 | E81: N | F81: O
A82: ITD Fees and Expenses | B82: 901 | C82: 916 | D82: 16 | E82: N | F82: O
A83: ITD Contributions | B83: 917 | C83: 932 | D83: 16 | E83: N | F83: O
A84: ITD Non Recallable Distributions to Date | B84: 933 | C84: 948 | D84: 16 | E84: N | F84: O
A85: ITD Recallable Distributions to Date | B85: 949 | C85: 964 | D85: 16 | E85: N | F85: O
A86: ITD Distributions to Date | B86: 965 | C86: 980 | D86: 16 | E86: N | F86: O

Sheet Electronic Documentation
A1: Last Update timestamp : 21-11-05 13:09:40 by Musielak, Victor A. | C1: 094 = Electronic Documentation Acknowledgement by Fund 095 = Electronic Documentation Reject by Fund 096 = Electronic Documentation Accepted by Fund Note – Red=Required, Blue=Optional, Black=Optional Conditional (see Data Dictionary for condition)
A2: Record Length (R-4-N) | B2: Originator Type (R-1-A/N) | C2: Firm Number (R-8-A/N) | D2: Fund Number (R-8-A/N) | E2: Record Type (R-3-A/N) | F2: NSCC Security Issue Number (OC-16-A/N) | G2: NSCC Sidepocket ID (O-3-A/N) | H2: Share Class (O-8-A/N) | I2: Control Number (R-20-A/N) | J2: Version Number (R-2-N) | K2: Filler (R-29-A/N) | L2: NSCC Reject Indicator (R-1-A/N) | M2: NSCC Reject Reason Code 1 (R-4-A/N) | N2: NSCC Reject Reason Code 2 (R-4-A/N) | O2: NSCC Reject Reason Code 3 (R-4-A/N) | P2: NSCC Reject Reason Code 4 (R-4-A/N) | Q2: Filler (R-61-A/N) | R2: Series NSCC Security Issue Number (OC-16-A/N) | S2: Fund Reject Indicator (OC-1-A/N) | T2: Fund Reject Reason Code 1 (OC-4-A/N) | U2: Fund Reject Reason Code 2 (O-4-A/N) | V2: Fund Reject Reason Code 3 (O-4-A/N) | W2: Fund Reject Reason Code 4 (O-4-A/N) | X2: Filler (R-50-A/N) | Y2: Fund Reject Description (OC-2000-A/N) | Z2: ToBeExecuted
A3: 2263 | G3: |NoTag| | H3: |NoTag| | K3: |NoTag| | Q3: |NoTag| | U3: |NoTag| | V3: |NoTag| | W3: |NoTag| | X3: |NoTag| | Z3: No

Sheet Electronic Documentation_DD (hidden)
A1: Field Name | B1: Start | C1: End | D1: Length | E1: Type | F1: Opt/Req | G1: Default2Zero
A2: Record Length | B2: 1 | C2: 4 | D2: 4 | E2: N | F2: R | G2: NO
A3: Originator Type | B3: 5 | C3: 5 | D3: 1 | E3: A/N | F3: R
A4: Firm Number | B4: 6 | C4: 13 | D4: 8 | E4: A/N | F4: R
A5: Fund Number | B5: 14 | C5: 21 | D5: 8 | E5: A/N | F5: R
A6: Record Type | B6: 22 | C6: 24 | D6: 3 | E6: A/N | F6: R
A7: NSCC Security Issue Number | B7: 25 | C7: 40 | D7: 16 | E7: A/N | F7: OC
A8: NSCC Sidepocket ID | B8: 41 | C8: 43 | D8: 3 | E8: A/N | F8: O
A9: Share Class | B9: 44 | C9: 51 | D9: 8 | E9: A/N | F9: O
A10: Control Number | B10: 52 | C10: 71 | D10: 20 | E10: A/N | F10: R
A11: Version Number | B11: 72 | C11: 73 | D11: 2 | E11: N | F11: R | G11: NO
A12: Filler | B12: 74 | C12: 102 | D12: 29 | E12: A/N | F12: R
A13: NSCC Reject Indicator | B13: 103 | C13: 103 | D13: 1 | E13: A/N | F13: R
A14: NSCC Reject Reason Code 1 | B14: 104 | C14: 107 | D14: 4 | E14: A/N | F14: R
A15: NSCC Reject Reason Code 2 | B15: 108 | C15: 111 | D15: 4 | E15: A/N | F15: R
A16: NSCC Reject Reason Code 3 | B16: 112 | C16: 115 | D16: 4 | E16: A/N | F16: R
A17: NSCC Reject Reason Code 4 | B17: 116 | C17: 119 | D17: 4 | E17: A/N | F17: R
A18: Filler | B18: 120 | C18: 180 | D18: 61 | E18: A/N | F18: R
A19: Series NSCC Security Issue Number | B19: 181 | C19: 196 | D19: 16 | E19: A/N | F19: OC
A20: Fund Reject Indicator | B20: 197 | C20: 197 | D20: 1 | E20: A/N | F20: OC
A21: Fund Reject Reason Code 1 | B21: 198 | C21: 201 | D21: 4 | E21: A/N | F21: OC
A22: Fund Reject Reason Code 2 | B22: 202 | C22: 205 | D22: 4 | E22: A/N | F22: O
A23: Fund Reject Reason Code 3 | B23: 206 | C23: 209 | D23: 4 | E23: A/N | F23: O
A24: Fund Reject Reason Code 4 | B24: 210 | C24: 213 | D24: 4 | E24: A/N | F24: O
A25: Filler | B25: 214 | C25: 263 | D25: 50 | E25: A/N | F25: R
A26: Fund Reject Description | B26: 264 | C26: 2263 | D26: 2000 | E26: A/N | F26: OC

Sheet Document Transfer Manifest
A1: Last Update timestamp : 22-07-26 11:38:56 by Musielak, Victor A. | C1: 799 = Document Transfer Manifest Note – Red=Required, Blue=Optional, Black=Optional Conditional (see Data Dictionary for condition)
A2: Record Length (R-4-N) | B2: Originator Type (R-1-A/N) | C2: Sender Number (R-8-A/N) | D2: Recipient Number (R-8-A/N) | E2: Record Type (R-3-A/N) | F2: NSCC Security Issue Number (OC-16-A/N) | G2: Control Number (R-20-A/N) | H2: Version Number (R-2-A/N) | I2: Transaction Type (R-2-A/N) | J2: Related Transaction Indicator (R-1-N) | K2: Firm Account Number (O-20-A/N) | L2: Fund Account Number (O-20-A/N) | M2: Series NSCC Security Issue Number (OC-16-A/N) | N2: NSCC Reject Indicator (R-1-A/N) | O2: NSCC Reject Reason Code 1 (R-4-A/N) | P2: NSCC Reject Reason Code 2 (R-4-A/N) | Q2: NSCC Reject Reason Code 3 (R-4-A/N) | R2: NSCC Reject Reason Code 4 (R-4-A/N) | S2: ToBeExecuted
A3: 0138 | K3: |NoTag| | L3: |NoTag| | S3: No

Sheet Document Transfer Manifest_DD (hidden)
A1: Field Name | B1: Start | C1: End | D1: Length | E1: Type | F1: Opt/Req | G1: Default2Zero
A2: Record Length | B2: 1 | C2: =$B2+$D2-1 -> 4 | D2: 4 | E2: N | F2: R | G2: NO
A3: Originator Type | B3: =+C2+1 -> 5 | C3: =$B3+$D3-1 -> 5 | D3: 1 | E3: A/N | F3: R
A4: Sender Number | B4: =+C3+1 -> 6 | C4: 13 | D4: 8 | E4: A/N | F4: R
A5: Recipient Number | B5: 14 | C5: 21 | D5: 8 | E5: A/N | F5: R
A6: Record Type | B6: 22 | C6: 24 | D6: 3 | E6: A/N | F6: R
A7: NSCC Security Issue Number | B7: 25 | C7: 40 | D7: 16 | E7: A/N | F7: OC
A8: Control Number | B8: 41 | C8: 60 | D8: 20 | E8: A/N | F8: R
A9: Version Number | B9: 61 | C9: 62 | D9: 2 | E9: A/N | F9: R
A10: Transaction Type | B10: 63 | C10: 64 | D10: 2 | E10: A/N | F10: R
A11: Related Transaction Indicator | B11: 65 | C11: 65 | D11: 1 | E11: N | F11: R | G11: NO
A12: Firm Account Number | B12: 66 | C12: 85 | D12: 20 | E12: A/N | F12: O
A13: Fund Account Number | B13: 86 | C13: 105 | D13: 20 | E13: A/N | F13: O
A14: Series NSCC Security Issue Number | B14: 106 | C14: 121 | D14: 16 | E14: A/N | F14: OC
A15: NSCC Reject Indicator | B15: 122 | C15: 122 | D15: 1 | E15: A/N | F15: R
A16: NSCC Reject Reason Code 1 | B16: =$C15+1 -> 123 | C16: 126 | D16: 4 | E16: A/N | F16: R
A17: NSCC Reject Reason Code 2 | B17: 127 | C17: 130 | D17: 4 | E17: A/N | F17: R
A18: NSCC Reject Reason Code 3 | B18: 131 | C18: 134 | D18: 4 | E18: A/N | F18: R
A19: NSCC Reject Reason Code 4 | B19: 135 | C19: 138 | D19: 4 | E19: A/N | F19: R

Sheet Document Transfer Ackn-Rej
A1: Last Update timestamp : 22-07-26 11:45:24 by Musielak, Victor A. | C1: 091 = Document Transfer Acknowldegement 092 = Document Transfer Reject Note – Red=Required, Blue=Optional, Black=Optional Conditional (see Data Dictionary for condition)
A2: Record Length (R-4-N) | B2: Originator Type (R-1-A/N) | C2: Sender Number (R-8-A/N) | D2: Recipient Number (R-8-A/N) | E2: Record Type (R-3-A/N) | F2: NSCC Security Issue Number (OC-16-A/N) | G2: Filler (R-11-A/N) | H2: Control Number (R-20-A/N) | I2: Version Number (R-2-A/N) | J2: Submission Date (R-8-N) | K2: Series NSCC Security Issue Number (OC-16-A/N) | L2: Filler (R-7-A/N) | M2: NSCC Reject Indicator (R-1-A/N) | N2: NSCC Reject Reason Code 1 (R-4-A/N) | O2: NSCC Reject Reason Code 2 (R-4-A/N) | P2: NSCC Reject Reason Code 3 (R-4-A/N) | Q2: NSCC Reject Reason Code 4 (R-4-A/N) | R2: ToBeExecuted
A3: 0121 | G3: |NoTag| | L3: |NoTag| | R3: No

Sheet Document Transfer Ackn-Rej_DD (hidden)
A1: Field Name | B1: Start | C1: End | D1: Length | E1: Type | F1: Opt/Req | G1: Default2Zero
A2: Record Length | B2: 1 | C2: =$B2+$D2-1 -> 4 | D2: 4 | E2: N | F2: R | G2: No
A3: Originator Type | B3: =$C2+1 -> 5 | C3: =$B3+$D3-1 -> 5 | D3: 1 | E3: A/N | F3: R
A4: Sender Number | B4: =$C3+1 -> 6 | C4: 13 | D4: 8 | E4: A/N | F4: R
A5: Recipient Number | B5: 14 | C5: 21 | D5: 8 | E5: A/N | F5: R
A6: Record Type | B6: 22 | C6: 24 | D6: 3 | E6: A/N | F6: R
A7: NSCC Security Issue Number | B7: 25 | C7: 40 | D7: 16 | E7: A/N | F7: OC
A8: Filler | B8: 41 | C8: 51 | D8: 11 | E8: A/N | F8: R
A9: Control Number | B9: 52 | C9: 71 | D9: 20 | E9: A/N | F9: R
A10: Version Number | B10: 72 | C10: 73 | D10: 2 | E10: A/N | F10: R
A11: Submission Date | B11: 74 | C11: 81 | D11: 8 | E11: N | F11: R | G11: No
A12: Series NSCC Security Issue Number | B12: 82 | C12: 97 | D12: 16 | E12: A/N | F12: OC
A13: Filler | B13: 98 | C13: 104 | D13: 7 | E13: A/N | F13: R
A14: NSCC Reject Indicator | B14: 105 | C14: 105 | D14: 1 | E14: A/N | F14: R
A15: NSCC Reject Reason Code 1 | B15: 106 | C15: 109 | D15: 4 | E15: A/N | F15: R
A16: NSCC Reject Reason Code 2 | B16: 110 | C16: 113 | D16: 4 | E16: A/N | F16: R
A17: NSCC Reject Reason Code 3 | B17: 114 | C17: 117 | D17: 4 | E17: A/N | F17: R
A18: NSCC Reject Reason Code 4 | B18: 118 | C18: 121 | D18: 4 | E18: A/N | F18: R

Sheet Valuation
A1: Last Update timestamp : 20-04-20 12:33:48 by Musielak, Victor A. | C1: 060 = Valuation Note – Red=Required, Blue=Optional, Black=Optional Conditional (see Data Dictionary for condition)
A2: Record Length (R-4-N) | B2: Originator Type (R-1-A/N) | C2: Recipient Number (R-8-A/N) | D2: Fund Number (R-8-A/N) | E2: Record Type (R-3-A/N) | F2: NSCC Security Issue Number (OC-16-A/N) | G2: Filler (R-3-A/N) | H2: Share Class (O-8-A/N) | I2: Security Identifier (O-1-A/N) | J2: Security Issue ID (O-12-A/N) | K2: Filler (R-21-A/N) | L2: Submission Date (R-8-N) | M2: Filler (R-9-A/N) | N2: NSCC Reject Indicator (R-1-A/N) | O2: NSCC Reject Reason Code 1 (R-4-A/N) | P2: NSCC Reject Reason Code 2 (R-4-A/N) | Q2: NSCC Reject Reason Code 3 (R-4-A/N) | R2: NSCC Reject Reason Code 4 (R-4-A/N) | S2: Estimated or Actual Indicator (R-1-A/N) | T2: Filler (R-43-A/N) | U2: Reporting Currency (R-3-A/N) | V2: Filler (R-15-A/N) | W2: Value Correction Indicator (O-1-A/N) | X2: Reporting Currency Gross Net Asset Value (GAV) (O-16-N) | Y2: Reporting Currency Percentage (O-6-N) | Z2: Reporting Currency Units (O-10-N) | AA2: Filler (R-8-A/N) | AB2: Series NSCC Security Issue Number (OC-16-A/N) | AC2: Fair Market Value (O-16-N) | AD2: Estimated Value indicator (O-2-A/N) | AE2: Primary Valuation Method (R-2-A/N) | AF2: Primary Value (R-16-N) | AG2: Primary Value as of Date (R-8-N) | AH2: Secondary Valuation Method (OC-2-A/N) | AI2: Secondary Value (OC-16-N) | AJ2: Secondary Value as of Date (OC-8-N) | AK2: Tertiary Valuation Method (OC-2-A/N) | AL2: Tertiary Value (OC-16-N) | AM2: Tertiary Value as of Date (OC-8-N) | AN2: ToBeExecuted
A3: 0334 | G3: |NoTag| | H3: |NoTag| | I3: |NoTag| | J3: |NoTag| | K3: |NoTag| | M3: |NoTag| | T3: |NoTag| | V3: |NoTag| | W3: |NoTag| | X3: |NoTag| | Y3: |NoTag| | Z3: |NoTag| | AA3: |NoTag| | AC3: |NoTag| | AD3: |NoTag| | AN3: No

Sheet Valuation_DD (hidden)
A1: Field Name | B1: Start | C1: End | D1: Length | E1: Type | F1: Opt/Req | G1: Default2Zero
A2: Record Length | B2: 1 | C2: 4 | D2: 4 | E2: N | F2: R | G2: NO
A3: Originator Type | B3: 5 | C3: 5 | D3: 1 | E3: A/N | F3: R
A4: Recipient Number | B4: 6 | C4: 13 | D4: 8 | E4: A/N | F4: R
A5: Fund Number | B5: 14 | C5: 21 | D5: 8 | E5: A/N | F5: R
A6: Record Type | B6: 22 | C6: 24 | D6: 3 | E6: A/N | F6: R
A7: NSCC Security Issue Number | B7: 25 | C7: 40 | D7: 16 | E7: A/N | F7: OC
A8: Filler | B8: 41 | C8: 43 | D8: 3 | E8: A/N | F8: R
A9: Share Class | B9: 44 | C9: 51 | D9: 8 | E9: A/N | F9: O
A10: Security Identifier | B10: 52 | C10: 52 | D10: 1 | E10: A/N | F10: O
A11: Security Issue ID | B11: 53 | C11: 64 | D11: 12 | E11: A/N | F11: O
A12: Filler | B12: 65 | C12: 85 | D12: 21 | E12: A/N | F12: R
A13: Submission Date | B13: 86 | C13: 93 | D13: 8 | E13: N | F13: R | G13: NO
A14: Filler | B14: 94 | C14: 102 | D14: 9 | E14: A/N | F14: R
A15: NSCC Reject Indicator | B15: 103 | C15: 103 | D15: 1 | E15: A/N | F15: R
A16: NSCC Reject Reason Code 1 | B16: 104 | C16: 107 | D16: 4 | E16: A/N | F16: R
A17: NSCC Reject Reason Code 2 | B17: 108 | C17: 111 | D17: 4 | E17: A/N | F17: R
A18: NSCC Reject Reason Code 3 | B18: 112 | C18: 115 | D18: 4 | E18: A/N | F18: R
A19: NSCC Reject Reason Code 4 | B19: 116 | C19: 119 | D19: 4 | E19: A/N | F19: R
A20: Estimated or Actual Indicator | B20: 120 | C20: 120 | D20: 1 | E20: A/N | F20: R
A21: Filler | B21: 121 | C21: 163 | D21: 43 | E21: A/N | F21: R
A22: Reporting Currency | B22: 164 | C22: 166 | D22: 3 | E22: A/N | F22: R
A23: Filler | B23: 167 | C23: 181 | D23: 15 | E23: A/N | F23: R
A24: Value Correction Indicator | B24: 182 | C24: 182 | D24: 1 | E24: A/N | F24: O
A25: Reporting Currency Gross Net Asset Value (GAV) | B25: 183 | C25: 198 | D25: 16 | E25: N | F25: O
A26: Reporting Currency Percentage | B26: 199 | C26: 204 | D26: 6 | E26: N | F26: O | G26: NO
A27: Reporting Currency Units | B27: 205 | C27: 214 | D27: 10 | E27: N | F27: O | G27: NO
A28: Filler | B28: 215 | C28: 222 | D28: 8 | E28: A/N | F28: R
A29: Series NSCC Security Issue Number | B29: 223 | C29: 238 | D29: 16 | E29: A/N | F29: OC
A30: Fair Market Value | B30: 239 | C30: 254 | D30: 16 | E30: N | F30: O | G30: NO
A31: Estimated Value indicator | B31: 255 | C31: 256 | D31: 2 | E31: A/N | F31: O
A32: Primary Valuation Method | B32: 257 | C32: 258 | D32: 2 | E32: A/N | F32: R
A33: Primary Value | B33: =$C32+1 -> 259 | C33: =$B33+$D33-1 -> 274 | D33: 16 | E33: N | F33: R | G33: NO
A34: Primary Value as of Date | B34: 275 | C34: 282 | D34: 8 | E34: N | F34: R | G34: NO
A35: Secondary Valuation Method | B35: 283 | C35: 284 | D35: 2 | E35: A/N | F35: OC
A36: Secondary Value | B36: 285 | C36: 300 | D36: 16 | E36: N | F36: OC | G36: NO
A37: Secondary Value as of Date | B37: 301 | C37: 308 | D37: 8 | E37: N | F37: OC | G37: NO
A38: Tertiary Valuation Method | B38: 309 | C38: 310 | D38: 2 | E38: A/N | F38: OC
A39: Tertiary Value | B39: 311 | C39: 326 | D39: 16 | E39: N | F39: OC | G39: NO
A40: Tertiary Value as of Date | B40: 327 | C40: 334 | D40: 8 | E40: N | F40: OC | G40: NO

Sheet Account Transfer
A1: Last Update timestamp : 20-04-20 14:18:38 by Musielak, Victor A. | C1: 201 = Account Transfer Note – Red=Required, Blue=Optional, Black=Optional Conditional (see Data Dictionary for condition)
A2: Record Length (R-4-N) | B2: Originator Type (R-1-A/N) | C2: Firm Number (R-8-A/N) | D2: Fund Number (R-8-A/N) | E2: Record Type (R-3-A/N) | F2: NSCC Security Issue Number (OC-16-A/N) | G2: NSCC Sidepocket ID (O-3-A/N) | H2: Share Class (O-8-A/N) | I2: Security Identifier (O-1-A/N) | J2: Security Issue ID (O-12-A/N) | K2: Filler (R-38-A/N) | L2: NSCC Reject Indicator (R-1-A/N) | M2: NSCC Reject Reason Code 1 (R-4-A/N) | N2: NSCC Reject Reason Code 2 (R-4-A/N) | O2: NSCC Reject Reason Code 3 (R-4-A/N) | P2: NSCC Reject Reason Code 4 (R-4-A/N) | Q2: Filler (R-10-A/N) | R2: Unitized Indicator (R-1-A/N) | S2: Series NSCC Security Issue Number (OC-16-A/N) | T2: Filler (R-8-A/N) | U2: Control Number (R-20-A/N) | V2: Submission Date (R-8-N) | W2: Effective Date (R-8-N) | X2: Money Amount (OC-16-N) | Y2: Transaction Type (R-2-A/N) | Z2: Transaction Code (R-2-A/N) | AA2: Transfer Type (R-2-A/N) | AB2: Transfer Reason Code (O-2-A/N) | AC2: Date of Death (OC-8-N) | AD2: Date of Gift (OC-8-N) | AE2: Trading Model (R-1-A/N) | AF2: ACATS Related Control Number (O-20-A/N) | AG2: Delivering Firm Account Number (OC-20-A/N) | AH2: Delivering Fund Account Number (OC-20-A/N) | AI2: Delivering Closing Balance Amount (O-16-N) | AJ2: Receiving Firm Account Number (OC-20-A/N) | AK2: Receiving Fund Account Number (OC-20-A/N) | AL2: Receiving Closing Balance Amount (O-16-N) | AM2: Share Quantity (OC-16-N) | AN2: RIA/RR Indicator (OC-1-A/N) | AO2: Delivering Introducing Broker Dealer Firm Name/Registered Investment Advisor Firm Name (OC-35-A/N) | AP2: Receiving Introducing Broker Dealer Firm Name/Registered Investment Advisor Firm Name (OC-35-A/N) | AQ2: ToBeExecuted
A3: 0450 | G3: |NoTag| | H3: |NoTag| | I3: |NoTag| | J3: |NoTag| | K3: |NoTag| | Q3: |NoTag| | T3: |NoTag| | AB3: |NoTag| | AF3: |NoTag| | AI3: |NoTag| | AL3: |NoTag| | AQ3: No

Sheet Account Transfer_DD (hidden)
A1: Field Name | B1: Start | C1: End | D1: Length | E1: Type | F1: Opt/Req | G1: Default2Zero
A2: Record Length | B2: 1 | C2: =$B2+$D2-1 -> 4 | D2: 4 | E2: N | F2: R | G2: No
A3: Originator Type | B3: =$C2+1 -> 5 | C3: =$B3+$D3-1 -> 5 | D3: 1 | E3: A/N | F3: R
A4: Firm Number | B4: =$C3+1 -> 6 | C4: 13 | D4: 8 | E4: A/N | F4: R
A5: Fund Number | B5: 14 | C5: 21 | D5: 8 | E5: A/N | F5: R
A6: Record Type | B6: 22 | C6: 24 | D6: 3 | E6: A/N | F6: R
A7: NSCC Security Issue Number | B7: =$C6+1 -> 25 | C7: 40 | D7: 16 | E7: A/N | F7: OC
A8: NSCC Sidepocket ID | B8: 41 | C8: 43 | D8: 3 | E8: A/N | F8: O
A9: Share Class | B9: 44 | C9: 51 | D9: 8 | E9: A/N | F9: O
A10: Security Identifier | B10: =$C9+1 -> 52 | C10: 52 | D10: 1 | E10: A/N | F10: O
A11: Security Issue ID | B11: 53 | C11: 64 | D11: 12 | E11: A/N | F11: O
A12: Filler | B12: =$C11+1 -> 65 | C12: 102 | D12: 38 | E12: A/N | F12: R
A13: NSCC Reject Indicator | B13: 103 | C13: 103 | D13: 1 | E13: A/N | F13: R
A14: NSCC Reject Reason Code 1 | B14: 104 | C14: 107 | D14: 4 | E14: A/N | F14: R
A15: NSCC Reject Reason Code 2 | B15: 108 | C15: 111 | D15: 4 | E15: A/N | F15: R
A16: NSCC Reject Reason Code 3 | B16: 112 | C16: 115 | D16: 4 | E16: A/N | F16: R
A17: NSCC Reject Reason Code 4 | B17: 116 | C17: 119 | D17: 4 | E17: A/N | F17: R
A18: Filler | B18: 120 | C18: 129 | D18: 10 | E18: A/N | F18: R
A19: Unitized Indicator | B19: 130 | C19: 130 | D19: 1 | E19: A/N | F19: R
A20: Series NSCC Security Issue Number | B20: 131 | C20: 146 | D20: 16 | E20: A/N | F20: OC
A21: Filler | B21: =$C20+1 -> 147 | C21: 154 | D21: 8 | E21: A/N | F21: R
A22: Control Number | B22: 155 | C22: 174 | D22: 20 | E22: A/N | F22: R
A23: Submission Date | B23: 175 | C23: 182 | D23: 8 | E23: N | F23: R | G23: No
A24: Effective Date | B24: 183 | C24: 190 | D24: 8 | E24: N | F24: R | G24: No
A25: Money Amount | B25: 191 | C25: 206 | D25: 16 | E25: N | F25: OC | G25: No
A26: Transaction Type | B26: 207 | C26: 208 | D26: 2 | E26: A/N | F26: R
A27: Transaction Code | B27: 209 | C27: 210 | D27: 2 | E27: A/N | F27: R
A28: Transfer Type | B28: 211 | C28: 212 | D28: 2 | E28: A/N | F28: R
A29: Transfer Reason Code | B29: 213 | C29: 214 | D29: 2 | E29: A/N | F29: O
A30: Date of Death | B30: 215 | C30: 222 | D30: 8 | E30: N | F30: OC | G30: No
A31: Date of Gift | B31: 223 | C31: 230 | D31: 8 | E31: N | F31: OC | G31: No
A32: Trading Model | B32: 231 | C32: 231 | D32: 1 | E32: A/N | F32: R
A33: ACATS Related Control Number | B33: 232 | C33: 251 | D33: 20 | E33: A/N | F33: O
A34: Delivering Firm Account Number | B34: 252 | C34: 271 | D34: 20 | E34: A/N | F34: OC
A35: Delivering Fund Account Number | B35: 272 | C35: 291 | D35: 20 | E35: A/N | F35: OC
A36: Delivering Closing Balance Amount | B36: 292 | C36: 307 | D36: 16 | E36: N | F36: O | G36: No
A37: Receiving Firm Account Number | B37: 308 | C37: 327 | D37: 20 | E37: A/N | F37: OC
A38: Receiving Fund Account Number | B38: 328 | C38: 347 | D38: 20 | E38: A/N | F38: OC
A39: Receiving Closing Balance Amount | B39: 348 | C39: 363 | D39: 16 | E39: N | F39: O | G39: No
A40: Share Quantity | B40: 364 | C40: 379 | D40: 16 | E40: N | F40: OC | G40: No
A41: RIA/RR Indicator | B41: 380 | C41: 380 | D41: 1 | E41: A/N | F41: OC
A42: Delivering Introducing Broker Dealer Firm Name/Registered Investment Advisor Firm Name | B42: =$C41+1 -> 381 | C42: 415 | D42: 35 | E42: A/N | F42: OC
A43: Receiving Introducing Broker Dealer Firm Name/Registered Investment Advisor Firm Name | B43: 416 | C43: 450 | D43: 35 | E43: A/N | F43: OC

Sheet AcctTrnsf Ackn-Rej-Exit
A1: Last Update timestamp : 20-04-20 14:58:04 by Musielak, Victor A. | C1: 202 = Fund Account Transfer Acknowledgement 203 = Fund Reject of Account Transfer 204 = Firm Reject of Account Transfer 205 = Fund Exit of Account Transfer 206 = Firm Exit of Account Transfer Note – Red=Required, Blue=Optional, Black=Optional Conditional (see Data Dictionary for condition)
A2: Record Length (R-4-N) | B2: Originator Type (R-1-A/N) | C2: Firm Number (R-8-A/N) | D2: Fund Number (R-8-A/N) | E2: Record Type (R-3-A/N) | F2: NSCC Security Issue Number (OC-16-A/N) | G2: NSCC Sidepocket ID (O-3-A/N) | H2: Share Class (O-8-A/N) | I2: Security Identifier (O-1-A/N) | J2: Security Issue ID (O-12-A/N) | K2: Series NSCC Security Issue Number (OC-16-A/N) | L2: Filler (R-22-A/N) | M2: NSCC Reject Indicator (R-1-A/N) | N2: NSCC Reject Reason Code 1 (R-4-A/N) | O2: NSCC Reject Reason Code 2 (R-4-A/N) | P2: NSCC Reject Reason Code 3 (R-4-A/N) | Q2: NSCC Reject Reason Code 4 (R-4-A/N) | R2: Filler (R-11-A/N) | S2: Anticipated Transfer Completion Date (R-8-N) | T2: Control Number (R-20-A/N) | U2: Submission Date (R-8-A/N) | V2: Effective Date (R-8-N) | W2: Transfer Type (O-2-A/N) | X2: Money Amount (O-16-N) | Y2: Process Flow Indicator (OC-1-A/N) | Z2: Filler (R-20-A/N) | AA2: Receiving Fund Account Number (O-20-A/N) | AB2: Receiving Closing Balance Amount (O-16-N) | AC2: Delivering Fund Account Number (O-20-A/N) | AD2: Delivering Closing Balance Amount (O-16-N) | AE2: Share Quantity (O-16-N) | AF2: Transaction Code (S-2-A/N) | AG2: Transfer Reason Code (S-2-A/N) | AH2: Transaction Type (S-2-A/N) | AI2: Date of Death (S-8-N) | AJ2: Date of Gift (S-8-N) | AK2: Delivering Firm Account Number (S-20-A/N) | AL2: Receiving Firm Account Number (S-20-A/N) | AM2: RIA/RR Indicator (S-1-A/N) | AN2: Delivering Introducing Broker Dealer Firm Name/Registered Investment Advisor Firm Name (S-35-A/N) | AO2: Receiving Introducing Broker Dealer Firm Name/Registered Investment Advisor Firm Name (S-35-A/N) | AP2: Fund/Firm Reject Indicator (OC-1-A/N) | AQ2: Fund/Firm Reject Reason Code 1 (OC-4-A/N) | AR2: Fund/Firm Reject Reason Code 2 (O-4-A/N) | AS2: Fund/Firm Reject Reason Code 3 (O-4-A/N) | AT2: Fund/Firm Reject Reason Code 4 (O-4-A/N) | AU2: ToBeExecuted
A3: 0451 | G3: |NoTag| | H3: |NoTag| | I3: |NoTag| | J3: |NoTag| | L3: |NoTag| | R3: |NoTag| | W3: |NoTag| | X3: |NoTag| | Z3: |NoTag| | AA3: |NoTag| | AB3: |NoTag| | AC3: |NoTag| | AD3: |NoTag| | AE3: |NoTag| | AF3: |NoTag| | AG3: |NoTag| | AH3: |NoTag| | AI3: |NoTag| | AJ3: |NoTag| | AK3: |NoTag| | AL3: |NoTag| | AM3: |NoTag| | AN3: |NoTag| | AO3: |NoTag| | AR3: |NoTag| | AS3: |NoTag| | AT3: |NoTag| | AU3: No

Sheet AcctTrnsf Ackn-Rej-Exit_DD (hidden)
A1: Field Name | B1: Start | C1: End | D1: Length | E1: Type | F1: Opt/Req | G1: Default2Zero
A2: Record Length | B2: 1 | C2: 4 | D2: 4 | E2: N | F2: R | G2: No
A3: Originator Type | B3: 5 | C3: 5 | D3: 1 | E3: A/N | F3: R
A4: Firm Number | B4: 6 | C4: 13 | D4: 8 | E4: A/N | F4: R
A5: Fund Number | B5: 14 | C5: 21 | D5: 8 | E5: A/N | F5: R
A6: Record Type | B6: 22 | C6: 24 | D6: 3 | E6: A/N | F6: R
A7: NSCC Security Issue Number | B7: 25 | C7: 40 | D7: 16 | E7: A/N | F7: OC
A8: NSCC Sidepocket ID | B8: 41 | C8: 43 | D8: 3 | E8: A/N | F8: O
A9: Share Class | B9: 44 | C9: 51 | D9: 8 | E9: A/N | F9: O
A10: Security Identifier | B10: 52 | C10: 52 | D10: 1 | E10: A/N | F10: O
A11: Security Issue ID | B11: 53 | C11: 64 | D11: 12 | E11: A/N | F11: O
A12: Series NSCC Security Issue Number | B12: 65 | C12: 80 | D12: 16 | E12: A/N | F12: OC
A13: Filler | B13: 81 | C13: 102 | D13: 22 | E13: A/N | F13: R
A14: NSCC Reject Indicator | B14: 103 | C14: 103 | D14: 1 | E14: A/N | F14: R
A15: NSCC Reject Reason Code 1 | B15: 104 | C15: 107 | D15: 4 | E15: A/N | F15: R
A16: NSCC Reject Reason Code 2 | B16: 108 | C16: 111 | D16: 4 | E16: A/N | F16: R
A17: NSCC Reject Reason Code 3 | B17: 112 | C17: 115 | D17: 4 | E17: A/N | F17: R
A18: NSCC Reject Reason Code 4 | B18: 116 | C18: 119 | D18: 4 | E18: A/N | F18: R
A19: Filler | B19: 120 | C19: 130 | D19: 11 | E19: A/N | F19: R
A20: Anticipated Transfer Completion Date | B20: 131 | C20: 138 | D20: 8 | E20: N | F20: R | G20: No
A21: Control Number | B21: 139 | C21: 158 | D21: 20 | E21: A/N | F21: R
A22: Submission Date | B22: 159 | C22: 166 | D22: 8 | E22: A/N | F22: R
A23: Effective Date | B23: 167 | C23: 174 | D23: 8 | E23: N | F23: R | G23: No
A24: Transfer Type | B24: 175 | C24: 176 | D24: 2 | E24: A/N | F24: O
A25: Money Amount | B25: 177 | C25: 192 | D25: 16 | E25: N | F25: O | G25: No
A26: Process Flow Indicator | B26: 193 | C26: 193 | D26: 1 | E26: A/N | F26: OC
A27: Filler | B27: 194 | C27: 213 | D27: 20 | E27: A/N | F27: R
A28: Receiving Fund Account Number | B28: 214 | C28: 233 | D28: 20 | E28: A/N | F28: O
A29: Receiving Closing Balance Amount | B29: 234 | C29: 249 | D29: 16 | E29: N | F29: O | G29: No
A30: Delivering Fund Account Number | B30: 250 | C30: 269 | D30: 20 | E30: A/N | F30: O
A31: Delivering Closing Balance Amount | B31: 270 | C31: 285 | D31: 16 | E31: N | F31: O | G31: No
A32: Share Quantity | B32: 286 | C32: 301 | D32: 16 | E32: N | F32: O | G32: No
A33: Transaction Code | B33: 302 | C33: 303 | D33: 2 | E33: A/N | F33: S
A34: Transfer Reason Code | B34: 304 | C34: 305 | D34: 2 | E34: A/N | F34: S
A35: Transaction Type | B35: 306 | C35: 307 | D35: 2 | E35: A/N | F35: S
A36: Date of Death | B36: 308 | C36: 315 | D36: 8 | E36: N | F36: S | G36: No
A37: Date of Gift | B37: 316 | C37: 323 | D37: 8 | E37: N | F37: S | G37: No
A38: Delivering Firm Account Number | B38: 324 | C38: 343 | D38: 20 | E38: A/N | F38: S
A39: Receiving Firm Account Number | B39: 344 | C39: 363 | D39: 20 | E39: A/N | F39: S
A40: RIA/RR Indicator | B40: 364 | C40: 364 | D40: 1 | E40: A/N | F40: S
A41: Delivering Introducing Broker Dealer Firm Name/Registered Investment Advisor Firm Name | B41: 365 | C41: 399 | D41: 35 | E41: A/N | F41: S
A42: Receiving Introducing Broker Dealer Firm Name/Registered Investment Advisor Firm Name | B42: 400 | C42: 434 | D42: 35 | E42: A/N | F42: S
A43: Fund/Firm Reject Indicator | B43: 435 | C43: 435 | D43: 1 | E43: A/N | F43: OC
A44: Fund/Firm Reject Reason Code 1 | B44: 436 | C44: 439 | D44: 4 | E44: A/N | F44: OC
A45: Fund/Firm Reject Reason Code 2 | B45: 440 | C45: 443 | D45: 4 | E45: A/N | F45: O
A46: Fund/Firm Reject Reason Code 3 | B46: 444 | C46: 447 | D46: 4 | E46: A/N | F46: O
A47: Fund/Firm Reject Reason Code 4 | B47: 448 | C47: 451 | D47: 4 | E47: A/N | F47: O

Sheet AcctTrnsf Conf-Corr
A1: Last Update timestamp : 20-06-24 13:43:11 by Musielak, Victor A. | C1: 207 = Confirmation of Account Transfer 208 = Correction of Account Transfer Note – Red=Required, Blue=Optional, Black=Optional Conditional (see Data Dictionary for condition)
A2: Record Length (R-4-N) | B2: Originator Type (R-1-A/N) | C2: Firm Number (R-8-A/N) | D2: Fund Number (R-8-A/N) | E2: Record Type (R-3-A/N) | F2: NSCC Security Issue Number (OC-16-A/N) | G2: NSCC Sidepocket ID (O-3-A/N) | H2: Share Class (O-8-A/N) | I2: Security Identifier (O-1-A/N) | J2: Security Issue ID (O-12-A/N) | K2: Filler (R-38-A/N) | L2: NSCC Reject Indicator (R-1-A/N) | M2: NSCC Reject Reason Code 1 (R-4-A/N) | N2: NSCC Reject Reason Code 2 (R-4-A/N) | O2: NSCC Reject Reason Code 3 (R-4-A/N) | P2: NSCC Reject Reason Code 4 (R-4-A/N) | Q2: Filler (R-8-A/N) | R2: Unitized Indicator (R-1-A/N) | S2: Reconfirmation Indicator (OC-1-A/N) | T2: Correction Indicator (OC-1-A/N) | U2: Series NSCC Security Issue Number (OC-16-A/N) | V2: Transfer Completion Date (OC-8-N) | W2: Control Number (R-20-A/N) | X2: Submission Date (R-8-N) | Y2: Effective Date (R-8-N) | Z2: Money Amount (OC-16-N) | AA2: Transaction Type (O-2-A/N) | AB2: Transaction Code (O-2-A/N) | AC2: Transfer Type (OC-2-A/N) | AD2: Transfer Reason Code (O-2-A/N) | AE2: Date of Death (OC-8-N) | AF2: Date of Gift (OC-8-N) | AG2: Trading Model (OC-1-A/N) | AH2: ACATS Related Control Number (O-20-A/N) | AI2: Delivering Firm Account Number (OC-20-A/N) | AJ2: Delivering Fund Account Number (OC-20-A/N) | AK2: Delivering Closing Balance Amount (O-16-N) | AL2: Receiving Firm Account Number (OC-20-A/N) | AM2: Receiving Fund Account Number (OC-20-A/N) | AN2: Receiving Closing Balance Amount (O-16-N) | AO2: Share Quantity (OC-16-N) | AP2: RIA/RR Indicator (OC-1-A/N) | AQ2: Delivering Introducing Broker Dealer Firm Name/Registered Investment Advisor Firm Name (OC-35-A/N) | AR2: Receiving Introducing Broker Dealer Firm Name/Registered Investment Advisor Firm Name (OC-35-A/N) | AS2: ToBeExecuted
A3: 0450 | G3: |NoTag| | H3: |NoTag| | I3: |NoTag| | J3: |NoTag| | K3: |NoTag| | Q3: |NoTag| | AA3: |NoTag| | AB3: |NoTag| | AD3: |NoTag| | AH3: |NoTag| | AK3: |NoTag| | AN3: |NoTag| | AS3: No

Sheet AcctTrnsf Conf-Corr_DD (hidden)
A1: Field Name | B1: Start | C1: End | D1: Length | E1: Type | F1: Opt/Req | G1: Default2Zero
A2: Record Length | B2: 1 | C2: 4 | D2: 4 | E2: N | F2: R | G2: No
A3: Originator Type | B3: 5 | C3: 5 | D3: 1 | E3: A/N | F3: R
A4: Firm Number | B4: 6 | C4: 13 | D4: 8 | E4: A/N | F4: R
A5: Fund Number | B5: 14 | C5: 21 | D5: 8 | E5: A/N | F5: R | G5: No
A6: Record Type | B6: 22 | C6: 24 | D6: 3 | E6: A/N | F6: R
A7: NSCC Security Issue Number | B7: 25 | C7: 40 | D7: 16 | E7: A/N | F7: OC
A8: NSCC Sidepocket ID | B8: 41 | C8: 43 | D8: 3 | E8: A/N | F8: O
A9: Share Class | B9: 44 | C9: 51 | D9: 8 | E9: A/N | F9: O
A10: Security Identifier | B10: 52 | C10: 52 | D10: 1 | E10: A/N | F10: O
A11: Security Issue ID | B11: 53 | C11: 64 | D11: 12 | E11: A/N | F11: O
A12: Filler | B12: 65 | C12: 102 | D12: 38 | E12: A/N | F12: R
A13: NSCC Reject Indicator | B13: 103 | C13: 103 | D13: 1 | E13: A/N | F13: R
A14: NSCC Reject Reason Code 1 | B14: 104 | C14: 107 | D14: 4 | E14: A/N | F14: R
A15: NSCC Reject Reason Code 2 | B15: 108 | C15: 111 | D15: 4 | E15: A/N | F15: R
A16: NSCC Reject Reason Code 3 | B16: 112 | C16: 115 | D16: 4 | E16: A/N | F16: R
A17: NSCC Reject Reason Code 4 | B17: 116 | C17: 119 | D17: 4 | E17: A/N | F17: R
A18: Filler | B18: 120 | C18: 127 | D18: 8 | E18: A/N | F18: R
A19: Unitized Indicator | B19: 128 | C19: 128 | D19: 1 | E19: A/N | F19: R
A20: Reconfirmation Indicator | B20: 129 | C20: 129 | D20: 1 | E20: A/N | F20: OC
A21: Correction Indicator | B21: 130 | C21: 130 | D21: 1 | E21: A/N | F21: OC
A22: Series NSCC Security Issue Number | B22: 131 | C22: 146 | D22: 16 | E22: A/N | F22: OC
A23: Transfer Completion Date | B23: 147 | C23: 154 | D23: 8 | E23: N | F23: OC | G23: No
A24: Control Number | B24: 155 | C24: 174 | D24: 20 | E24: A/N | F24: R
A25: Submission Date | B25: 175 | C25: 182 | D25: 8 | E25: N | F25: R | G25: No
A26: Effective Date | B26: 183 | C26: 190 | D26: 8 | E26: N | F26: R | G26: No
A27: Money Amount | B27: 191 | C27: 206 | D27: 16 | E27: N | F27: OC | G27: No
A28: Transaction Type | B28: 207 | C28: 208 | D28: 2 | E28: A/N | F28: O
A29: Transaction Code | B29: 209 | C29: 210 | D29: 2 | E29: A/N | F29: O
A30: Transfer Type | B30: 211 | C30: 212 | D30: 2 | E30: A/N | F30: OC
A31: Transfer Reason Code | B31: 213 | C31: 214 | D31: 2 | E31: A/N | F31: O
A32: Date of Death | B32: 215 | C32: 222 | D32: 8 | E32: N | F32: OC | G32: No
A33: Date of Gift | B33: 223 | C33: 230 | D33: 8 | E33: N | F33: OC | G33: No
A34: Trading Model | B34: 231 | C34: 231 | D34: 1 | E34: A/N | F34: OC
A35: ACATS Related Control Number | B35: 232 | C35: 251 | D35: 20 | E35: A/N | F35: O
A36: Delivering Firm Account Number | B36: 252 | C36: 271 | D36: 20 | E36: A/N | F36: OC
A37: Delivering Fund Account Number | B37: 272 | C37: 291 | D37: 20 | E37: A/N | F37: OC
A38: Delivering Closing Balance Amount | B38: 292 | C38: 307 | D38: 16 | E38: N | F38: O | G38: No
A39: Receiving Firm Account Number | B39: 308 | C39: 327 | D39: 20 | E39: A/N | F39: OC
A40: Receiving Fund Account Number | B40: 328 | C40: 347 | D40: 20 | E40: A/N | F40: OC
A41: Receiving Closing Balance Amount | B41: 348 | C41: 363 | D41: 16 | E41: N | F41: O | G41: No
A42: Share Quantity | B42: 364 | C42: 379 | D42: 16 | E42: N | F42: OC | G42: No
A43: RIA/RR Indicator | B43: 380 | C43: 380 | D43: 1 | E43: A/N | F43: OC
A44: Delivering Introducing Broker Dealer Firm Name/Registered Investment Advisor Firm Name | B44: 381 | C44: 415 | D44: 35 | E44: A/N | F44: OC
A45: Receiving Introducing Broker Dealer Firm Name/Registered Investment Advisor Firm Name | B45: 416 | C45: 450 | D45: 35 | E45: A/N | F45: OC

Sheet RevisionHistory
A1: Date | B1: Author | C1: Version | D1: Change Description
A2: 2010-09-20 | B2: Archana Patnala | C2: 1.1 | D2: Format of the File name has been changed to create the filename with time stamp
A3: 2010-11-01 | B3: Archana Patnala | C3: 1.2 | D3: Added a SettlementOnlyInstruction Template for "64482_WMS – Multi-Curr Rel II 2010 CAP & 529"
A4: 2011-07-25 | B4: Shyam Singaravelu | C4: 1.3 | D4: Updated for the 71061 - AIP Release I 2011 enhancements
A5: 2011-10-24 | B5: Shyam Singaravelu | C5: 2.0 | D5: Updated as per revised DD v6.3
A6: 2012-04-20 | B6: P. Narayanaswami | C6: 2.1 | D6: Updated per DD version 6.10
A7: 2012-04-26 | B7: P. Narayanaswami | C7: 2.2 | D7: Updated to make ToBeExecuted column case insensitive & changed naming convention used for generated files
A8: 2012-07-11 | B8: P. Narayanaswami | C8: 2.3 | D8: Added a check for Configuration Path & Output File path folders to ensure that path specified exists
A9: 2013-04-29 | B9: P. Narayanaswami | C9: 2.4 | D9: i. Revised as per the latest version of the DD (8.0) ii. Removed config path / output file requirements - macro file location is used iii. Header to include opt./req, field length, and data type info iv. ToBeExecuted column marked as Y or Yes will be used for record generation; data will be skipped if any other value is present in that column [column is case insensitive]
A10: 2013-05-28 | B10: P. Narayanaswami | C10: 2.5 | D10: i. Added DataTrak sheet and updated macro to include the DataTrak header and trailer records to the MRO and CSV files to be generated ii. Multibatch Batch count will be reset to 1 when the processing date field is changed iii. Multibatch Batch counter will NOT be increased if there are issues [handled exceptions; unhandled exceptions will increase the batch count]
A11: 2013-06-14 | B11: P. Narayanaswami | C11: 2.6 | D11: Removed DataTrak Header/Trailer option
A12: 2013-06-25 | B12: P. Narayanaswami | C12: 2.7 | D12: Removed the DataTrack cycle reset when opening the macro file
A13: 2013-07-10 | B13: P. Narayanaswami | C13: 2.8 | D13: Fixed blank line issue in the file generated; use space for |NoTag| numeric fields in MRO instead of 0s
A14: 2013-10-02 | B14: P. Narayanaswami | C14: 2.9 | D14: Updated sheet name / column headers as per product team comments
A15: 2013-12-05 | B15: P. Narayanaswami | C15: 3.0 | D15: Updated version to 3.0
A16: 2014-04-03 | B16: P. Narayanaswami | C16: 3.1 | D16: i. Included validation to check the value specified in the "Append" column in Template sheet - if value other than Yes/No is present macro will thrown an error ii. Numeric fields will be defaulted to zero in both MRO & CSV [CSV - single zero & MRO - 0s to the entire length of the field]
A17: 2014-04-09 | B17: P. Narayanaswami | C17: 3.2 | D17: > Breakpoint upper/lower limit, Percentage of Pop and Commission Percentage for all breakpoints are not defaulted to zero > Related Control Number not defaulted to 0 in Commission & Activity record > Command button type changed from ActiveX to Form control > Locked sheets to allow insert/delete cells & formatting
A18: 2014-04-09 | B18: P. Narayanaswami | C18: 3.3 | D18: Required numeric fields not defaulted to zero
A19: 2014-04-16 | B19: P. Narayanaswami | C19: 3.4 | D19: The below fields are defaulted to zero when no value is provided Record Type Field Name Opt/Req 061 Lock Up Time Period in # of Days O 011, 012, 043 Breakpoint Limit Number OC 001, 002, 032 Breakpoint Limit Number OC 007, 008, 040 - 042 Number of Business Days Until Valuation O 007, 008, 040 - 042 Number of Business Days for Holdback OC 007, 008, 040 - 042 Breakpoint Limit Number OC
A20: 2014-04-18 | B20: P. Narayanaswami | C20: 4.0 | D20: Updated Version to 4.0
A21: 2014-04-23 | B21: P. Narayanaswami | C21: 4.1 | D21: Updated for FATCA changes
A22: 2014-05-22 | B22: P. Narayanaswami | C22: 4.2 | D22: Fixed an issue with "system generated" fields
A23: 2014-05-23 | B23: P. Narayanaswami | C23: 5.0 | D23: Updated version to 5.0
A24: 2014-12-02 | B24: V. Musielak | C24: 5.1 | D24: Updated for AIP Share Transfer Records and Enhancements
A25: 2015-02-02 | B25: V. Musielak | C25: 6.0 | D25: Updated version to 6.0
A26: 2015-06-25 | B26: V. Musielak | C26: 6.1 | D26: Updated for Intro Broker Dealer Enhancements
A27: 2015-07-17 | B27: V. Musielak | C27: 7.0 | D27: Updated version to 7.0
A28: 2016-02-17 | B28: V. Musielak | C28: 7.1 | D28: Updated for Valuation (valuation mathod now required)
A29: 2016-03-03 | B29: V. Musielak | C29: 8.0 | D29: Updated version to 8.0
A30: 2016-03-07 | B30: V. Musielak | C30: 8.1 | D30: Updated for HF Purchase Order Processing
A31: 2016-05-06 | B31: V. Musielak | C31: 9.0 | D31: Updated version to 9.0
A32: 2017-01-26 | B32: V. Musielak | C32: 9.1 | D32: Updated for AIP DoL Changes and Class to Class Changes
A33: 2017-03-08 | B33: V. Musielak | C33: 10.0 | D33: Updated version to 10.0
A34: 2017-03-22 | B34: V. Musielak | C34: 10.1 | D34: Changed Direct Purchase Field in Activity Distribution record from Optional to Optional Conditional
A35: 2017-06-16 | B35: V. Musielak | C35: 10.2 | D35: Update for Security Announcement Changes
A36: 2017-06-22 | B36: V. Musielak | C36: 10.3 | D36: Updated for Non-traded REITS and BDC enhancements
A37: 2017-08-25 | B37: V. Musielak | C37: 11.0 | D37: Updated version to 11.0
A38: 2018-06-28 | B38: V. Musielak | C38: 11.1 | D38: Updated for Electronic Document enhancements o Security General Profile o Electronic Documentation o Order o Order w-Registration o Order Ackn-Reject-Exit o Acct. Registration-Maintenance o Registration-Activity Ackn Rej o Payment Record o Payment Acknowledgement o Valuation
A39: 2018-09-15 | B39: V. Musielak | C39: 12.0 | D39: Updated version to 12.0
A40: 2019-01-10 | B40: V. Musielak | C40: 12.1 | D40: Removed default zero 0 for Share Quantity field not populated for Order records
A41: 2019-02-12 | B41: V. Musielak | C41: 12.2 | D41: Added Re-acknowledgement Indicator to the Order Ackn-Rej-Exit records
A42: 2019-02-26 | B42: V. Musielak | C42: 12.3 | D42: Changed Tender Offer Subject to Holdback Indicator field and Tender Offer Oversold Indicator field from Optional Conditional to Optional for the Order Correction-Confirmation records (007, 008, 040, 041, and 042)
A43: 2019-04-08 | B43: V. Musielak | C43: 12.4 | D43: Changed all Firm Numbers, Fund Numbers, Control Numbers, Related Control Numbers and Recipient Numbers from numeric to Alpha-numeric
A44: 2020-03-26 | B44: V. Musielak | C44: 13.0 | D44: Updated version to 13.0
A45: 2020-04-23 | B45: V. Musielak | C45: 13.1 | D45: Updated for Project #137683 AIP Private Equity & Transfer Enhancements o Security General Profile o Security Announcement o Position o Activity Distribution o Order o Order w-Registration o Order Acknowledgement-Reject-Exit o Order Correction - Confirmation o Account Registration-Maintenance o Account Transfer o Transfer Acknowledgement-Reject-Exit o Transfer Confirmation - Correction
A46: 2020-09-23 | B46: V. Musielak | C46: 14.0 | D46: Updated version to 14.0
A47: 2021-05-17 | B47: V. Musielak | C47: 14.1 | D47: Updated for Project #137683 AIP Private Equity & Transfer Enhancements o Position o Activity Distribution o Order o Order w-Registration o Order Correction - Confirmation o Account Registration-Maintenance o Exchange-Switch
A48: 2021-09-23 | B48: V. Musielak | C48: 15.0 | D48: Updated version to 15.0
A49: 2022-05-07 | B49: V. Musielak | C49: 15.0 | D49: Updated version to 15.0 Folder selection
A50: 2022-08-03 | B50: V. Musielak | C50: 15.1 | D50: Updated for Project #146101 Document Transfer & 2022 Enhancements o Security General o Activity & Distribution o Document Transfer Manifest o Document Transfer Ackn-Rej
A51: 2022-09-20 | B51: V. Musielak | C51: 16.0 | D51: Updated version to 16.0
A52: 2023-05-01 | B52: V. Musielak | C52: 16.1 | D52: Updated for Project #148457 2023 Enhancements o Activity & Distribution o Account Registration/Maintenance o Order with Registration o Order Correction-Confirmation
A53: 2022-06-29 | B53: V. Musielak | C53: 17.0 | D53: Updated version to 17.0
